{"text_format":"1","workbook":"xlsx","n_sheets":7,"sheets":["Vejledning","Oplysninger","Beregninger","Udskrift","Transport","Datagrundlag","Fraktilgrupper"],"not_rendered":{"charts":2,"images":0,"macros":1,"external_links":0,"defined_names":280,"comments":1,"pivot_tables":0},"unopened":[],"bounds":{"document_bytes":16777216,"sheet_cells":100000,"rows_first":2000,"rows_last":500,"rows_between":2000,"halvings":0,"cell_chars":16384,"cell_head_chars":4096},"cells_cut":0,"cells_raw":0,"read":"whole","date_system":"1900"}

{"sheet":"Vejledning","index":0,"n_rows":38,"n_cols":10,"rows_kept":38,"cut":false,"hidden":false,"merged":[[24,1,24,14],[25,1,27,14],[29,1,30,14],[35,1,36,14],[3,1,8,5],[9,9,12,12],[14,9,14,13],[13,9,13,13],[13,1,14,5],[16,1,17,5],[10,1,11,5]]}
[]
[null,"Forpagtningsberegningsmodel"]
[]
[null,"Med dette regneark kan man beregne økonomien ved tilforpagtning eller bortforpagtning afhængig af forventet afgrødesammensætning, priser og omkostningsniveauer mv. Værdier fra gældende afgrødekalkuler foreslås som standard i beregningen. Der er mulighed for at sammenligne med faktiske forpagtningspriser i 2019 pr. driftsgren, JB-type og landsdel.",null,null,null,null,null,null,"Udgiver:","SEGES"]
[null,null,null,null,null,null,null,null,null,"Erhvervsøkonomi"]
[null,null,null,null,null,null,null,null,"Udgivelsesdato:","2020-12-01"]
[null,null,null,null,null,null,null,null,"Forfatter:","Morten Nyland Christensen og Ove Lund"]
[null,null,null,null,null,null,null,null,"Version:","4.0"]
[]
[null,null,null,null,null,null,null,null,"Datagrundlag:","Afgrødekalkuler fra FarmtalOnline, og forpagtningspriser 2019 fra økonomidatabasen kombineret med udvalgte oplysninger fra Dansk Markdatabase."]
[null,"Gå til Oplysninger"]
[]
[]
[null,"Gå til Beregning",null,null,null,null,null,null,null,"Afgrødekalkuler opdateres en gang årligt."]
[null,null,null,null,null,null,null,null,"Excel version:","Excel 2010"]
[null,null,null,null,null,null,null,null,"Dokument:","Se vejledning"]
[null,null,null,null,null,null,null,null,"Ansvar:","Se vilkår"]
[]
[]
[null,"Brugervejledning:\n"]
[]
[null,"Modellen beregner et realistisk resultat af en given forpagtning eller bortforpagtning. Beregningerne er delvis automatiske, når de lyseblå felter er udfyldt. "]
[null,"De beregnede resultater kan altid ændres via egne værdier"]
[]
[null,"Grundoplysninger om bedriften indtastes i fanen \"Oplysninger\". De mørkeblå felter er information hentet fra regnskabet, de lyseblå er informationer, der enten skal indtastes eller celler til at overskrive resultaterne fra regnskabet. Der vil være et \"rullegardin\", hvor der kan vælges mellem bestemte variable, der er markeret med grønt."]
[null,"I afgrødevalg vælges de relevante afgrøder. Overskydende celler efterlades bare tomme. Afgrødefordelingen i de lyseblå celler er lavet ud fra afgrødefordelingen i regnskabet (total, ikke kun på forpagtet jord). Hvis Ingen eller andet vælges, så skal der indtastes en procentsats i de lyseblå celler, hvis den skal tælle med. Fordelingerne fra regnskabet kan overskrives via de lyseblå celler."]
[]
[]
[]
[null,"I fanen Beregninger sker selve beregningerne ud fra enten kalkulerne eller fra egne indtastede værdier."]
[]
[null,"Transportomkostninger kan beregnes mere specifikt ved at trykke på \"Gå til transportomkostninger\""]
[]
[null,"Fanen Udskrift samler de overordnede resultater fra beregningerne, og her er der også mulighed for at sammenligne bedriftens forpagtningsafgift med andres."]
[null,"Dette gøres via en graf, hvor den gennemsnitlige forpagtningsafgift i de forskellige fraktiler vises sammen med bedriftens forpagtningsafgift."]
[null,"Der kan vælges forskellige grupper at sammenligne med indenfor Driftsgren, Jordbonitet og Landsdele. Sammenligningen kræver et minimum af observationer, så nogle kombinationer vil ikke vise et resultat, hvis der her er for få observationer."]
[]
[null,"Nedenunder grafen vises en beregnet fremstillngspris pr. afgrødeenhed med og uden korrektion for arbejdstid og fri kapacitet."]

{"sheet":"Oplysninger","index":1,"n_rows":36,"n_cols":17,"rows_kept":36,"cut":false,"hidden":false,"merged":[[18,7,23,7],[33,1,34,7],[35,1,36,7],[2,3,2,5],[29,1,29,2]]}
[]
[]
[null,null,null,"Oplysninger i mørkeblå felter stammer fra regnskabet. Kan overskrives via de lyseblå felter til højre for. De grønne celler er der en drop down boks, der kan vælges oplysninger til.",null,null,null,null,null,"Celler som skal skjules"]
[]
[null,"Oplysninger om bedrift og forpagtning"]
[]
[null,"Basisoplysninger"]
[null,"CVR.nr.",null,{"$f":"IF(F8<>\"\",F8,J8)","v":38264125},null,38264125,null,null,null,{"$f":"IFERROR(VLOOKUP(L8,#REF!,7,FALSE),\"\")","v":""},null,6425]
[null,"Forpagtet areal (ha)?",null,{"$f":"IF(F9<>\"\",F9,J9)","v":97},null,97,null,null,null,{"$f":"IFERROR(VLOOKUP(L9,#REF!,7,FALSE),\"\")","v":""},null,3911]
[null,"Jordbonitet?",null,{"$f":"IF(F10<>\"\",F10,IF(J10=1,Datagrundlag!C8,IF(J10=2,Datagrundlag!C7,IF(J10=5,Datagrundlag!C6,\"\"))))","v":"sandjord med vanding"},null,"sandjord med vanding",null,null,null,{"$f":"IFERROR(VLOOKUP(L10,#REF!,7,FALSE),\"\")","v":""},null,"JB_type","sandjord m vand = 1 sandjord u vand = 2 lerjord = 5"]
[null,"Gødskning med husdyrgødning?",null,"Ja",null,null,null,null,null,{"$f":"IF(D11=\"Ja\",\" med gylle\",\" uden gylle\")","v":" med gylle"}]
[null,"Anvendes der udelukkende maskinstation?",null,"Nej"]
[null,"Har du ledig arbejdstid?",null,"Ja","*"]
[null,{"$f":"IF(D13=\"Nej\",\" \",\"Hvis ja, hvad vil du sælge den til (kr/t)?\")","v":"Hvis ja, hvad vil du sælge den til (kr/t)?"},null,100]
[null,"Har du ledig maskinkapacitet?",null,"Nej","*"]
[null,"Er du kornsælger?",null,{"$f":"IF(F16=\"\",IF(OR(J16<>0,K16<>0),IF(J16>K16*(-1),\"Ja\",\"Nej\"),\"\"),F16)","v":"Ja"},null,"Ja",null,null,null,{"$f":"IFERROR(VLOOKUP(L16,#REF!,7,FALSE),0)","v":0},{"$f":"IFERROR(VLOOKUP(M16,#REF!,7,FALSE),0)","v":0},6905,8201,"6905 salg kv og 8201 køb kv","hvis salg > køb ?"]
[]
[null,"Afgrødevalg - hovedafgrøde#",null,null,null,null,null,null,null,"ha","procent tilbage til afgrøder:"]
[null,"Afgrøde 1","Vårbyg",{"$f":"IFERROR(IF(AND(C19=Datagrundlag!$C$40,Oplysninger!F19=\"\"),0,IF(Oplysninger!F19<>\"\",F19,L19)),0)","v":0.25},null,0.25,null,"Hvis der ændres på afgrødefordelingen udover for \"ingen eller andet\", så HUSK, at summen skal være lig 100%",null,{"$f":"IFERROR(VLOOKUP(C19,Datagrundlag!#REF!,Datagrundlag!#REF!,FALSE),0)","v":0},{"$f":"100%-SUMIFS(Oplysninger!$D$19:$D$24,Oplysninger!$C$19:$C$24,Datagrundlag!C40)","v":1},{"$f":"J19/SUM($J$19:$J$24)*$K$19","v":{"$error":"#DIV/0!"}},null,null,null,null,0.2]
[null,"Afgrøde 2","Vinterhvede",{"$f":"IFERROR(IF(AND(C20=Datagrundlag!$C$40,Oplysninger!F20=\"\"),0,IF(Oplysninger!F20<>\"\",F20,L20)),0)","v":0.5},null,0.5,null,null,null,{"$f":"IFERROR(VLOOKUP(C20,Datagrundlag!#REF!,Datagrundlag!#REF!,FALSE),0)","v":0},null,{"$f":"J20/SUM($J$19:$J$24)*$K$19","v":{"$error":"#DIV/0!"}},null,null,null,null,0.2]
[null,"Afgrøde 3","Vinterraps",{"$f":"IFERROR(IF(AND(C21=Datagrundlag!$C$40,Oplysninger!F21=\"\"),0,IF(Oplysninger!F21<>\"\",F21,L21)),0)","v":0.1},null,0.1,null,null,null,{"$f":"IFERROR(VLOOKUP(C21,Datagrundlag!#REF!,Datagrundlag!#REF!,FALSE),0)","v":0},null,{"$error":"#DIV/0!"},null,null,null,null,0.2]
[null,"Afgrøde 4","Majs til helsæd",{"$f":"IFERROR(IF(AND(C22=Datagrundlag!$C$40,Oplysninger!F22=\"\"),0,IF(Oplysninger!F22<>\"\",F22,L22)),0)","v":0.15},null,0.15,null,null,null,{"$f":"IFERROR(VLOOKUP(C22,Datagrundlag!#REF!,Datagrundlag!#REF!,FALSE),0)","v":0},null,{"$error":"#DIV/0!"},null,null,null,null,0.2]
[null,"Afgrøde 5","Fabriksroer",{"$f":"IFERROR(IF(AND(C23=Datagrundlag!$C$40,Oplysninger!F23=\"\"),0,IF(Oplysninger!F23<>\"\",F23,L23)),0)","v":0},null,0,null,null,null,{"$f":"IFERROR(VLOOKUP(C23,Datagrundlag!#REF!,Datagrundlag!#REF!,FALSE),0)","v":0},null,{"$error":"#DIV/0!"},null,null,null,null,0.1]
[null,"Afgrøde 6","Slætgræs 4 slæt",{"$f":"IFERROR(IF(AND(C24=Datagrundlag!$C$40,Oplysninger!F24=\"\"),0,IF(Oplysninger!F24<>\"\",F24,L24)),0)","v":0},null,0,null,null,null,{"$f":"IFERROR(VLOOKUP(C24,Datagrundlag!#REF!,Datagrundlag!#REF!,FALSE),0)","v":0},null,{"$error":"#DIV/0!"},null,null,null,null,0.1]
[null,null,null,{"$f":"SUM(D19:D24)","v":1}]
[null,"# der beregnes ikke krav til eller økonomi for efterafgrøder"]
[null,"Andre oplysninger"]
[null,"Gødningsværdi eller salgsværdi halm**",null,500,null,"Kr. pr. tons"]
[null,"Forskel mellem pris ved kornkøb og kornsalg",null,12,null,"Kr. pr. hkg"]
[null,"Transportafstand (ud over \"normal\" transportafstand til egne marker)",null,1.5,null,"Km (enkelt)"]
[null,"Transporthastighed gennemsnit",null,25,null,"Km i timen"]
[null,"Transportomkostning (arbejdstid, drift og kapitalomk.)",null,500,null,"Kr. pr. time"]
[]
[null,"* Beregningen med reducerede arbejds- og maskinomkostninger skal anvendes med omtanke! Det er især kritisk at antage \"ledig maskinkapacitet\", der forudsætter, at der ikke beregnes yderligere renter og afskrivninger af de anvendte maskiner. Der vil altid være et ekstra værditab ved ekstra brug, og det bør tages med i vurderingen."]
[]
[null,"** Maskin- og arbejdsomkostninger og beregning af transportomkostninger omfatter både presning og hjemkørsel af halm."]

{"sheet":"Beregninger","index":2,"n_rows":75,"n_cols":16,"rows_kept":75,"cut":false,"hidden":false,"merged":[[25,18,30,18],[42,17,47,17],[34,17,39,17],[34,18,39,18],[42,18,47,18],[25,17,30,17],[74,1,74,24],[34,1,35,1],[45,3,45,4],[46,3,46,4],[47,3,47,4],[42,3,42,4],[43,3,43,4],[44,3,44,4],[57,1,57,9],[63,1,63,9],[71,1,71,9],[43,9,46,9],[35,9,38,9]]}
[null,"Beregning af pris for forpagtning"]
[null,null,null,null,null,"Kalkule/egne","Enhed","Egne værdier",null,null,null,null,null,"Skjules",null,"Skjules"]
[]
[null,"Bruttoudbytte"]
[null,"Udbytter:",{"$f":"IF(Oplysninger!C19=\"Ingen eller andet\",\"\",Oplysninger!C19)","v":"Vårbyg"},{"$f":"IF(OR(Oplysninger!C19=\"Ingen eller andet\",Oplysninger!C19=\"\"),\"\",Oplysninger!C19&\" på \"&Oplysninger!D$10&Oplysninger!J$11)","v":"Vårbyg på sandjord med vanding med gylle"},null,{"$f":"IF(H5=\"\",N5,H5)","v":60},{"$f":"IF(Oplysninger!$C19=\"Majs til helsæd\",\"FEN pr. ha\",IF(Oplysninger!$C19=\"Slætgræs 4 slæt\",\"FEN pr. ha\",\"hkg. pr. ha\"))","v":"hkg. pr. ha"},null,null,{"$f":"IFERROR(_xlfn.IFS(AND(D5<>\"\",F5=0),\"ingen kalkule, intast egen værdi\",D5=\"\",\"Vælge afgrøde, hvis ønsket\"),\"\")","v":""},null,null,null,{"$f":"IF(ISNUMBER(P5),P5,0)","v":60},null,{"$f":"VLOOKUP(D5,Datagrundlag!C$70:E$153,2,FALSE)","v":60}]
[null,null,{"$f":"IF(Oplysninger!C20=\"Ingen eller andet\",\"\",Oplysninger!C20)","v":"Vinterhvede"},{"$f":"IF(OR(Oplysninger!C20=\"Ingen eller andet\",Oplysninger!C20=\"\"),\"\",Oplysninger!C20&\" på \"&Oplysninger!D$10&Oplysninger!J$11)","v":"Vinterhvede på sandjord med vanding med gylle"},null,84,{"$f":"IF(Oplysninger!$C20=\"Majs til helsæd\",\"FEN pr. ha\",IF(Oplysninger!$C20=\"Slætgræs 4 slæt\",\"FEN pr. ha\",\"hkg. pr. ha\"))","v":"hkg. pr. ha"},null,null,{"$f":"IFERROR(_xlfn.IFS(AND(D6<>\"\",F6=0),\"ingen kalkule, intast egen værdi\",D6=\"\",\"Vælge afgrøde, hvis ønsket\"),\"\")","v":""},null,null,null,{"$f":"IF(ISNUMBER(P6),P6,0)","v":84},null,{"$f":"VLOOKUP(D6,Datagrundlag!C$70:F$153,2,FALSE)","v":84}]
[null,null,{"$f":"IF(Oplysninger!C21=\"Ingen eller andet\",\"\",Oplysninger!C21)","v":"Vinterraps"},{"$f":"IF(OR(Oplysninger!C21=\"Ingen eller andet\",Oplysninger!C21=\"\"),\"\",Oplysninger!C21&\" på \"&Oplysninger!D$10&Oplysninger!J$11)","v":"Vinterraps på sandjord med vanding med gylle"},null,40,{"$f":"IF(Oplysninger!$C21=\"Majs til helsæd\",\"FEN pr. ha\",IF(Oplysninger!$C21=\"Slætgræs 4 slæt\",\"FEN pr. ha\",\"hkg. pr. ha\"))","v":"hkg. pr. ha"},null,null,{"$f":"IFERROR(_xlfn.IFS(AND(D7<>\"\",F7=0),\"ingen kalkule, intast egen værdi\",D7=\"\",\"Vælge afgrøde, hvis ønsket\"),\"\")","v":""},null,null,null,40,null,{"$f":"VLOOKUP(D7,Datagrundlag!C$70:F$153,2,FALSE)","v":40}]
[null,null,{"$f":"IF(Oplysninger!C22=\"Ingen eller andet\",\"\",Oplysninger!C22)","v":"Majs til helsæd"},{"$f":"IF(OR(Oplysninger!C22=\"Ingen eller andet\",Oplysninger!C22=\"\"),\"\",Oplysninger!C22&\" på \"&Oplysninger!D$10&Oplysninger!J$11)","v":"Majs til helsæd på sandjord med vanding med gylle"},null,11800,{"$f":"IF(Oplysninger!$C22=\"Majs til helsæd\",\"FEN pr. ha\",IF(Oplysninger!$C22=\"Slætgræs 4 slæt\",\"FEN pr. ha\",\"hkg. pr. ha\"))","v":"FEN pr. ha"},null,null,{"$f":"IFERROR(_xlfn.IFS(AND(D8<>\"\",F8=0),\"ingen kalkule, intast egen værdi\",D8=\"\",\"Vælge afgrøde, hvis ønsket\"),\"\")","v":""},null,null,null,11800,null,{"$f":"VLOOKUP(D8,Datagrundlag!C$70:F$153,2,FALSE)","v":11800}]
[null,null,{"$f":"IF(Oplysninger!C23=\"Ingen eller andet\",\"\",Oplysninger!C23)","v":"Fabriksroer"},{"$f":"IF(OR(Oplysninger!C23=\"Ingen eller andet\",Oplysninger!C23=\"\"),\"\",Oplysninger!C23&\" på \"&Oplysninger!D$10&Oplysninger!J$11)","v":"Fabriksroer på sandjord med vanding med gylle"},null,0,{"$f":"IF(Oplysninger!$C23=\"Majs til helsæd\",\"FEN pr. ha\",IF(Oplysninger!$C23=\"Slætgræs 4 slæt\",\"FEN pr. ha\",\"hkg. pr. ha\"))","v":"hkg. pr. ha"},null,null,{"$f":"IFERROR(_xlfn.IFS(AND(D9<>\"\",F9=0),\"ingen kalkule, intast egen værdi\",D9=\"\",\"Vælge afgrøde, hvis ønsket\"),\"\")","v":"ingen kalkule, intast egen værdi"},null,null,null,0,null,{"$f":"VLOOKUP(D9,Datagrundlag!C$70:F$153,2,FALSE)","v":0}]
[null,null,{"$f":"IF(Oplysninger!C24=\"Ingen eller andet\",\"\",Oplysninger!C24)","v":"Slætgræs 4 slæt"},{"$f":"IF(OR(Oplysninger!C24=\"Ingen eller andet\",Oplysninger!C24=\"\"),\"\",Oplysninger!C24&\" på \"&Oplysninger!D$10&Oplysninger!J$11)","v":"Slætgræs 4 slæt på sandjord med vanding med gylle"},null,10100,{"$f":"IF(Oplysninger!$C24=\"Majs til helsæd\",\"FEN pr. ha\",IF(Oplysninger!$C24=\"Slætgræs 4 slæt\",\"FEN pr. ha\",\"hkg. pr. ha\"))","v":"FEN pr. ha"},null,null,{"$f":"IFERROR(_xlfn.IFS(AND(D10<>\"\",F10=0),\"ingen kalkule, intast egen værdi\",D10=\"\",\"Vælge afgrøde, hvis ønsket\"),\"\")","v":""},null,null,null,10100,null,{"$f":"VLOOKUP(D10,Datagrundlag!C$70:F$153,2,FALSE)","v":10100}]
[null,"Priser:",null,{"$f":"IF(OR(Oplysninger!C19=\"Ingen eller andet\",Oplysninger!C19=\"\"),E5,IF(Oplysninger!C19=\"Vårbyg\",\"Byg\",IF(Oplysninger!C19=\"Vårhvede\",\"Hvede\",IF(Oplysninger!C19=\"Vinterhvede\",\"Hvede\",IF(Oplysninger!C19=\"Vinterraps\",\"Raps\",IF(Oplysninger!C19=\"Vinterbyg\",\"Byg\",IF(Oplysninger!C19=\"Vinterrug\",\"Rug\",Oplysninger!C19)))))))","v":"Byg"},null,{"$f":"IF(H11<>0,H11,IF(AND(H11=\"\",Oplysninger!D$16=\"Ja\"),N11,IF(AND(H11=\"\",Oplysninger!D$16=\"Nej\",Oplysninger!C19=\"Vårbyg\"),N11+Oplysninger!D$29,IF(AND(H11=\"\",Oplysninger!C19=\"Vinterhvede\"),N11+Oplysninger!D$29,IF(AND(H11=\"\",Oplysninger!C19=\"Havre\"),N11+Oplysninger!D$29,IF(AND(H11=\"\",Oplysninger!C19=\"Vinterraps\"),N11+Oplysninger!D$29,IF(AND(H11=\"\",Oplysninger!C19=\"Rug\"),N11+Oplysninger!$D$29,IF(AND(H11=\"\",Oplysninger!C19=\"Vinterbyg\"),N11+Oplysninger!D$29,N11))))))))","v":109},{"$f":"IF(OR(Oplysninger!$C19=\"Majs til helsæd\",Oplysninger!C19=\"Slætgræs 4 slæt\"),\"Kr. pr. FEN\",\"kr. pr. hkg\")","v":"kr. pr. hkg"},null,null,null,null,null,null,109,null,{"$f":"VLOOKUP(D11,Datagrundlag!E$9:F$22,2,FALSE)","v":109}]
[null,null,null,{"$f":"IF(OR(Oplysninger!C20=\"Ingen eller andet\",Oplysninger!C20=\"\"),E6,IF(Oplysninger!C20=\"Vårbyg\",\"Byg\",IF(Oplysninger!C20=\"Vårhvede\",\"Hvede\",IF(Oplysninger!C20=\"Vinterhvede\",\"Hvede\",IF(Oplysninger!C20=\"Vinterraps\",\"Raps\",IF(Oplysninger!C20=\"Vinterbyg\",\"Byg\",IF(Oplysninger!C20=\"Vinterrug\",\"Rug\",Oplysninger!C20)))))))","v":"Hvede"},null,{"$f":"IF(H12<>0,H12,IF(AND(H12=\"\",Oplysninger!D$16=\"Ja\"),N12,IF(AND(H12=\"\",Oplysninger!D$16=\"Nej\",Oplysninger!C20=\"Vårbyg\"),N12+Oplysninger!D$29,IF(AND(H12=\"\",Oplysninger!C20=\"Vinterhvede\"),N12+Oplysninger!D$29,IF(AND(H12=\"\",Oplysninger!C20=\"Havre\"),N12+Oplysninger!D$29,IF(AND(H12=\"\",Oplysninger!C20=\"Vinterraps\"),N12+Oplysninger!D$29,IF(AND(H12=\"\",Oplysninger!C20=\"Rug\"),N12+Oplysninger!$D$29,IF(AND(H12=\"\",Oplysninger!C20=\"Vinterbyg\"),N12+Oplysninger!D$29,N12))))))))","v":115},{"$f":"IF(OR(Oplysninger!$C20=\"Majs til helsæd\",Oplysninger!C20=\"Slætgræs 4 slæt\"),\"Kr. pr. FEN\",\"kr. pr. hkg\")","v":"kr. pr. hkg"},null,null,null,null,null,null,115,null,{"$f":"VLOOKUP(D12,Datagrundlag!E$9:F$22,2,FALSE)","v":115}]
[null,null,null,{"$f":"IF(OR(Oplysninger!C21=\"Ingen eller andet\",Oplysninger!C21=\"\"),E7,IF(Oplysninger!C21=\"Vårbyg\",\"Byg\",IF(Oplysninger!C21=\"Vårhvede\",\"Hvede\",IF(Oplysninger!C21=\"Vinterhvede\",\"Hvede\",IF(Oplysninger!C21=\"Vinterraps\",\"Raps\",IF(Oplysninger!C21=\"Vinterbyg\",\"Byg\",IF(Oplysninger!C21=\"Vinterrug\",\"Rug\",Oplysninger!C21)))))))","v":"Raps"},null,{"$f":"IF(H13<>0,H13,IF(AND(H13=\"\",Oplysninger!D$16=\"Ja\"),N13,IF(AND(H13=\"\",Oplysninger!D$16=\"Nej\",Oplysninger!C21=\"Vårbyg\"),N13+Oplysninger!D$29,IF(AND(H13=\"\",Oplysninger!C21=\"Vinterhvede\"),N13+Oplysninger!D$29,IF(AND(H13=\"\",Oplysninger!C21=\"Havre\"),N13+Oplysninger!D$29,IF(AND(H13=\"\",Oplysninger!C21=\"Vinterraps\"),N13+Oplysninger!D$29,IF(AND(H13=\"\",Oplysninger!C21=\"Rug\"),N13+Oplysninger!$D$29,IF(AND(H13=\"\",Oplysninger!C21=\"Vinterbyg\"),N13+Oplysninger!D$29,N13))))))))","v":280},{"$f":"IF(OR(Oplysninger!$C21=\"Majs til helsæd\",Oplysninger!C21=\"Slætgræs 4 slæt\"),\"Kr. pr. FEN\",\"kr. pr. hkg\")","v":"kr. pr. hkg"},null,null,null,null,null,null,280,null,{"$f":"VLOOKUP(D13,Datagrundlag!E$9:F$22,2,FALSE)","v":280}]
[null,null,null,{"$f":"IF(OR(Oplysninger!C22=\"Ingen eller andet\",Oplysninger!C22=\"\"),E8,IF(Oplysninger!C22=\"Vårbyg\",\"Byg\",IF(Oplysninger!C22=\"Vårhvede\",\"Hvede\",IF(Oplysninger!C22=\"Vinterhvede\",\"Hvede\",IF(Oplysninger!C22=\"Vinterraps\",\"Raps\",IF(Oplysninger!C22=\"Vinterbyg\",\"Byg\",IF(Oplysninger!C22=\"Vinterrug\",\"Rug\",Oplysninger!C22)))))))","v":"Majs til helsæd"},null,{"$f":"IF(H14<>0,H14,IF(AND(H14=\"\",Oplysninger!D$16=\"Ja\"),N14,IF(AND(H14=\"\",Oplysninger!D$16=\"Nej\",Oplysninger!C22=\"Vårbyg\"),N14+Oplysninger!D$29,IF(AND(H14=\"\",Oplysninger!C22=\"Vinterhvede\"),N14+Oplysninger!D$29,IF(AND(H14=\"\",Oplysninger!C22=\"Havre\"),N14+Oplysninger!D$29,IF(AND(H14=\"\",Oplysninger!C22=\"Vinterraps\"),N14+Oplysninger!D$29,IF(AND(H14=\"\",Oplysninger!C22=\"Rug\"),N14+Oplysninger!$D$29,IF(AND(H14=\"\",Oplysninger!C22=\"Vinterbyg\"),N14+Oplysninger!D$29,N14))))))))","v":0},{"$f":"IF(OR(Oplysninger!$C22=\"Majs til helsæd\",Oplysninger!C22=\"Slætgræs 4 slæt\"),\"Kr. pr. FEN\",\"kr. pr. hkg\")","v":"Kr. pr. FEN"},null,null,null,null,null,null,0,null,{"$f":"VLOOKUP(D14,Datagrundlag!E$9:F$22,2,FALSE)","v":""}]
[null,null,null,{"$f":"IF(OR(Oplysninger!C23=\"Ingen eller andet\",Oplysninger!C23=\"\"),E9,IF(Oplysninger!C23=\"Vårbyg\",\"Byg\",IF(Oplysninger!C23=\"Vårhvede\",\"Hvede\",IF(Oplysninger!C23=\"Vinterhvede\",\"Hvede\",IF(Oplysninger!C23=\"Vinterraps\",\"Raps\",IF(Oplysninger!C23=\"Vinterbyg\",\"Byg\",IF(Oplysninger!C23=\"Vinterrug\",\"Rug\",Oplysninger!C23)))))))","v":"Fabriksroer"},null,{"$f":"IF(H15<>0,H15,IF(AND(H15=\"\",Oplysninger!D$16=\"Ja\"),N15,IF(AND(H15=\"\",Oplysninger!D$16=\"Nej\",Oplysninger!C23=\"Vårbyg\"),N15+Oplysninger!D$29,IF(AND(H15=\"\",Oplysninger!C23=\"Vinterhvede\"),N15+Oplysninger!D$29,IF(AND(H15=\"\",Oplysninger!C23=\"Havre\"),N15+Oplysninger!D$29,IF(AND(H15=\"\",Oplysninger!C23=\"Vinterraps\"),N15+Oplysninger!D$29,IF(AND(H15=\"\",Oplysninger!C23=\"Rug\"),N15+Oplysninger!$D$29,IF(AND(H15=\"\",Oplysninger!C23=\"Vinterbyg\"),N15+Oplysninger!D$29,N15))))))))","v":21},{"$f":"IF(OR(Oplysninger!$C23=\"Majs til helsæd\",Oplysninger!C23=\"Slætgræs 4 slæt\"),\"Kr. pr. FEN\",\"kr. pr. hkg\")","v":"kr. pr. hkg"},null,null,null,null,null,null,21,null,{"$f":"VLOOKUP(D15,Datagrundlag!E$9:F$22,2,FALSE)","v":21}]
[null,null,null,{"$f":"IF(OR(Oplysninger!C24=\"Ingen eller andet\",Oplysninger!C24=\"\"),E10,IF(Oplysninger!C24=\"Vårbyg\",\"Byg\",IF(Oplysninger!C24=\"Vårhvede\",\"Hvede\",IF(Oplysninger!C24=\"Vinterhvede\",\"Hvede\",IF(Oplysninger!C24=\"Vinterraps\",\"Raps\",IF(Oplysninger!C24=\"Vinterbyg\",\"Byg\",IF(Oplysninger!C24=\"Vinterrug\",\"Rug\",Oplysninger!C24)))))))","v":"Slætgræs 4 slæt"},null,{"$f":"IF(H16<>0,H16,IF(AND(H16=\"\",Oplysninger!D$16=\"Ja\"),N16,IF(AND(H16=\"\",Oplysninger!D$16=\"Nej\",Oplysninger!C24=\"Vårbyg\"),N16+Oplysninger!D$29,IF(AND(H16=\"\",Oplysninger!C24=\"Vinterhvede\"),N16+Oplysninger!D$29,IF(AND(H16=\"\",Oplysninger!C24=\"Havre\"),N16+Oplysninger!D$29,IF(AND(H16=\"\",Oplysninger!C24=\"Vinterraps\"),N16+Oplysninger!D$29,IF(AND(H16=\"\",Oplysninger!C24=\"Rug\"),N16+Oplysninger!$D$29,IF(AND(H16=\"\",Oplysninger!C24=\"Vinterbyg\"),N16+Oplysninger!D$29,N16))))))))","v":0},{"$f":"IF(OR(Oplysninger!$C24=\"Majs til helsæd\",Oplysninger!C24=\"Slætgræs 4 slæt\"),\"Kr. pr. FEN\",\"kr. pr. hkg\")","v":"Kr. pr. FEN"},null,null,null,null,null,null,0,null,{"$f":"VLOOKUP(D16,Datagrundlag!E$9:F$22,2,FALSE)","v":""}]
[null,"Bruttoudbytte:",null,{"$f":"D5","v":"Vårbyg på sandjord med vanding med gylle"},null,{"$f":"F5*F11","v":6540},"kr. pr. ha"]
[null,null,null,{"$f":"D6","v":"Vinterhvede på sandjord med vanding med gylle"},null,{"$f":"F6*F12","v":9660},"kr. pr. ha"]
[null,null,null,"Vinterraps på sandjord med vanding med gylle",null,{"$f":"F7*F13","v":11200},"kr. pr. ha"]
[null,null,null,"Majs til helsæd på sandjord med vanding med gylle",null,0,"kr. pr. ha"]
[null,null,null,"Fabriksroer på sandjord med vanding med gylle",null,0,"kr. pr. ha"]
[null,null,null,"Slætgræs 4 slæt på sandjord med vanding med gylle",null,0,"kr. pr. ha"]
[null,"Bruttoudbytte i alt (vægtet gennemsnit)",null,null,null,{"$f":"(F17*Oplysninger!D19+F18*Oplysninger!D20+F19*Oplysninger!D21+F20*Oplysninger!D22+F21*Oplysninger!D23+F22*Oplysninger!D24)","v":7585},"kr. pr. ha (vægtet)"]
[null,"Halmindtægt",null,null,null,{"$f":"IF(H24=\"\",N24,H24)","v":1387.5},"kr. pr. ha",null,null,null,null,null,null,1387.5,null,{"$f":"Datagrundlag!E170*Oplysninger!D28/Oplysninger!D9/1000","v":1387.5}]
[null,"Stykomkostninger"]
[null,"Stykomkostninger:",null,{"$f":"IF(OR(Oplysninger!C19=\"Ingen eller andet\",Oplysninger!C19=\"\"),E5,IF(Oplysninger!D$10=\"lerjord\",Oplysninger!C19&Oplysninger!J$11&\" på lerjord\",IF(Oplysninger!D$10=\"Sandjord med vanding\",Oplysninger!C19&Oplysninger!J$11&\" på sandjord med vanding\",Oplysninger!C19&Oplysninger!J$11&\" på sandjord uden vanding\")))","v":"Vårbyg med gylle på sandjord med vanding"},null,{"$f":"IF(H26=\"\",N26,H26)","v":-757},"kr. pr. ha",null,null,null,null,null,null,{"$f":"IF(ISNUMBER(P26),P26,0)","v":-757},null,{"$f":"-VLOOKUP(D26,Datagrundlag!C$174:F$257,2,FALSE)","v":-757}]
[null,null,null,{"$f":"IF(OR(Oplysninger!C20=\"Ingen eller andet\",Oplysninger!C20=\"\"),E6,IF(Oplysninger!D$10=\"lerjord\",Oplysninger!C20&Oplysninger!J$11&\" på lerjord\",IF(Oplysninger!D$10=\"Sandjord med vanding\",Oplysninger!C20&Oplysninger!J$11&\" på sandjord med vanding\",Oplysninger!C20&Oplysninger!J$11&\" på sandjord uden vanding\")))","v":"Vinterhvede med gylle på sandjord med vanding"},null,{"$f":"IF(H27=\"\",N27,H27)","v":-1827},"kr. pr. ha",null,null,null,null,null,null,-1827,null,{"$f":"-VLOOKUP(D27,Datagrundlag!C$174:F$257,2,FALSE)","v":-1827}]
[null,null,null,{"$f":"IF(OR(Oplysninger!C21=\"Ingen eller andet\",Oplysninger!C21=\"\"),E7,IF(Oplysninger!D$10=\"lerjord\",Oplysninger!C21&Oplysninger!J$11&\" på lerjord\",IF(Oplysninger!D$10=\"Sandjord med vanding\",Oplysninger!C21&Oplysninger!J$11&\" på sandjord med vanding\",Oplysninger!C21&Oplysninger!J$11&\" på sandjord uden vanding\")))","v":"Vinterraps med gylle på sandjord med vanding"},null,-2584,"kr. pr. ha",null,null,null,null,null,null,-2584,null,{"$f":"-VLOOKUP(D28,Datagrundlag!C$174:F$257,2,FALSE)","v":-2584}]
[null,null,null,{"$f":"IF(OR(Oplysninger!C22=\"Ingen eller andet\",Oplysninger!C22=\"\"),E8,IF(Oplysninger!D$10=\"lerjord\",Oplysninger!C22&Oplysninger!J$11&\" på lerjord\",IF(Oplysninger!D$10=\"Sandjord med vanding\",Oplysninger!C22&Oplysninger!J$11&\" på sandjord med vanding\",Oplysninger!C22&Oplysninger!J$11&\" på sandjord uden vanding\")))","v":"Majs til helsæd med gylle på sandjord med vanding"},null,-2732,"kr. pr. ha",null,null,null,null,null,null,-2732,null,{"$f":"-VLOOKUP(D29,Datagrundlag!C$174:F$257,2,FALSE)","v":-2732}]
[null,null,null,{"$f":"IF(OR(Oplysninger!C23=\"Ingen eller andet\",Oplysninger!C23=\"\"),E9,IF(Oplysninger!D$10=\"lerjord\",Oplysninger!C23&Oplysninger!J$11&\" på lerjord\",IF(Oplysninger!D$10=\"Sandjord med vanding\",Oplysninger!C23&Oplysninger!J$11&\" på sandjord med vanding\",Oplysninger!C23&Oplysninger!J$11&\" på sandjord uden vanding\")))","v":"Fabriksroer med gylle på sandjord med vanding"},null,0,"kr. pr. ha",null,null,null,null,null,null,0,null,{"$f":"-VLOOKUP(D30,Datagrundlag!C$174:F$257,2,FALSE)","v":0}]
[null,null,null,{"$f":"IF(OR(Oplysninger!C24=\"Ingen eller andet\",Oplysninger!C24=\"\"),E10,IF(Oplysninger!D$10=\"lerjord\",Oplysninger!C24&Oplysninger!J$11&\" på lerjord\",IF(Oplysninger!D$10=\"Sandjord med vanding\",Oplysninger!C24&Oplysninger!J$11&\" på sandjord med vanding\",Oplysninger!C24&Oplysninger!J$11&\" på sandjord uden vanding\")))","v":"Slætgræs 4 slæt med gylle på sandjord med vanding"},null,-1252,"kr. pr. ha",null,null,null,null,null,null,-1252,null,{"$f":"-VLOOKUP(D31,Datagrundlag!C$174:F$257,2,FALSE)","v":-1252}]
[null,"Stykomkostninger (vægtet gennemsnit)*",null,null,null,{"$f":"F26*Oplysninger!D19+F27*Oplysninger!D20+F28*Oplysninger!D21+F29*Oplysninger!D22+F30*Oplysninger!D23+F31*Oplysninger!D24","v":-1770.95},"kr. pr. ha (vægtet)"]
[null,"Dækningsbidrag",null,null,null,{"$f":"F23+F24+F32","v":7201.55},"kr. pr. ha"]
[null,"Kapacitetsomkostninger"]
[null,"Maskinomk. inkl. arb.omk.:",null,{"$f":"IF(OR(Oplysninger!C19=\"Ingen eller andet\",Oplysninger!C19=\"\"),E5,IF(Oplysninger!D$10=\"lerjord\",Oplysninger!C19&Oplysninger!J$11&\" på lerjord\",IF(Oplysninger!D$10=\"Sandjord med vanding\",Oplysninger!C19&Oplysninger!J$11&\" på sandjord med vanding\",Oplysninger!C19&Oplysninger!J$11&\" på sandjord uden vanding\")))","v":"Vårbyg med gylle på sandjord med vanding"},null,{"$f":"IF(H35=\"\",N35,H35)","v":-7301},"kr. pr. ha",null,null,null,null,null,null,{"$f":"IF(ISNUMBER(P35),P35,0)","v":-7301},null,{"$f":"-VLOOKUP(D35,Datagrundlag!$C$174:$E$257,3,FALSE)","v":-7301}]
[null,null,null,{"$f":"IF(OR(Oplysninger!C20=\"Ingen eller andet\",Oplysninger!C20=\"\"),E6,IF(Oplysninger!D$10=\"lerjord\",Oplysninger!C20&Oplysninger!J$11&\" på lerjord\",IF(Oplysninger!D$10=\"Sandjord med vanding\",Oplysninger!C20&Oplysninger!J$11&\" på sandjord med vanding\",Oplysninger!C20&Oplysninger!J$11&\" på sandjord uden vanding\")))","v":"Vinterhvede med gylle på sandjord med vanding"},null,-8469,"kr. pr. ha",null,null,null,null,null,null,-8469,null,{"$f":"-VLOOKUP(D36,Datagrundlag!$C$174:$E$257,3,FALSE)","v":-8469}]
[null,null,null,{"$f":"IF(OR(Oplysninger!C21=\"Ingen eller andet\",Oplysninger!C21=\"\"),E7,IF(Oplysninger!D$10=\"lerjord\",Oplysninger!C21&Oplysninger!J$11&\" på lerjord\",IF(Oplysninger!D$10=\"Sandjord med vanding\",Oplysninger!C21&Oplysninger!J$11&\" på sandjord med vanding\",Oplysninger!C21&Oplysninger!J$11&\" på sandjord uden vanding\")))","v":"Vinterraps med gylle på sandjord med vanding"},null,-7556,"kr. pr. ha",null,null,null,null,null,null,-7556,null,{"$f":"-VLOOKUP(D37,Datagrundlag!$C$174:$E$257,3,FALSE)","v":-7556}]
[null,null,null,{"$f":"IF(OR(Oplysninger!C22=\"Ingen eller andet\",Oplysninger!C22=\"\"),E8,IF(Oplysninger!D$10=\"lerjord\",Oplysninger!C22&Oplysninger!J$11&\" på lerjord\",IF(Oplysninger!D$10=\"Sandjord med vanding\",Oplysninger!C22&Oplysninger!J$11&\" på sandjord med vanding\",Oplysninger!C22&Oplysninger!J$11&\" på sandjord uden vanding\")))","v":"Majs til helsæd med gylle på sandjord med vanding"},null,-6823,"kr. pr. ha",null,null,null,null,null,null,-6823,null,{"$f":"-VLOOKUP(D38,Datagrundlag!$C$174:$E$257,3,FALSE)","v":-6823}]
[null,null,null,{"$f":"IF(OR(Oplysninger!C23=\"Ingen eller andet\",Oplysninger!C23=\"\"),E9,IF(Oplysninger!D$10=\"lerjord\",Oplysninger!C23&Oplysninger!J$11&\" på lerjord\",IF(Oplysninger!D$10=\"Sandjord med vanding\",Oplysninger!C23&Oplysninger!J$11&\" på sandjord med vanding\",Oplysninger!C23&Oplysninger!J$11&\" på sandjord uden vanding\")))","v":"Fabriksroer med gylle på sandjord med vanding"},null,0,"kr. pr. ha",null,null,null,null,null,null,0,null,{"$f":"-VLOOKUP(D39,Datagrundlag!$C$174:$E$257,3,FALSE)","v":0}]
[null,null,null,{"$f":"IF(OR(Oplysninger!C24=\"Ingen eller andet\",Oplysninger!C24=\"\"),E10,IF(Oplysninger!D$10=\"lerjord\",Oplysninger!C24&Oplysninger!J$11&\" på lerjord\",IF(Oplysninger!D$10=\"Sandjord med vanding\",Oplysninger!C24&Oplysninger!J$11&\" på sandjord med vanding\",Oplysninger!C24&Oplysninger!J$11&\" på sandjord uden vanding\")))","v":"Slætgræs 4 slæt med gylle på sandjord med vanding"},null,-9496,"kr. pr. ha",null,null,null,null,null,null,-9496,null,{"$f":"-VLOOKUP(D40,Datagrundlag!$C$174:$E$257,3,FALSE)","v":-9496}]
[null,"Maskinomk. inkl. arbejde (vægtet gennemsnit)",null,null,null,{"$f":"F35*Oplysninger!D19+F36*Oplysninger!D20+F37*Oplysninger!D21+F38*Oplysninger!D22+F39*Oplysninger!D23+F40*Oplysninger!D24","v":-7838.8},"kr. pr. ha (vægtet)",null,null,null,null,null,null,0]
[null,"Maskinomkostninger inkl. arbejde (korrigeret for arbejdstid og kapacitet)",null,null,null,{"$f":"-Udskrift!E58","v":-6427.8160000000007},"kr. pr. ha",null,null,null,null,null,null,0]
[null,"Transportomkostninger:",null,{"$f":"IF(D11=0,\"\",D11)","v":"Byg"},null,{"$f":"IF(Oplysninger!D$9=0,0,IF(H43=\"\",N43,H43))","v":-148.70103092783506},"kr. pr. ha",null,null,null,null,null,null,{"$f":"IF(D5&E5=\"\",0,P43)","v":-148.70103092783506},null,{"$f":"-Transport!D$27*Oplysninger!D$30*Oplysninger!D$32/Oplysninger!D$31*2","v":-148.70103092783506}]
[null,null,null,{"$f":"IF(D12=0,\"\",D12)","v":"Hvede"},null,{"$f":"IF(Oplysninger!D$9=0,0,IF(H44=\"\",N44,H44))","v":-154.88659793814435},"kr. pr. ha",null,null,"Gå til trans- portomkost-ninger",null,null,null,-154.88659793814435,null,{"$f":"-Transport!F$27*Oplysninger!D$30*Oplysninger!D$32/Oplysninger!D$31*2","v":-154.88659793814435}]
[null,null,null,"Raps",null,{"$f":"IF(Oplysninger!D$9=0,0,IF(H45=\"\",N45,H45))","v":-202.26804123711338},"kr. pr. ha",null,null,null,null,null,null,-202.26804123711338,null,{"$f":"-Transport!H$27*Oplysninger!D$30*Oplysninger!D$32/Oplysninger!D$31*2","v":-202.26804123711338}]
[null,null,null,"Majs til helsæd",null,{"$f":"IF(Oplysninger!D$9=0,0,IF(H46=\"\",N46,H46))","v":-224.74226804123714},"kr. pr. ha",null,null,null,null,null,null,-224.74226804123714,null,{"$f":"-Transport!J$27*Oplysninger!D$30*Oplysninger!D$32/Oplysninger!D$31*2","v":-224.74226804123714}]
[null,null,null,"Fabriksroer",null,{"$f":"IF(Oplysninger!D$9=0,0,IF(H47=\"\",N47,H47))","v":0},"kr. pr. ha",null,null,null,null,null,null,0,null,{"$f":"-Transport!L$27*Oplysninger!D$30*Oplysninger!D$32/Oplysninger!D$31*2","v":0}]
[null,null,null,"Slætgræs 4 slæt",null,{"$f":"IF(Oplysninger!D$9=0,0,IF(H48=\"\",N48,H48))","v":0},"kr. pr. ha",null,null,null,null,null,null,0,null,{"$f":"-Transport!N$27*Oplysninger!D$30*Oplysninger!D$32/Oplysninger!D$31*2","v":0}]
[null,"Transportomkostninger (vægtet gennemsnit)",null,null,null,{"$f":"F43*Oplysninger!D19+F44*Oplysninger!D20+F45*Oplysninger!D21+F46*Oplysninger!D22+F47*Oplysninger!D23+F48*Oplysninger!D24","v":-168.55670103092785},"kr. pr. ha (vægtet)",null,null,null,null,null,null,0]
[null,"Rest til forpagtning ekskl. andre omk. og EU-støtte",null,null,null,{"$f":"F33+F42+F49","v":605.17729896907167},"kr. pr. ha",null,null,null,null,null,null,0]
[null,"Andre omkostninger **",null,null,null,{"$f":"IF(H51=\"\",N51,H51)","v":-500},"kr. pr. ha",-500,null,null,null,null,null,0]
[null,"Rest til forpagtning ekskl. EU-støtte",null,null,null,{"$f":"F50+F51","v":105.17729896907167},"kr. pr. ha",null,null,null,null,null,null,0]
[null,"EU-støtte",null,null,null,{"$f":"IF(H53=\"\",N53,H53)","v":1900},"kr. pr. ha",1900,null,null,null,null,null,0]
[null,"Forpagtningsafgift",null,null,null,{"$f":"IF(H54=\"\",N54,H54)","v":-4000},"kr. pr. ha",-4000,null,null,null,null,null,0]
[null,"Fortjeneste til forpagteren inkl. EU-støtte",null,null,null,{"$f":"F52+F53+F54","v":-1994.8227010309283},"kr. pr. ha",null,null,null,null,null,null,0]
[null,null,null,null,null,null,null,null,null,null,null,null,null,0]
[]
[null,"* For alle kalkuler angives en uspecificeret omkostning til ”øvrige opgaver” på ca. 500 kr. pr. ha pr. år. Denne post dækker omkostninger til f.eks.:"]
[null,"• Tilsyn"]
[null,"• Stensamling"]
[null,"• Lugning af flyvehavre"]
[null,"• Forgæves kørsel (når det regner, lige når man skulle i gang)"]
[]
[null,"** Ud over ovennævnte poster er der altid omkostninger til maskiner og arbejdstid, som ikke kan henføres direkte til den enkelte afgrøde. Der kan være tale om: "]
[null,"• Kalkning "]
[null,"• Brug af glyphosat "]
[null,"• Klipning af hegn "]
[null,"• Renovering mv. af dræn "]
[null,"• Vedligeholdelse af veje "]
[null,"• Generel driftsledelse af den samlede markdrift "]
[null,"• Osv. "]
[null,"Disse poster, som ikke indgår i den enkelte kalkule, skal medregnes, når man skal beregne de samlede arbejds- og maskinomkostninger på bedriften. Beløbet kan variere meget fra bedrift til bedrift, men i omegnen af 5-10 pct. af de omkostninger, der er totalt på de enkelte afgrøder, er ikke ualmindeligt. "]
[]
[null,"Påvirkning af likviditeten"]
[null,"Vær opmærksom på en eventuel likvid periodeforskydning mellem betaling af forpagtningsafgift, omkostninger til drift af markerne og indtægterne fra afgrøderne."]

{"sheet":"Udskrift","index":3,"n_rows":59,"n_cols":10,"rows_kept":59,"cut":false,"hidden":false,"merged":[[41,1,41,3],[15,4,15,5],[16,4,16,5],[17,4,17,5],[18,4,18,5],[19,4,19,5]]}
[]
[null,"Resultat og sammenligning"]
[]
[null,{"$f":"Beregninger!B23","v":"Bruttoudbytte i alt (vægtet gennemsnit)"},null,null,null,{"$f":"IF(B4=Beregninger!B23,Beregninger!F23,\"\")","v":7585}]
[null,{"$f":"Beregninger!B32","v":"Stykomkostninger (vægtet gennemsnit)*"},null,null,null,{"$f":"IF(B5=Beregninger!B32,Beregninger!F32,\"\")","v":-1770.95}]
[null,{"$f":"Beregninger!B33","v":"Dækningsbidrag"},null,null,null,{"$f":"IF(B6=Beregninger!B33,Beregninger!F33,\"\")","v":7201.55}]
[null,{"$f":"Beregninger!B42","v":"Maskinomkostninger inkl. arbejde (korrigeret for arbejdstid og kapacitet)"},null,null,null,{"$f":"IF(B7=Beregninger!B42,Beregninger!F42,\"\")","v":-6427.8160000000007}]
[null,{"$f":"Beregninger!B49","v":"Transportomkostninger (vægtet gennemsnit)"},null,null,null,{"$f":"IF(B8=Beregninger!B49,Beregninger!F49,\"\")","v":-168.55670103092785}]
[null,{"$f":"Beregninger!B51","v":"Andre omkostninger **"},null,null,null,{"$f":"IF(B9=Beregninger!B51,Beregninger!F51,\"\")","v":-500}]
[null,{"$f":"Beregninger!B52","v":"Rest til forpagtning ekskl. EU-støtte"},null,null,null,{"$f":"IF(B10=Beregninger!B52,Beregninger!F52,\"\")","v":105.17729896907167}]
[null,{"$f":"Beregninger!B53","v":"EU-støtte"},null,null,null,{"$f":"IF(B11=Beregninger!B53,Beregninger!F53,\"\")","v":1900}]
[null,{"$f":"Beregninger!B54","v":"Forpagtningsafgift"},null,null,null,{"$f":"IF(B12=Beregninger!B54,Beregninger!F54,\"\")","v":-4000}]
[null,{"$f":"Beregninger!B55","v":"Fortjeneste til forpagteren inkl. EU-støtte"},null,null,null,{"$f":"IF(B13=Beregninger!B55,Beregninger!F55,\"\")","v":-1994.8227010309283}]
[]
[null,"Afgrødefordeling",null,"Vælg sammenligningsgrupper til graf:"]
[null,null,null,"Driftsgren","Husdyrproduktion"]
[null,{"$f":"IF(H20<=50,\"For få observationer\",\"\")","v":""},null,"Jordbonitet","JB5&6"]
[null,null,null,"Landsdel","Alle"]
[]
[null,null,null,null,null,null,null,{"$f":"IFERROR(+SUMIFS(Tabel1[x.Antal],Tabel1[Landsdel],$E$18,Tabel1[FTO_jbx],$E$17,Tabel1[type],$E$16),\"\")","v":557}]
[]
[]
[null,"Benchmark"]
[null,{"$f":"\"Antal observationer: \"&IFERROR(+SUMIFS(Tabel1[x.Antal],Tabel1[Landsdel],$E$18,Tabel1[FTO_jbx],$E$17,Tabel1[type],$E$16),\"\")","v":"Antal observationer: 557"}]
[null,null,null,null,null,null,null,"Gennemsnitlige forpagtningspriser pr. ha"]
[null,null,null,null,null,null,null,{"$f":"\"(\"&E16&\", \"&E18&\", \"&E17&\")\"","v":"(Husdyrproduktion, Alle, JB5&6)"}]
[]
[]
[]
[]
[]
[]
[null,null,null,null,null,null,null,"Interval","Kr. pr. ha"]
[null,null,null,null,null,null,null,"Bedrift",{"$f":"-1*F12","v":4000}]
[null,null,null,null,null,null,null,"0-20%",{"$f":"IFERROR(+SUMIFS(INDIRECT(\"Tabel1[\"&$J35&\"]\"),Tabel1[Landsdel],$E$18,Tabel1[FTO_jbx],$E$17,Tabel1[type],$E$16),\"\")","v":2627},"x.MQ00_20x"]
[null,null,null,null,null,null,null,"20-40%",{"$f":"IFERROR(+SUMIFS(INDIRECT(\"Tabel1[\"&$J36&\"]\"),Tabel1[Landsdel],$E$18,Tabel1[FTO_jbx],$E$17,Tabel1[type],$E$16),\"\")","v":3782},"x.MQ20_40x"]
[null,null,null,null,null,null,null,"40-60%",{"$f":"IFERROR(+SUMIFS(INDIRECT(\"Tabel1[\"&$J37&\"]\"),Tabel1[Landsdel],$E$18,Tabel1[FTO_jbx],$E$17,Tabel1[type],$E$16),\"\")","v":4347},"x.MQ40_60x"]
[null,null,null,null,null,null,null,"60-80%",{"$f":"IFERROR(+SUMIFS(INDIRECT(\"Tabel1[\"&$J38&\"]\"),Tabel1[Landsdel],$E$18,Tabel1[FTO_jbx],$E$17,Tabel1[type],$E$16),\"\")","v":4928},"x.MQ60_80x"]
[null,null,null,null,null,null,null,"80-100%",{"$f":"IFERROR(+SUMIFS(INDIRECT(\"Tabel1[\"&$J39&\"]\"),Tabel1[Landsdel],$E$18,Tabel1[FTO_jbx],$E$17,Tabel1[type],$E$16),\"\")","v":6201},"x.MQ80_100x"]
[null,"Figur: Gennemsnitlige forpagtningspriser i hver gruppe fra laveste til højeste"]
[]
[null,"Fremstillingspris pr. afgrødeenhed\n(halmindtægt, stykomkostninger, maskin- og arbejdsomkostninger inkl. transport, andre omkostninger, EU-støtte og forpagtningsafgift)",null,null,"Ikke korrigeret for ledig arbejdstid og fri kapacitet","Korrigeret for ledig arbejdstid og fri kapacitet"]
[null,{"$f":"IF(Beregninger!E5=\"\",Beregninger!D5,Beregninger!E5)","v":"Vårbyg på sandjord med vanding med gylle"},null,null,{"$f":"IF(Beregninger!F5=0,\"\",(-Beregninger!F26-Beregninger!F35-Beregninger!F43-Beregninger!$F$51-Beregninger!$F$53-Beregninger!$F$54-(Datagrundlag!D164*Oplysninger!D$28/1000))/Beregninger!F5)","v":154.27835051546393},{"$f":"IF(Beregninger!F5=0,\"\",\n(IF(AND(Beregninger!H35=\"\",Oplysninger!D12=\"Ja\"),Beregninger!F35,\nIF(AND(Beregninger!H35=\"\",Oplysninger!D12=\"Nej\",Oplysninger!D13=\"Ja\",Oplysninger!D15=\"Ja\"),-Beregninger!F35*(Datagrundlag!F33+Datagrundlag!F35*Oplysninger!D14/Datagrundlag!C17),\nIF(AND(Beregninger!H35=\"\",Oplysninger!D12=\"Nej\",Oplysninger!D13=\"Ja\",Oplysninger!D15=\"Nej\"),-Beregninger!F35*(Datagrundlag!F33+Datagrundlag!F35*(Oplysninger!D14/Datagrundlag!C17)+Datagrundlag!F34),\nIF(AND(Beregninger!H35=\"\",Oplysninger!D12=\"Nej\",Oplysninger!D13=\"Nej\",Oplysninger!D15=\"Ja\"),-Beregninger!F35*(Datagrundlag!F33+Datagrundlag!F35),\nIF(AND(Beregninger!H35=\"\",Oplysninger!D13=\"Nej\",Oplysninger!D15=\"Nej\"),-Beregninger!F35,-Beregninger!H35)))))-Beregninger!F26-Beregninger!F43-Beregninger!F51-Beregninger!F53-Beregninger!F54-(Datagrundlag!D164*Oplysninger!D28/1000))/Beregninger!F5)","v":132.37535051546394}]
[null,{"$f":"IF(Beregninger!E6=\"\",Beregninger!D6,Beregninger!E6)","v":"Vinterhvede på sandjord med vanding med gylle"},null,null,{"$f":"IF(Beregninger!F6=0,\"\",(-Beregninger!F27-Beregninger!F36-Beregninger!F44-Beregninger!$F$51-Beregninger!$F$53-Beregninger!$F$54-(Datagrundlag!D165*Oplysninger!D$28/1000))/Beregninger!F6)","v":131.5581737849779},{"$f":"IF(Beregninger!F6=0,\"\",\n(IF(AND(Beregninger!H36=\"\",Oplysninger!D12=\"Ja\"),Beregninger!F36,\nIF(AND(Beregninger!H36=\"\",Oplysninger!D12=\"Nej\",Oplysninger!D13=\"ja\",Oplysninger!D15=\"Ja\"),-Beregninger!F36*(Datagrundlag!F33+Datagrundlag!F35*Oplysninger!D14/Datagrundlag!C17),\nIF(AND(Beregninger!H36=\"\",Oplysninger!D12=\"Nej\",Oplysninger!D13=\"Ja\",Oplysninger!D15=\"Nej\"),-Beregninger!F36*(Datagrundlag!F33+Datagrundlag!F35*(Oplysninger!D14/Datagrundlag!C17)+Datagrundlag!F34),\nIF(AND(Beregninger!H36=\"\",Oplysninger!D12=\"Nej\",Oplysninger!D13=\"Nej\",Oplysninger!D15=\"Ja\"),-Beregninger!F36*(Datagrundlag!F33+Datagrundlag!F35),\nIF(AND(Beregninger!H36=\"\",Oplysninger!D13=\"Nej\",Oplysninger!D15=\"Nej\"),-Beregninger!F36,-Beregninger!H36)))))-Beregninger!F27-Beregninger!F44-Beregninger!F51-Beregninger!F53-Beregninger!F54-(Datagrundlag!D165*Oplysninger!D28/1000))/Beregninger!F6)","v":113.41031664212079}]
[null,{"$f":"IF(Beregninger!E7=\"\",Beregninger!D7,Beregninger!E7)","v":"Vinterraps på sandjord med vanding med gylle"},null,null,{"$f":"IF(Beregninger!F7=0,\"\",(-Beregninger!F28-Beregninger!F37-Beregninger!F45-Beregninger!$F$51-Beregninger!$F$53-Beregninger!$F$54-(Datagrundlag!D166*Oplysninger!D$28/1000))/Beregninger!F7)","v":323.55670103092785},{"$f":"IF(Beregninger!F7=0,\"\",(IF(AND(Beregninger!H37=\"\",Oplysninger!D12=\"Ja\"),Beregninger!F37,\nIF(AND(Beregninger!H37=\"\",Oplysninger!D12=\"Nej\",Oplysninger!D13=\"ja\",Oplysninger!D15=\"Ja\"),-Beregninger!F37*(Datagrundlag!F33+Datagrundlag!F35*Oplysninger!D14/Datagrundlag!C17),\nIF(AND(Beregninger!H37=\"\",Oplysninger!D12=\"Nej\",Oplysninger!D13=\"Ja\",Oplysninger!D15=\"Nej\"),-Beregninger!F37*(Datagrundlag!F33+Datagrundlag!F35*(Oplysninger!D14/Datagrundlag!C17)+Datagrundlag!F34),\nIF(AND(Beregninger!H37=\"\",Oplysninger!D12=\"Nej\",Oplysninger!D13=\"Nej\",Oplysninger!D15=\"Ja\"),-Beregninger!F37*(Datagrundlag!F33+Datagrundlag!F35),\nIF(AND(Beregninger!H37=\"\",Oplysninger!D13=\"Nej\",Oplysninger!D15=\"Nej\"),-Beregninger!F37,-Beregninger!H37)))))-Beregninger!F28-Beregninger!F45-Beregninger!F51-Beregninger!F53-Beregninger!F54-(Datagrundlag!D166*Oplysninger!D28/1000))/Beregninger!F7)","v":289.55470103092784}]
[null,{"$f":"IF(Beregninger!E8=\"\",Beregninger!D8,Beregninger!E8)","v":"Majs til helsæd på sandjord med vanding med gylle"},null,null,{"$f":"IF(Beregninger!F8=0,\"\",(-Beregninger!F29-Beregninger!F38-Beregninger!F46-Beregninger!$F$51-Beregninger!$F$53-Beregninger!$F$54-(Datagrundlag!D167*Oplysninger!D$28/1000))/Beregninger!F8)","v":1.0491307006814607},{"$f":"IF(Beregninger!F8=0,\"\",(IF(AND(Beregninger!H38=\"\",Oplysninger!D12=\"Ja\"),Beregninger!F38,\nIF(AND(Beregninger!H38=\"\",Oplysninger!D12=\"Nej\",Oplysninger!D13=\"ja\",Oplysninger!D15=\"Ja\"),-Beregninger!F38*(Datagrundlag!F33+Datagrundlag!F35*Oplysninger!D14/Datagrundlag!C17),\nIF(AND(Beregninger!H38=\"\",Oplysninger!D12=\"Nej\",Oplysninger!D13=\"Ja\",Oplysninger!D15=\"Nej\"),-Beregninger!F38*(Datagrundlag!F33+Datagrundlag!F35*(Oplysninger!D14/Datagrundlag!C17)+Datagrundlag!F34),\nIF(AND(Beregninger!H38=\"\",Oplysninger!D12=\"Nej\",Oplysninger!D13=\"Nej\",Oplysninger!D15=\"Ja\"),-Beregninger!F38*(Datagrundlag!F33+Datagrundlag!F35),\nIF(AND(Beregninger!H38=\"\",Oplysninger!D13=\"Nej\",Oplysninger!D15=\"Nej\"),-Beregninger!F38,-Beregninger!H38)))))-Beregninger!F29-Beregninger!F46-Beregninger!F51-Beregninger!F53-Beregninger!F54-(Datagrundlag!D167*Oplysninger!D28/1000))/Beregninger!F8)","v":0.94505103966451165}]
[null,{"$f":"IF(Beregninger!E9=\"\",Beregninger!D9,Beregninger!E9)","v":"Fabriksroer på sandjord med vanding med gylle"},null,null,{"$f":"IF(Beregninger!F9=0,\"\",(-Beregninger!F30-Beregninger!F39-Beregninger!F47-Beregninger!$F$51-Beregninger!$F$53-Beregninger!$F$54-(Datagrundlag!D168*Oplysninger!D$28/1000))/Beregninger!F9)","v":""},{"$f":"IF(Beregninger!F9=0,\"\",(IF(AND(Beregninger!H39=\"\",Oplysninger!D12=\"Ja\"),Beregninger!F39,\nIF(AND(Beregninger!H39=\"\",Oplysninger!D12=\"Nej\",Oplysninger!D13=\"ja\",Oplysninger!D15=\"Ja\"),-Beregninger!F39*(Datagrundlag!F33+Datagrundlag!F35*Oplysninger!D14/Datagrundlag!C17),\nIF(AND(Beregninger!H39=\"\",Oplysninger!D12=\"Nej\",Oplysninger!D13=\"Ja\",Oplysninger!D15=\"Nej\"),-Beregninger!F39*(Datagrundlag!F33+Datagrundlag!F35*(Oplysninger!D14/Datagrundlag!C17)+Datagrundlag!F34),\nIF(AND(Beregninger!H39=\"\",Oplysninger!D12=\"Nej\",Oplysninger!D13=\"Nej\",Oplysninger!D15=\"Ja\"),-Beregninger!F39*(Datagrundlag!F33+Datagrundlag!F35),\nIF(AND(Beregninger!H39=\"\",Oplysninger!D13=\"Nej\",Oplysninger!D15=\"Nej\"),-Beregninger!F39,-Beregninger!H39)))))-Beregninger!F30-Beregninger!F47-Beregninger!F51-Beregninger!F53-Beregninger!F54-(Datagrundlag!D168*Oplysninger!D28/1000))/Beregninger!F9)","v":""}]
[null,{"$f":"IF(Beregninger!E10=\"\",Beregninger!D10,Beregninger!E10)","v":"Slætgræs 4 slæt på sandjord med vanding med gylle"},null,null,{"$f":"IF(Beregninger!F10=0,\"\",(-Beregninger!F31-Beregninger!F40-Beregninger!F48-Beregninger!$F$51-Beregninger!$F$53-Beregninger!$F$54-(Datagrundlag!D169*Oplysninger!D$28/1000))/Beregninger!F10)","v":1.3215841584158416},{"$f":"IF(Beregninger!F10=0,\"\",(IF(AND(Beregninger!H40=\"\",Oplysninger!D12=\"Ja\"),Beregninger!F40,\nIF(AND(Beregninger!H40=\"\",Oplysninger!D12=\"Nej\",Oplysninger!D13=\"ja\",Oplysninger!D15=\"Ja\"),-Beregninger!F40*(Datagrundlag!F33+Datagrundlag!F35*Oplysninger!D14/Datagrundlag!C17),\nIF(AND(Beregninger!H40=\"\",Oplysninger!D12=\"Nej\",Oplysninger!D13=\"Ja\",Oplysninger!D15=\"Nej\"),-Beregninger!F40*(Datagrundlag!F33+Datagrundlag!F35*(Oplysninger!D14/Datagrundlag!C17)+Datagrundlag!F34),\nIF(AND(Beregninger!H40=\"\",Oplysninger!D12=\"Nej\",Oplysninger!D13=\"Nej\",Oplysninger!D15=\"Ja\"),-Beregninger!F40*(Datagrundlag!F33+Datagrundlag!F35),\nIF(AND(Beregninger!H40=\"\",Oplysninger!D13=\"Nej\",Oplysninger!D15=\"Nej\"),-Beregninger!F40,-Beregninger!H40)))))-Beregninger!F31-Beregninger!F48-Beregninger!F51-Beregninger!F53-Beregninger!F54-(Datagrundlag!D169*Oplysninger!D28/1000))/Beregninger!F10)","v":1.1523485148514854}]
[]
[]
[null,"Prod.omk. i alt uden korektion","Prod.omk. i alt med korektion","Maskinomk. pr. afgrøde","Maskinomk. i alt"]
[null,{"$f":"E43*Beregninger!F5*Oplysninger!D19","v":2314.1752577319589},{"$f":"F43*Beregninger!F5*Oplysninger!D19","v":1985.6302577319591},{"$f":"IF(Beregninger!F5=0,\"\",F43-(-Beregninger!F26-Beregninger!F43-Beregninger!F51-Beregninger!F53-Beregninger!F54-(Datagrundlag!D164*Oplysninger!D28/1000))/Beregninger!F5)","v":99.780333333333346},{"$f":"IF(Beregninger!F5=0,\"\",D52*Oplysninger!D19*Beregninger!F5)","v":1496.7050000000002}]
[null,{"$f":"E44*Beregninger!F6*Oplysninger!D20","v":5525.4432989690713},{"$f":"F44*Beregninger!F6*Oplysninger!D20","v":4763.2332989690731},{"$f":"IF(Beregninger!F6=0,\"\",F44-(-Beregninger!F27-Beregninger!F44-Beregninger!F51-Beregninger!F53-Beregninger!F54-(Datagrundlag!D165*Oplysninger!D28/1000))/Beregninger!F6)","v":82.673571428571449},{"$f":"IF(Beregninger!F6=0,\"\",D53*Oplysninger!D20*Beregninger!F6)","v":3472.2900000000009}]
[null,{"$f":"E45*Beregninger!F7*Oplysninger!D21","v":1294.2268041237114},{"$f":"F45*Beregninger!F7*Oplysninger!D21","v":1158.2188041237114},{"$f":"IF(Beregninger!F7=0,\"\",F45-(-Beregninger!F28-Beregninger!F45-Beregninger!F51-Beregninger!F53-Beregninger!F54-(Datagrundlag!D166*Oplysninger!D28/1000))/Beregninger!F7)","v":154.898},{"$f":"IF(Beregninger!F7=0,\"\",D54*Oplysninger!D21*Beregninger!F7)","v":619.59199999999998}]
[null,{"$f":"E46*Beregninger!F8*Oplysninger!D22","v":1856.9613402061855},{"$f":"F46*Beregninger!F8*Oplysninger!D22","v":1672.7403402061855},{"$f":"IF(Beregninger!F8=0,\"\",F46-(-Beregninger!F29-Beregninger!F46-Beregninger!F51-Beregninger!F53-Beregninger!F54-(Datagrundlag!D167*Oplysninger!D28/1000))/Beregninger!F8)","v":0.47414067796610171},{"$f":"IF(Beregninger!F8=0,\"\",D55*Oplysninger!D22*Beregninger!F8)","v":839.22900000000004}]
[null,{"$f":"E47*Beregninger!F9*Oplysninger!D23","v":{"$error":"#VALUE!"}},{"$f":"F47*Beregninger!F9*Oplysninger!D23","v":{"$error":"#VALUE!"}},{"$f":"IF(Beregninger!F9=0,\"\",F47-(-Beregninger!F30-Beregninger!F47-Beregninger!F51-Beregninger!F53-Beregninger!F54-(Datagrundlag!D168*Oplysninger!D28/1000))/Beregninger!F9)","v":""},{"$f":"IF(Beregninger!F9=0,\"\",D56*Oplysninger!D23*Beregninger!F9)","v":""}]
[null,{"$f":"E48*Beregninger!F10*Oplysninger!D24","v":0},{"$f":"F48*Beregninger!F10*Oplysninger!D24","v":0},{"$f":"IF(Beregninger!F10=0,\"\",F48-(-Beregninger!F31-Beregninger!F48-Beregninger!F51-Beregninger!F53-Beregninger!F54-(Datagrundlag!D169*Oplysninger!D28/1000))/Beregninger!F10)","v":0.77096237623762398},{"$f":"IF(Beregninger!F10=0,\"\",D57*Oplysninger!D24*Beregninger!F10)","v":0}]
[null,{"$f":"SUM(B52:B57)","v":{"$error":"#VALUE!"}},{"$f":"SUM(C52:C57)","v":{"$error":"#VALUE!"}},null,{"$f":"SUM(E52:E57)","v":6427.8160000000007}]
[null,{"$f":"Beregninger!F32+Beregninger!F41+Beregninger!F49","v":-9778.3067010309278},{"$f":"Beregninger!F32+Beregninger!F42+Beregninger!F49","v":-8367.3227010309292}]

{"sheet":"Transport","index":4,"n_rows":55,"n_cols":32,"rows_kept":55,"cut":false,"hidden":false,"merged":[[2,1,4,1],[2,2,2,3],[2,4,2,5],[2,6,2,7],[2,8,2,9],[30,12,31,13],[2,12,2,13],[3,2,3,3],[3,4,3,5],[3,6,3,7],[3,8,3,9],[3,10,3,11],[3,12,3,13],[2,10,2,11]]}
[null,"Beregning af tid og omkostninger til transport til forpagtet areal"]
[]
[null,"Antal transporter til og fra forpagtet areal",{"$f":"IF(Oplysninger!$C19=\"Ingen eller andet\",Beregninger!D11,Oplysninger!$C19)","v":"Vårbyg"},null,{"$f":"IF(Oplysninger!$C20=\"Ingen eller andet\",Beregninger!D12,Oplysninger!$C20)","v":"Vinterhvede"},null,{"$f":"IF(Oplysninger!$C21=\"Ingen eller andet\",Beregninger!D13,Oplysninger!$C21)","v":"Vinterraps"},null,{"$f":"IF(Oplysninger!$C22=\"Ingen eller andet\",Beregninger!D14,Oplysninger!$C22)","v":"Majs til helsæd"},null,{"$f":"IF(Oplysninger!$C23=\"Ingen eller andet\",Beregninger!D15,Oplysninger!$C23)","v":"Fabriksroer"},null,{"$f":"IF(Oplysninger!$C24=\"Ingen eller andet\",Beregninger!D16,Oplysninger!$C24)","v":"Slætgræs 4 slæt"}]
[null,null,{"$f":"_xlfn.CONCAT(\"Antal ha: \",TEXT(Oplysninger!$D9*Oplysninger!$D19,\"#.##0,0\"))","v":"Antal ha: 24,3"},null,{"$f":"_xlfn.CONCAT(\"Antal ha: \",TEXT(Oplysninger!$D9*Oplysninger!$D20,\"#.##0,0\"))","v":"Antal ha: 48,5"},null,{"$f":"_xlfn.CONCAT(\"Antal ha: \",TEXT(Oplysninger!$D9*Oplysninger!$D21,\"#.##0,0\"))","v":"Antal ha: 9,7"},null,{"$f":"_xlfn.CONCAT(\"Antal ha: \",TEXT(Oplysninger!$D9*Oplysninger!$D22,\"#.##0,0\"))","v":"Antal ha: 14,6"},null,{"$f":"_xlfn.CONCAT(\"Antal ha: \",TEXT(Oplysninger!$D9*Oplysninger!$D23,\"#.##0,0\"))","v":"Antal ha: 0,0"},null,{"$f":"_xlfn.CONCAT(\"Antal ha: \",TEXT(Oplysninger!$D9*Oplysninger!$D24,\"#.##0,0\"))","v":"Antal ha: 0,0"},null,null,null,null,"Budgetkalkuler (opdateres når behov opstår)"]
[null,null,"Egen vurdering (alle ha)","Budget-kalkule\n(alle ha) ","Egen vurdering (alle ha)","Budget-kalkule\n(alle ha) ","Egen vurdering (alle ha)","Budget-kalkule\n(alle ha) ","Egen vurdering (alle ha)","Budget-kalkule\n(alle ha) ","Egen vurdering (alle ha)","Budget-kalkule\n(alle ha) ","Egen vurdering (alle ha)","Budget-kalkule\n(alle ha) ",null,null,null,"Vårbyg","Vinterrug","Havre","Vinterhvede","Vinterraps","Vinterbyg","Majs til helsæd","Fabriksroer","Stivelseskartofler","Læggekartofler","Spisekartofler","Proceskartofler","Alm. rajgræs","Slætgræs 4 slæt","Ingen eller andet"]
[null,"Plov og jordpakker (1)",null,{"$f":"IF(C6=\"\",ROUNDUP(HLOOKUP(Oplysninger!$C$19,Transport!$R$5:$AF$26,2,)*Oplysninger!$D$9*Oplysninger!$D$19/$I31,0),0)","v":2},null,{"$f":"IF(E6=\"\",ROUNDUP(HLOOKUP(Oplysninger!$C$20,Transport!$R$5:$AF$26,2,)*Oplysninger!$D$9*Oplysninger!$D$20/$I31,0),0)","v":3},null,{"$f":"IF(G6=\"\",ROUNDUP(HLOOKUP(Oplysninger!$C$21,Transport!$R$5:$AF$26,2,)*Oplysninger!$D$9*Oplysninger!$D$21/$I31,0),0)","v":1},null,{"$f":"IF(I6=\"\",ROUNDUP(HLOOKUP(Oplysninger!$C$22,Transport!$R$5:$AF$26,2,)*Oplysninger!$D$9*Oplysninger!$D$22/$I31,0),0)","v":1},null,{"$f":"IF(K6=\"\",ROUNDUP(HLOOKUP(Oplysninger!$C$23,Transport!$R$5:$AF$26,2,)*Oplysninger!$D$9*Oplysninger!$D$23/$I31,0),0)","v":0},null,{"$f":"IF(M6=\"\",ROUNDUP(HLOOKUP(Oplysninger!$C$24,Transport!$R$5:$AF$26,2,)*Oplysninger!$D$9*Oplysninger!$D$24/$I31,0),0)","v":0},null,"Plov og jordpakker",null,1,1,1,1,1,1,1,1,1,1,1,1]
[null,"Stensamling",null,{"$f":"IF(C7=\"\",HLOOKUP(Oplysninger!$C$19,Transport!$R$5:$AF$26,3,),0)","v":0},null,{"$f":"IF(E7=\"\",HLOOKUP(Oplysninger!$C$20,Transport!$R$5:$AF$26,3,),0)","v":0},null,{"$f":"IF(G7=\"\",HLOOKUP(Oplysninger!$C$21,Transport!$R$5:$AF$26,3,),0)","v":0},null,{"$f":"IF(I7=\"\",HLOOKUP(Oplysninger!$C$22,Transport!$R$5:$AF$26,3,),0)","v":0},null,{"$f":"IF(K7=\"\",HLOOKUP(Oplysninger!$C$23,Transport!$R$5:$AF$26,3,),0)","v":0},null,{"$f":"IF(M7=\"\",HLOOKUP(Oplysninger!$C$24,Transport!$R$5:$AF$26,3,),0)","v":0},null,"Stensamling"]
[null,"Tromle (2)",null,{"$f":"IF(C8=\"\",ROUNDUP(HLOOKUP(Oplysninger!$C$19,Transport!$R$5:$AF$26,4,)*Oplysninger!$D$9*Oplysninger!$D$19/$I32,0),0)","v":0},null,{"$f":"IF(E8=\"\",ROUNDUP(HLOOKUP(Oplysninger!$C$20,Transport!$R$5:$AF$26,4,)*Oplysninger!$D$9*Oplysninger!$D$20/$I32,0),0)","v":0},null,{"$f":"IF(G8=\"\",ROUNDUP(HLOOKUP(Oplysninger!$C$21,Transport!$R$5:$AF$26,4,)*Oplysninger!$D$9*Oplysninger!$D$21/$I32,0),0)","v":0},null,{"$f":"IF(I8=\"\",ROUNDUP(HLOOKUP(Oplysninger!$C$22,Transport!$R$5:$AF$26,4,)*Oplysninger!$D$9*Oplysninger!$D$22/$I32,0),0)","v":1},null,{"$f":"IF(K8=\"\",ROUNDUP(HLOOKUP(Oplysninger!$C$23,Transport!$R$5:$AF$26,4,)*Oplysninger!$D$9*Oplysninger!$D$23/$I32,0),0)","v":0},null,{"$f":"IF(M8=\"\",ROUNDUP(HLOOKUP(Oplysninger!$C$24,Transport!$R$5:$AF$26,4,)*Oplysninger!$D$9*Oplysninger!$D$24/$I32,0),0)","v":0},null,"Tromle",null,null,null,null,null,null,null,{"$f":"X7+1","v":1},null,null,null,null,{"$f":"AC7+1","v":1}]
[null,"Kombihavning og såning (3)",null,{"$f":"IF(C9=\"\",ROUNDUP(HLOOKUP(Oplysninger!$C$19,Transport!$R$5:$AF$26,5,)*Oplysninger!$D$9*Oplysninger!$D$19/$I33,0),0)","v":1},null,{"$f":"IF(E9=\"\",ROUNDUP(HLOOKUP(Oplysninger!$C$20,Transport!$R$5:$AF$26,5,)*Oplysninger!$D$9*Oplysninger!$D$20/$I33,0),0)","v":1},null,{"$f":"IF(G9=\"\",ROUNDUP(HLOOKUP(Oplysninger!$C$21,Transport!$R$5:$AF$26,5,)*Oplysninger!$D$9*Oplysninger!$D$21/$I33,0),0)","v":1},null,{"$f":"IF(I9=\"\",ROUNDUP(HLOOKUP(Oplysninger!$C$22,Transport!$R$5:$AF$26,5,)*Oplysninger!$D$9*Oplysninger!$D$22/$I33,0),0)","v":0},null,{"$f":"IF(K9=\"\",ROUNDUP(HLOOKUP(Oplysninger!$C$23,Transport!$R$5:$AF$26,5,)*Oplysninger!$D$9*Oplysninger!$D$23/$I33,0),0)","v":0},null,{"$f":"IF(M9=\"\",ROUNDUP(HLOOKUP(Oplysninger!$C$24,Transport!$R$5:$AF$26,5,)*Oplysninger!$D$9*Oplysninger!$D$24/$I33,0),0)","v":0},null,"Kombihavning og såning",null,1,1,1,1,1,1,null,1,1,{"$f":"AA8+1","v":1},{"$f":"AB8+1","v":1},1,1]
[null,"Udsæd (4)",null,{"$f":"IF(C10=\"\",ROUNDUP(200*Oplysninger!$D$9*Oplysninger!$D19/$I34,0),0)","v":1},null,{"$f":"IF(E10=\"\",ROUNDUP(200*Oplysninger!$D$9*Oplysninger!$D20/$I34,0),0)","v":1},null,{"$f":"IF(G10=\"\",ROUNDUP(200*Oplysninger!$D$9*Oplysninger!$D21/$I34,0),0)","v":1},0,{"$f":"IF(I10=\"\",ROUNDUP(200*Oplysninger!$D$9*Oplysninger!$D22/$I34,0),0)","v":0},null,{"$f":"IF(K10=\"\",ROUNDUP(200*Oplysninger!$D$9*Oplysninger!$D23/$I34,0),0)","v":0},null,{"$f":"IF(M10=\"\",ROUNDUP(200*Oplysninger!$D$9*Oplysninger!$D24/$I34,0),0)","v":0},null,"Udsæd*"]
[null,"Gødningsspreder  (5)",null,{"$f":"IF(C11=\"\",IF(Oplysninger!$D$11=\"Ja\",HLOOKUP(Oplysninger!$C$19,Transport!$R$5:$AF$26,8,FALSE),HLOOKUP(Oplysninger!$C$19,Transport!$R$5:$AF$26,7,FALSE)),0)","v":1},null,{"$f":"IF(E11=\"\",IF(Oplysninger!$D$11=\"Ja\",HLOOKUP(Oplysninger!$C$20,Transport!$R$5:$AF$26,8,FALSE),HLOOKUP(Oplysninger!$C$20,Transport!$R$5:$AF$26,7,FALSE)),0)","v":1},null,{"$f":"IF(G11=\"\",IF(Oplysninger!$D$11=\"Ja\",HLOOKUP(Oplysninger!$C$21,Transport!$R$5:$AF$26,8,FALSE),HLOOKUP(Oplysninger!$C$21,Transport!$R$5:$AF$26,7,FALSE)),0)","v":1},null,{"$f":"IF(I11=\"\",IF(Oplysninger!$D$11=\"Ja\",HLOOKUP(Oplysninger!$C$22,Transport!$R$5:$AF$26,8,FALSE),HLOOKUP(Oplysninger!$C$22,Transport!$R$5:$AF$26,7,FALSE)),0)","v":0},null,{"$f":"IF(K11=\"\",IF(Oplysninger!$D$11=\"Ja\",HLOOKUP(Oplysninger!$C$23,Transport!$R$5:$AF$26,8,FALSE),HLOOKUP(Oplysninger!$C$23,Transport!$R$5:$AF$26,7,FALSE)),0)","v":0},null,{"$f":"IF(M11=\"\",IF(Oplysninger!$D$11=\"Ja\",HLOOKUP(Oplysninger!$C$24,Transport!$R$5:$AF$26,8,FALSE),HLOOKUP(Oplysninger!$C$24,Transport!$R$5:$AF$26,7,FALSE)),0)","v":2},null,"Gødningsspreder  (u/gylle)",null,1,2,1,2,2,1,1,1,1,1,1,1,1,3]
[null,"Gødning (6)",null,{"$f":"IF(C12=\"\",(ROUNDUP(250*Oplysninger!$D$9*Oplysninger!$D19/$I36,0)*D11),0)","v":1},null,{"$f":"IF(E12=\"\",(ROUNDUP(250*Oplysninger!$D$9*Oplysninger!$D20/$I36,0)*F11),0)","v":1},null,{"$f":"IF(G12=\"\",(ROUNDUP(250*Oplysninger!$D$9*Oplysninger!$D21/$I36,0)*H11),0)","v":1},null,{"$f":"IF(I12=\"\",(ROUNDUP(250*Oplysninger!$D$9*Oplysninger!$D22/$I36,0)*J11),0)","v":0},null,{"$f":"IF(K12=\"\",(ROUNDUP(250*Oplysninger!$D$9*Oplysninger!$D23/$I36,0)*L11),0)","v":0},null,{"$f":"IF(M12=\"\",(ROUNDUP(250*Oplysninger!$D$9*Oplysninger!$D24/$I36,0)*N11),0)","v":0},null,"Gødningsspreder  (m/gylle)",null,1,1,null,1,1,1,null,null,null,null,null,null,1,2]
[null,"Gylle (7)",null,{"$f":"IF(C13=\"\",IF(AND(HLOOKUP(Oplysninger!$C$19,Transport!$R$5:$AF$31,27,FALSE)=\"Ja\",Oplysninger!$D$11=\"Ja\"),ROUNDUP(Oplysninger!$D$9*Oplysninger!$D$19*30/$I37,1)*HLOOKUP(Oplysninger!$C$19,Transport!$R$5:$AF$31,10,FALSE),0),0)","v":29.1},null,{"$f":"IF(E13=\"\",IF(AND(HLOOKUP(Oplysninger!$C$20,Transport!$R$5:$AF$31,27,FALSE)=\"Ja\",Oplysninger!$D$11=\"Ja\"),ROUNDUP(Oplysninger!$D$9*Oplysninger!$D$20*30/$I37,1)*HLOOKUP(Oplysninger!$C$20,Transport!$R$5:$AF$31,10,FALSE),0),0)","v":58.2},null,{"$f":"IF(G13=\"\",IF(AND(HLOOKUP(Oplysninger!$C$21,Transport!$R$5:$AF$31,27,FALSE)=\"Ja\",Oplysninger!$D$11=\"Ja\"),ROUNDUP(Oplysninger!$D$9*Oplysninger!$D$21*30/$I37,1)*HLOOKUP(Oplysninger!$C$21,Transport!$R$5:$AF$31,10,FALSE),0),0)","v":11.7},null,{"$f":"IF(I13=\"\",IF(AND(HLOOKUP(Oplysninger!$C$22,Transport!$R$5:$AF$31,27,FALSE)=\"Ja\",Oplysninger!$D$11=\"Ja\"),ROUNDUP(Oplysninger!$D$9*Oplysninger!$D$22*30/$I37,1)*HLOOKUP(Oplysninger!$C$22,Transport!$R$5:$AF$31,10,FALSE),0),0)","v":17.5},null,{"$f":"IF(K13=\"\",IF(AND(HLOOKUP(Oplysninger!$C$23,Transport!$R$5:$AF$31,27,FALSE)=\"Ja\",Oplysninger!$D$11=\"Ja\"),ROUNDUP(Oplysninger!$D$9*Oplysninger!$D$23*30/$I37,1)*HLOOKUP(Oplysninger!$C$23,Transport!$R$5:$AF$31,10,FALSE),0),0)","v":0},null,{"$f":"IF(M13=\"\",IF(AND(HLOOKUP(Oplysninger!$C$24,Transport!$R$5:$AF$31,27,FALSE)=\"Ja\",Oplysninger!$D$11=\"Ja\"),ROUNDUP(Oplysninger!$D$9*Oplysninger!$D$24*30/$I37,1)*HLOOKUP(Oplysninger!$C$24,Transport!$R$5:$AF$31,10,FALSE),0),0)","v":0},null,"Gødning**"]
[null,"Sprøjte (8)",null,{"$f":"IF(C14=\"\",ROUNDUP(IF(Oplysninger!$D$9*Oplysninger!$D$19<=$I38,HLOOKUP(Oplysninger!$C$19,Transport!$R$5:$AF$26,11,),HLOOKUP(Oplysninger!$C$19,Transport!$R$5:$AF$26,11,)*2),0),0)","v":3},null,{"$f":"IF(E14=\"\",ROUNDUP(IF(Oplysninger!$D$9*Oplysninger!$D$20<=$I38,HLOOKUP(Oplysninger!$C$20,Transport!$R$5:$AF$26,11,),HLOOKUP(Oplysninger!$C$20,Transport!$R$5:$AF$26,11,)*2),0),0)","v":5},null,{"$f":"IF(G14=\"\",ROUNDUP(IF(Oplysninger!$D$9*Oplysninger!$D$21<=$I38,HLOOKUP(Oplysninger!$C$21,Transport!$R$5:$AF$26,11,),HLOOKUP(Oplysninger!$C$21,Transport!$R$5:$AF$26,11,)*2),0),0)","v":6},null,{"$f":"IF(I14=\"\",ROUNDUP(IF(Oplysninger!$D$9*Oplysninger!$D$22<=$I38,HLOOKUP(Oplysninger!$C$22,Transport!$R$5:$AF$26,11,),HLOOKUP(Oplysninger!$C$22,Transport!$R$5:$AF$26,11,)*2),0),0)","v":2},null,{"$f":"IF(K14=\"\",ROUNDUP(IF(Oplysninger!$D$9*Oplysninger!$D$23<=$I38,HLOOKUP(Oplysninger!$C$23,Transport!$R$5:$AF$26,11,),HLOOKUP(Oplysninger!$C$23,Transport!$R$5:$AF$26,11,)*2),0),0)","v":6},null,{"$f":"IF(M14=\"\",ROUNDUP(IF(Oplysninger!$D$9*Oplysninger!$D$24<=$I38,HLOOKUP(Oplysninger!$C$24,Transport!$R$5:$AF$26,11,),HLOOKUP(Oplysninger!$C$24,Transport!$R$5:$AF$26,11,)*2),0),0)","v":0},null,"Gylle***",null,1,1,1,1,1,1,1,1,1,1,1,1,1,2]
[null,"Supplerende vand til planteværn (9)",null,{"$f":"IF(C15=\"\",(ROUNDUP(150*Oplysninger!$D$9*Oplysninger!$D19/$I39,0)*D14),0)","v":3},null,{"$f":"IF(E15=\"\",(ROUNDUP(150*Oplysninger!$D$9*Oplysninger!$D20/$I39,0)*F14),0)","v":10},null,{"$f":"IF(G15=\"\",(ROUNDUP(150*Oplysninger!$D$9*Oplysninger!$D21/$I39,0)*H14),0)","v":6},null,{"$f":"IF(I15=\"\",(ROUNDUP(150*Oplysninger!$D$9*Oplysninger!$D22/$I39,0)*J14),0)","v":2},null,{"$f":"IF(K15=\"\",(ROUNDUP(150*Oplysninger!$D$9*Oplysninger!$D23/$I39,0)*L14),0)","v":0},null,{"$f":"IF(M15=\"\",(ROUNDUP(150*Oplysninger!$D$9*Oplysninger!$D24/$I39,0)*N14),0)","v":0},null,"Sprøjte",null,3,4,2,5,6,4,2,6,15,12,10,5,4]
[null,"Høstmaskine (10)",null,{"$f":"IF(C16=\"\",ROUNDUP(IF(Oplysninger!$D$9*Oplysninger!$D$19<=$I40,HLOOKUP(Oplysninger!$C$19,Transport!$R$5:$AF$26,13,),HLOOKUP(Oplysninger!$C$19,Transport!$R$5:$AF$26,13,)*2),0),0)","v":1},null,{"$f":"IF(E16=\"\",ROUNDUP(IF(Oplysninger!$D$9*Oplysninger!$D$20<=$I40,HLOOKUP(Oplysninger!$C$20,Transport!$R$5:$AF$26,13,),HLOOKUP(Oplysninger!$C$20,Transport!$R$5:$AF$26,13,)*2),0),0)","v":1},null,{"$f":"IF(G16=\"\",ROUNDUP(IF(Oplysninger!$D$9*Oplysninger!$D$21<=$I40,HLOOKUP(Oplysninger!$C$21,Transport!$R$5:$AF$26,13,),HLOOKUP(Oplysninger!$C$21,Transport!$R$5:$AF$26,13,)*2),0),0)","v":1},null,{"$f":"IF(I16=\"\",ROUNDUP(IF(Oplysninger!$D$9*Oplysninger!$D$22<=$I40,HLOOKUP(Oplysninger!$C$22,Transport!$R$5:$AF$26,13,),HLOOKUP(Oplysninger!$C$22,Transport!$R$5:$AF$26,13,)*2),0),0)","v":1},null,{"$f":"IF(K16=\"\",ROUNDUP(IF(Oplysninger!$D$9*Oplysninger!$D$23<=$I40,HLOOKUP(Oplysninger!$C$23,Transport!$R$5:$AF$26,13,),HLOOKUP(Oplysninger!$C$23,Transport!$R$5:$AF$26,13,)*2),0),0)","v":1},null,{"$f":"IF(M16=\"\",ROUNDUP(IF(Oplysninger!$D$9*Oplysninger!$D$24<=$I40,HLOOKUP(Oplysninger!$C$24,Transport!$R$5:$AF$26,13,),HLOOKUP(Oplysninger!$C$24,Transport!$R$5:$AF$26,13,)*2),0),0)","v":4},null,"Supplerende vand til planteværn****"]
[null,"Hjemkørsel afgrøde (11)",null,{"$f":"IF(C17=\"\",ROUNDUP(HLOOKUP(Oplysninger!$C$19,Transport!$R$5:$AF$30,25,)*Oplysninger!$D$9*Oplysninger!$D19/$I41,0),0)","v":10},null,{"$f":"IF(E17=\"\",ROUNDUP(HLOOKUP(Oplysninger!$C$20,Transport!$R$5:$AF$30,25,)*Oplysninger!$D$9*Oplysninger!$D20/$I41,0),0)","v":26},null,{"$f":"IF(G17=\"\",ROUNDUP(HLOOKUP(Oplysninger!$C$21,Transport!$R$5:$AF$30,25,)*Oplysninger!$D$9*Oplysninger!$D21/$I41,0),0)","v":3},null,{"$f":"IF(I17=\"\",ROUNDUP(HLOOKUP(Oplysninger!$C$22,Transport!$R$5:$AF$30,25,)*Oplysninger!$D$9*Oplysninger!$D22/$I41,0),0)","v":29},null,{"$f":"IF(K17=\"\",ROUNDUP(HLOOKUP(Oplysninger!$C$23,Transport!$R$5:$AF$30,25,)*Oplysninger!$D$9*Oplysninger!$D23/$I41,0),0)","v":0},null,{"$f":"IF(M17=\"\",ROUNDUP(HLOOKUP(Oplysninger!$C$24,Transport!$R$5:$AF$30,25,)*Oplysninger!$D$9*Oplysninger!$D24/$I41,0),0)","v":0},null,"Høstmaskine",null,1,{"$f":"S16+1","v":1},1,1,1,1,1,1,1,1,1,1,1,4]
[null,"Halmpresser (12)",null,{"$f":"IF(C18=\"\",ROUNDUP(HLOOKUP(Oplysninger!$C$19,Transport!$R$5:$AF$26,15,)*Oplysninger!$D$9*Oplysninger!$D$19/$I42,0),0)","v":1},null,{"$f":"IF(E18=\"\",ROUNDUP(HLOOKUP(Oplysninger!$C$20,Transport!$R$5:$AF$26,15,)*Oplysninger!$D$9*Oplysninger!$D$20/$I42,0),0)","v":1},null,{"$f":"IF(G18=\"\",ROUNDUP(HLOOKUP(Oplysninger!$C$21,Transport!$R$5:$AF$26,15,)*Oplysninger!$D$9*Oplysninger!$D$21/$I42,0),0)","v":0},null,{"$f":"IF(I18=\"\",ROUNDUP(HLOOKUP(Oplysninger!$C$22,Transport!$R$5:$AF$26,15,)*Oplysninger!$D$9*Oplysninger!$D$22/$I42,0),0)","v":0},null,{"$f":"IF(K18=\"\",ROUNDUP(HLOOKUP(Oplysninger!$C$23,Transport!$R$5:$AF$26,15,)*Oplysninger!$D$9*Oplysninger!$D$23/$I42,0),0)","v":0},null,{"$f":"IF(M18=\"\",ROUNDUP(HLOOKUP(Oplysninger!$C$24,Transport!$R$5:$AF$26,15,)*Oplysninger!$D$9*Oplysninger!$D$24/$I42,0),0)","v":0},null,"Hjemkørsel afgrøde*****"]
[null,"Hjemkørsel halm (13)",null,{"$f":"IF(C19=\"\",ROUNDUP(HLOOKUP(Oplysninger!$C$19,Transport!$R$5:$AF$30,26,)*Oplysninger!$D$9*Oplysninger!$D19/$I43,0),0)","v":7},null,{"$f":"IF(E19=\"\",ROUNDUP(HLOOKUP(Oplysninger!$C$20,Transport!$R$5:$AF$30,26,)*Oplysninger!$D$9*Oplysninger!$D20/$I43,0),0)","v":17},null,{"$f":"IF(G19=\"\",ROUNDUP(HLOOKUP(Oplysninger!$C$21,Transport!$R$5:$AF$30,26,)*Oplysninger!$D$9*Oplysninger!$D21/$I43,0),0)","v":0},null,{"$f":"IF(I19=\"\",ROUNDUP(HLOOKUP(Oplysninger!$C$22,Transport!$R$5:$AF$30,26,)*Oplysninger!$D$9*Oplysninger!$D22/$I43,0),0)","v":0},null,{"$f":"IF(K19=\"\",ROUNDUP(HLOOKUP(Oplysninger!$C$23,Transport!$R$5:$AF$30,26,)*Oplysninger!$D$9*Oplysninger!$D23/$I43,0),0)","v":0},null,{"$f":"IF(M19=\"\",ROUNDUP(HLOOKUP(Oplysninger!$C$24,Transport!$R$5:$AF$30,26,)*Oplysninger!$D$9*Oplysninger!$D24/$I43,0),0)","v":0},null,"Halmpresser",null,1,{"$f":"S18+1","v":1},{"$f":"T18+1","v":1},{"$f":"U18+1","v":1},null,{"$f":"W18+1","v":1},null,null,null,null,null,null,{"$f":"AD18+1","v":1}]
[null,"Stubharve med såmaskine efterafgrøde",null,{"$f":"IF(C20=\"\",HLOOKUP(Oplysninger!$C$19,Transport!$R$5:$AF$26,17,),0)","v":0},null,{"$f":"IF(E20=\"\",HLOOKUP(Oplysninger!$C$20,Transport!$R$5:$AF$26,17,),0)","v":0},null,{"$f":"IF(G20=\"\",HLOOKUP(Oplysninger!$C$21,Transport!$R$5:$AF$26,17,),0)","v":0},null,{"$f":"IF(I20=\"\",HLOOKUP(Oplysninger!$C$22,Transport!$R$5:$AF$26,17,),0)","v":0},null,{"$f":"IF(K20=\"\",HLOOKUP(Oplysninger!$C$23,Transport!$R$5:$AF$26,17,),0)","v":0},null,{"$f":"IF(M20=\"\",HLOOKUP(Oplysninger!$C$24,Transport!$R$5:$AF$26,17,),0)","v":0},null,"Hjemkørsel halm******"]
[null,"Såbedsharvning/efterharvning",null,{"$f":"IF(C21=\"\",HLOOKUP(Oplysninger!$C$19,Transport!$R$5:$AF$26,18,),0)","v":0},null,{"$f":"IF(E21=\"\",HLOOKUP(Oplysninger!$C$20,Transport!$R$5:$AF$26,18,),0)","v":0},null,{"$f":"IF(G21=\"\",HLOOKUP(Oplysninger!$C$21,Transport!$R$5:$AF$26,18,),0)","v":0},null,{"$f":"IF(I21=\"\",HLOOKUP(Oplysninger!$C$22,Transport!$R$5:$AF$26,18,),0)","v":1},null,{"$f":"IF(K21=\"\",HLOOKUP(Oplysninger!$C$23,Transport!$R$5:$AF$26,18,),0)","v":2},null,{"$f":"IF(M21=\"\",HLOOKUP(Oplysninger!$C$24,Transport!$R$5:$AF$26,18,),0)","v":0},null,"Stubharve med såmaskine efterafgrøde"]
[null,"Skårlægning",null,{"$f":"IF(C22=\"\",HLOOKUP(Oplysninger!$C$19,Transport!$R$5:$AF$26,19,),0)","v":0},null,{"$f":"IF(E22=\"\",HLOOKUP(Oplysninger!$C$20,Transport!$R$5:$AF$26,19,),0)","v":0},null,{"$f":"IF(G22=\"\",HLOOKUP(Oplysninger!$C$21,Transport!$R$5:$AF$26,19,),0)","v":0},null,{"$f":"IF(I22=\"\",HLOOKUP(Oplysninger!$C$22,Transport!$R$5:$AF$26,19,),0)","v":0},null,{"$f":"IF(K22=\"\",HLOOKUP(Oplysninger!$C$23,Transport!$R$5:$AF$26,19,),0)","v":0},null,{"$f":"IF(M22=\"\",HLOOKUP(Oplysninger!$C$24,Transport!$R$5:$AF$26,19,),0)","v":4},null,"Såbedsharvning/efterharvning",null,null,null,null,null,null,null,1,2,1,1,1,3]
[null,"Sammenrivning",null,{"$f":"IF(C23=\"\",HLOOKUP(Oplysninger!$C$19,Transport!$R$5:$AF$26,20,),0)","v":0},null,{"$f":"IF(E23=\"\",HLOOKUP(Oplysninger!$C$20,Transport!$R$5:$AF$26,20,),0)","v":0},null,{"$f":"IF(G23=\"\",HLOOKUP(Oplysninger!$C$21,Transport!$R$5:$AF$26,20,),0)","v":0},null,{"$f":"IF(I23=\"\",HLOOKUP(Oplysninger!$C$22,Transport!$R$5:$AF$26,20,),0)","v":0},null,{"$f":"IF(K23=\"\",HLOOKUP(Oplysninger!$C$23,Transport!$R$5:$AF$26,20,),0)","v":0},null,{"$f":"IF(M23=\"\",HLOOKUP(Oplysninger!$C$24,Transport!$R$5:$AF$26,20,),0)","v":4},null,"Skårlægning",null,null,null,null,null,null,null,null,null,null,null,null,null,null,4]
[null,"Radrensning/hypning",null,{"$f":"IF(C24=\"\",HLOOKUP(Oplysninger!$C$19,Transport!$R$5:$AF$26,21,),0)","v":0},null,{"$f":"IF(E24=\"\",HLOOKUP(Oplysninger!$C$20,Transport!$R$5:$AF$26,21,),0)","v":0},null,{"$f":"IF(G24=\"\",HLOOKUP(Oplysninger!$C$21,Transport!$R$5:$AF$26,21,),0)","v":0},null,{"$f":"IF(I24=\"\",HLOOKUP(Oplysninger!$C$22,Transport!$R$5:$AF$26,21,),0)","v":0},null,{"$f":"IF(K24=\"\",HLOOKUP(Oplysninger!$C$23,Transport!$R$5:$AF$26,21,),0)","v":1},null,{"$f":"IF(M24=\"\",HLOOKUP(Oplysninger!$C$24,Transport!$R$5:$AF$26,21,),0)","v":0},null,"Sammenrivning",null,null,null,null,null,null,null,null,null,null,null,null,null,null,4]
[null,"Stenstrenglægning",null,{"$f":"IF(C25=\"\",HLOOKUP(Oplysninger!$C$19,Transport!$R$5:$AF$26,22,),0)","v":0},null,{"$f":"IF(E25=\"\",HLOOKUP(Oplysninger!$C$20,Transport!$R$5:$AF$26,22,),0)","v":0},null,{"$f":"IF(G25=\"\",HLOOKUP(Oplysninger!$C$21,Transport!$R$5:$AF$26,22,),0)","v":0},null,{"$f":"IF(I25=\"\",HLOOKUP(Oplysninger!$C$22,Transport!$R$5:$AF$26,22,),0)","v":0},null,{"$f":"IF(K25=\"\",HLOOKUP(Oplysninger!$C$23,Transport!$R$5:$AF$26,22,),0)","v":0},null,{"$f":"IF(M25=\"\",HLOOKUP(Oplysninger!$C$24,Transport!$R$5:$AF$26,22,),0)","v":0},null,"Radrensning/hypning",null,null,null,null,null,null,null,null,1,null,2,1,1]
[null,"I alt antal kørsler uden returkørsel",null,{"$f":"SUM(C6:D25)","v":60.1},null,{"$f":"SUM(E6:F25)","v":125.2},null,{"$f":"SUM(G6:H25)","v":32.700000000000003},null,{"$f":"SUM(I6:J25)","v":54.5},null,{"$f":"SUM(K6:L25)","v":10},null,{"$f":"SUM(M6:N25)","v":14},null,"Stenstrenglægning",null,null,null,null,null,null,null,null,null,1,1,1]
[null,"I alt antal kørsler pr. ha (gns)",null,{"$f":"IFERROR(D26/(Oplysninger!$D$9*Oplysninger!$D$19),0)","v":2.4783505154639176},null,{"$f":"IFERROR(F26/(Oplysninger!$D$9*Oplysninger!$D$20),0)","v":2.5814432989690723},null,{"$f":"IFERROR(H26/(Oplysninger!$D$9*Oplysninger!$D$21),0)","v":3.3711340206185567},null,{"$f":"IFERROR(J26/(Oplysninger!$D$9*Oplysninger!$D$22),0)","v":3.7457044673539523},null,{"$f":"IFERROR(L26/(Oplysninger!$D$9*Oplysninger!$D$23),0)","v":0},null,{"$f":"IFERROR(N26/(Oplysninger!$D$9*Oplysninger!$D$24),0)","v":0}]
[null,"Omkostning pr. ha"]
[null,null,null,null,null,null,null,null,null,null,null,null,null,null,null,"Afgrøde (kg. pr. ha)",null,{"$f":"IF(Transport!$D13=\"Nej\",VLOOKUP(Oplysninger!$D$10,Transport!$P$44:$AF$46,3,FALSE),VLOOKUP(Oplysninger!$D$10,Transport!$P$50:$AF$52,3,FALSE))","v":6000},{"$f":"IF(Transport!D13=\"Nej\",VLOOKUP(Oplysninger!$D$10,Transport!$P$44:$AF$46,4,FALSE),VLOOKUP(Oplysninger!$D$10,Transport!$P$50:$AF$52,4,FALSE))","v":6600},{"$f":"IF(Transport!D13=\"Nej\",VLOOKUP(Oplysninger!$D$10,Transport!$P$44:$AF$46,5,FALSE),VLOOKUP(Oplysninger!$D$10,Transport!$P$50:$AF$52,5,FALSE))","v":5900},{"$f":"IF(Transport!D13=\"Nej\",VLOOKUP(Oplysninger!$D$10,Transport!$P$44:$AF$46,6,FALSE),VLOOKUP(Oplysninger!$D$10,Transport!$P$50:$AF$52,6,FALSE))","v":8400},{"$f":"IF(Transport!D13=\"Nej\",VLOOKUP(Oplysninger!$D$10,Transport!$P$44:$AF$46,7,FALSE),VLOOKUP(Oplysninger!$D$10,Transport!$P$50:$AF$52,7,FALSE))","v":4000},{"$f":"IF(Transport!D13=\"Nej\",VLOOKUP(Oplysninger!$D$10,Transport!$P$44:$AF$46,8,FALSE),VLOOKUP(Oplysninger!$D$10,Transport!$P$50:$AF$52,8,FALSE))","v":6600},{"$f":"IF(Transport!D13=\"Nej\",VLOOKUP(Oplysninger!$D$10,Transport!$P$44:$AF$46,9,FALSE),VLOOKUP(Oplysninger!$D$10,Transport!$P$50:$AF$52,9,FALSE))/X33*X34/22*16","v":30823.0303030303},{"$f":"IF(Transport!D13=\"Nej\",VLOOKUP(Oplysninger!$D$10,Transport!$P$44:$AF$46,11,FALSE),VLOOKUP(Oplysninger!$D$10,Transport!$P$50:$AF$52,11,FALSE))*100","v":0},{"$f":"IF(Transport!D13=\"Nej\",VLOOKUP(Oplysninger!$D$10,Transport!$P$44:$AF$46,12,FALSE),VLOOKUP(Oplysninger!$D$10,Transport!$P$50:$AF$52,12,FALSE))*100","v":59500},{"$f":"IF(Transport!D13=\"Nej\",VLOOKUP(Oplysninger!$D$10,Transport!$P$44:$AF$46,13,FALSE),VLOOKUP(Oplysninger!$D$10,Transport!$P$50:$AF$52,13,FALSE))*100","v":32500},{"$f":"IF(Transport!D13=\"Nej\",VLOOKUP(Oplysninger!$D$10,Transport!$P$44:$AF$46,14,FALSE),VLOOKUP(Oplysninger!$D$10,Transport!$P$50:$AF$52,14,FALSE))*100","v":37900},{"$f":"IF(Transport!D13=\"Nej\",VLOOKUP(Oplysninger!$D$10,Transport!$P$44:$AF$46,15,FALSE),VLOOKUP(Oplysninger!$D$10,Transport!$P$50:$AF$52,15,FALSE))*100","v":0},{"$f":"IF(Transport!D13=\"Nej\",VLOOKUP(Oplysninger!$D$10,Transport!$P$44:$AF$46,16,FALSE),VLOOKUP(Oplysninger!$D$10,Transport!$P$50:$AF$52,16,FALSE))","v":1500},{"$f":"IF(Transport!D13=\"Nej\",VLOOKUP(Oplysninger!$D$10,Transport!$P$44:$AF$46,10,FALSE),VLOOKUP(Oplysninger!$D$10,Transport!$P$50:$AF$52,10,FALSE))/AE33*AE34/22*16","v":24135.064935064933}]
[null,null,null,null,null,null,null,null,"Valg af kapacitet",null,null,null,null,null,null,"Halm (kg. pr. ha)",null,{"$f":"IF(Transport!$D13=\"Nej\",VLOOKUP(Oplysninger!$D$10,Transport!$P$47:$AF$49,3,FALSE),VLOOKUP(Oplysninger!$D$10,Transport!$P$53:$AF$55,3,FALSE))","v":3100},{"$f":"IF(Transport!$D13=\"Nej\",VLOOKUP(Oplysninger!$D$10,Transport!$P$47:$AF$49,4,FALSE),VLOOKUP(Oplysninger!$D$10,Transport!$P$53:$AF$55,4,FALSE))","v":4300},{"$f":"IF(Transport!$D13=\"Nej\",VLOOKUP(Oplysninger!$D$10,Transport!$P$47:$AF$49,5,FALSE),VLOOKUP(Oplysninger!$D$10,Transport!$P$53:$AF$55,5,FALSE))","v":3200},{"$f":"IF(Transport!$D13=\"Nej\",VLOOKUP(Oplysninger!$D$10,Transport!$P$47:$AF$49,6,FALSE),VLOOKUP(Oplysninger!$D$10,Transport!$P$53:$AF$55,6,FALSE))","v":4000},{"$f":"IF(Transport!$D13=\"Nej\",VLOOKUP(Oplysninger!$D$10,Transport!$P$47:$AF$49,7,FALSE),VLOOKUP(Oplysninger!$D$10,Transport!$P$53:$AF$55,7,FALSE))","v":0},{"$f":"IF(Transport!$D13=\"Nej\",VLOOKUP(Oplysninger!$D$10,Transport!$P$47:$AF$49,8,FALSE),VLOOKUP(Oplysninger!$D$10,Transport!$P$53:$AF$55,8,FALSE))","v":3000},{"$f":"IF(Transport!$D13=\"Nej\",VLOOKUP(Oplysninger!$D$10,Transport!$P$47:$AF$49,9,FALSE),VLOOKUP(Oplysninger!$D$10,Transport!$P$53:$AF$55,9,FALSE))","v":0},{"$f":"IF(Transport!$D13=\"Nej\",VLOOKUP(Oplysninger!$D$10,Transport!$P$47:$AF$49,11,FALSE),VLOOKUP(Oplysninger!$D$10,Transport!$P$53:$AF$55,11,FALSE))*100","v":0},{"$f":"IF(Transport!$D13=\"Nej\",VLOOKUP(Oplysninger!$D$10,Transport!$P$47:$AF$49,12,FALSE),VLOOKUP(Oplysninger!$D$10,Transport!$P$53:$AF$55,12,FALSE))*100","v":0},{"$f":"IF(Transport!$D13=\"Nej\",VLOOKUP(Oplysninger!$D$10,Transport!$P$47:$AF$49,13,FALSE),VLOOKUP(Oplysninger!$D$10,Transport!$P$53:$AF$55,13,FALSE))*100","v":0},{"$f":"IF(Transport!$D13=\"Nej\",VLOOKUP(Oplysninger!$D$10,Transport!$P$47:$AF$49,14,FALSE),VLOOKUP(Oplysninger!$D$10,Transport!$P$53:$AF$55,14,FALSE))*100","v":0},{"$f":"IF(Transport!$D13=\"Nej\",VLOOKUP(Oplysninger!$D$10,Transport!$P$47:$AF$49,15,FALSE),VLOOKUP(Oplysninger!$D$10,Transport!$P$53:$AF$55,15,FALSE))*100","v":0},{"$f":"IF(Transport!$D13=\"Nej\",VLOOKUP(Oplysninger!$D$10,Transport!$P$47:$AF$49,16,FALSE),VLOOKUP(Oplysninger!$D$10,Transport!$P$53:$AF$55,16,FALSE))","v":5300},{"$f":"IF(Transport!$D13=\"Nej\",VLOOKUP(Oplysninger!$D$10,Transport!$P$47:$AF$49,10,FALSE),VLOOKUP(Oplysninger!$D$10,Transport!$P$53:$AF$55,10,FALSE))","v":0}]
[null,{"$f":"\"1. Pløjning pr. dag estimeret til maksimalt \"&I31&\" ha\"","v":"1. Pløjning pr. dag estimeret til maksimalt 20 ha"},null,null,null,null,null,null,20,null,null,null,"Gå tilbage til fane med beregning",null,null,"Gylle \"ja\" eller \"nej\"",null,"Ja","Ja","Ja","Ja","Ja","Ja","Ja","Nej","Nej","Nej","Nej","Nej","Ja","Ja"]
[null,"2. Tromling pr. dag estimeret til maksimalt 100 ha",null,null,null,null,null,null,100]
[null,{"$f":"\"3. Kombihavning og såning pr. dag estimeret til maksimalt \"&I33&\" ha\"","v":"3. Kombihavning og såning pr. dag estimeret til maksimalt 100 ha"},null,null,null,null,null,null,100,null,null,null,null,null,null,null,null,null,null,null,"Majs helsæd (FEN)",null,null,12000,null,null,null,null,null,null,9800]
[null,{"$f":"\"4. 200 kg. udsæd pr. ha transporteret på \"&I34& \" kg vogn\"","v":"4. 200 kg. udsæd pr. ha transporteret på 16000 kg vogn"},null,null,null,null,null,null,16000,null,null,null,null,null,null,null,null,null,null,null,"Majs helsæd (kg. grønmasse)",null,null,43100,null,null,null,null,null,null,32200]
[null,"5. Gødningsspredning pr. dag estimeret til maksimalt 250 ha",null,null,null,null,null,null,null,null,null,null,null,null,null,null,null,null,null,null,"Kilde. Grovfoderseminar 2016 (HSL)",null,null,null,null,null,null,null,null,null,"Kilde. Grovfoderseminar 2016 (HSL)"]
[null,{"$f":"\"6. 250 kg gødning pr. ha transporteret på en \"&I36&\" kg vogn\"","v":"6. 250 kg gødning pr. ha transporteret på en 16000 kg vogn"},null,null,null,null,null,null,16000]
[null,{"$f":"\"7. 30 ton gylle pr. ha udlagt fra en \"&I37&\" ton vogn\"","v":"7. 30 ton gylle pr. ha udlagt fra en 25 ton vogn"},null,null,null,null,null,null,25]
[null,{"$f":"\"8. Sprøjtning pr. dag estimeret til maksimalt \"&I38&\" ha\"","v":"8. Sprøjtning pr. dag estimeret til maksimalt 150 ha"},null,null,null,null,null,null,150]
[null,{"$f":"\"9. 150 liter supplerende vand til planteværn transporteret i en \"&I39&\" liter vogn\"","v":"9. 150 liter supplerende vand til planteværn transporteret i en 4000 liter vogn"},null,null,null,null,null,null,4000]
[null,{"$f":"\"10. Høst pr. dag estimeret til maksimalt \"&I40&\" ha\"","v":"10. Høst pr. dag estimeret til maksimalt 100 ha"},null,null,null,null,null,null,100]
[null,{"$f":"\"11. Afgrøde kørt hjem i en \"&I41& \" kg vogn (korn og andre afgrøder), eller en 22000 kg vogn (grovfoder)\"","v":"11. Afgrøde kørt hjem i en 16000 kg vogn (korn og andre afgrøder), eller en 22000 kg vogn (grovfoder)"},null,null,null,null,null,null,16000]
[null,{"$f":"\"12. Halmpresning pr. dag estimeret til maksimalt \"&I42&\" ha\"","v":"12. Halmpresning pr. dag estimeret til maksimalt 100 ha"},null,null,null,null,null,null,100]
[null,{"$f":"\"13. Halm kørt hjem på en \"&I43&\" kg vogn\"","v":"13. Halm kørt hjem på en 12000 kg vogn"},null,null,null,null,null,null,12000,null,null,null,null,null,null,"Tabel med afgrødeudbytter og halmudbytter (opdateres automatisk fra datagrundlaget)"]
[null,null,null,null,null,null,null,null,null,null,null,null,null,null,null,"lerjord","afgrøde",{"$f":"Datagrundlag!$D70*100","v":6700},{"$f":"Datagrundlag!$D71*100","v":7900},{"$f":"Datagrundlag!$D72*100","v":6000},{"$f":"Datagrundlag!$D73*100","v":10000},{"$f":"Datagrundlag!$D74*100","v":4500},{"$f":"Datagrundlag!$D75*100","v":8200},{"$f":"Datagrundlag!$D76","v":11700},{"$f":"Datagrundlag!$D77","v":8850},{"$f":"Datagrundlag!$D78*100","v":0},{"$f":"Datagrundlag!$D79*100","v":0},{"$f":"Datagrundlag!$D80*100","v":0},{"$f":"Datagrundlag!$D81*100","v":0},{"$f":"Datagrundlag!$D82*100","v":0},{"$f":"Datagrundlag!$D83*100","v":0}]
[null,null,null,null,null,null,null,null,null,null,null,null,null,null,null,"sandjord uden vanding","afgrøde",{"$f":"Datagrundlag!$D84*100","v":4700},{"$f":"Datagrundlag!$D85*100","v":5300},{"$f":"Datagrundlag!$D86*100","v":4600},{"$f":"Datagrundlag!$D87*100","v":6300},{"$f":"Datagrundlag!$D88*100","v":3200},{"$f":"Datagrundlag!$D89*100","v":5800},{"$f":"Datagrundlag!$D90","v":10750},{"$f":"Datagrundlag!$D91","v":8300},{"$f":"Datagrundlag!$D92*100","v":0},{"$f":"Datagrundlag!$D93*100","v":0},{"$f":"Datagrundlag!$D94*100","v":0},{"$f":"Datagrundlag!$D95*100","v":0},{"$f":"Datagrundlag!$D96*100","v":0},{"$f":"Datagrundlag!$D97*100","v":0}]
[null,null,null,null,null,null,null,null,null,null,null,null,null,null,null,"sandjord med vanding","afgrøde",{"$f":"Datagrundlag!$D98*100","v":6000},{"$f":"Datagrundlag!$D99*100","v":6600},{"$f":"Datagrundlag!$D100*100","v":5900},{"$f":"Datagrundlag!$D101*100","v":8400},{"$f":"Datagrundlag!$D102*100","v":4000},{"$f":"Datagrundlag!$D103*100","v":6600},{"$f":"Datagrundlag!$D104","v":11800},{"$f":"Datagrundlag!$D105","v":10100},{"$f":"Datagrundlag!$D106*100","v":0},{"$f":"Datagrundlag!$D107*100","v":0},{"$f":"Datagrundlag!$D108*100","v":0},{"$f":"Datagrundlag!$D109*100","v":0},{"$f":"Datagrundlag!$D110*100","v":0},{"$f":"Datagrundlag!$D111*100","v":0}]
[null,null,null,null,null,null,null,null,null,null,null,null,null,null,null,"lerjord","halm",{"$f":"Datagrundlag!$E70","v":3500},{"$f":"Datagrundlag!$E71","v":5400},{"$f":"Datagrundlag!$E72","v":3300},{"$f":"Datagrundlag!$E73","v":4800},{"$f":"Datagrundlag!$E74","v":0},{"$f":"Datagrundlag!$E75","v":3900},{"$f":"Datagrundlag!$E76","v":0},{"$f":"Datagrundlag!$E77","v":0},{"$f":"Datagrundlag!$E78","v":0},{"$f":"Datagrundlag!$E79","v":0},{"$f":"Datagrundlag!$E80","v":0},{"$f":"Datagrundlag!$E81","v":0},{"$f":"Datagrundlag!$E82","v":0},{"$f":"Datagrundlag!$E83","v":0}]
[null,null,null,null,null,null,null,null,null,null,null,null,null,null,null,"sandjord uden vanding","halm",{"$f":"Datagrundlag!$E84","v":2400},{"$f":"Datagrundlag!$E85","v":3400},{"$f":"Datagrundlag!$E86","v":2500},{"$f":"Datagrundlag!$E87","v":2900},{"$f":"Datagrundlag!$E88","v":0},{"$f":"Datagrundlag!$E89","v":2600},{"$f":"Datagrundlag!$E90","v":0},{"$f":"Datagrundlag!$E91","v":0},{"$f":"Datagrundlag!$E92","v":0},{"$f":"Datagrundlag!$E93","v":0},{"$f":"Datagrundlag!$E94","v":0},{"$f":"Datagrundlag!$E95","v":0},{"$f":"Datagrundlag!$E96","v":0},{"$f":"Datagrundlag!$E97","v":0}]
[null,null,null,null,null,null,null,null,null,null,null,null,null,null,null,"sandjord med vanding","halm",{"$f":"Datagrundlag!$E98","v":3100},{"$f":"Datagrundlag!$E99","v":4300},{"$f":"Datagrundlag!$E100","v":3200},{"$f":"Datagrundlag!$E101","v":4000},{"$f":"Datagrundlag!$E102","v":0},{"$f":"Datagrundlag!$E103","v":3000},{"$f":"Datagrundlag!$E104","v":0},{"$f":"Datagrundlag!$E105","v":0},{"$f":"Datagrundlag!$E106","v":0},{"$f":"Datagrundlag!$E107","v":0},{"$f":"Datagrundlag!$E108","v":0},{"$f":"Datagrundlag!$E109","v":0},{"$f":"Datagrundlag!$E110","v":0},{"$f":"Datagrundlag!$E111","v":0}]
[null,null,null,null,null,null,null,null,null,null,null,null,null,null,null,"lerjord","afgrøde m gylle",{"$f":"Datagrundlag!$D112*100","v":6700},{"$f":"Datagrundlag!$D113*100","v":7900},{"$f":"Datagrundlag!$D114*100","v":6000},{"$f":"Datagrundlag!$D115*100","v":10000},{"$f":"Datagrundlag!$D116*100","v":4500},{"$f":"Datagrundlag!$D117*100","v":8200},{"$f":"Datagrundlag!$D118","v":11700},{"$f":"Datagrundlag!$D119","v":8850},{"$f":"Datagrundlag!$D120","v":676},{"$f":"Datagrundlag!$D121","v":595},{"$f":"Datagrundlag!$D122","v":325},{"$f":"Datagrundlag!$D123","v":379},{"$f":"Datagrundlag!$D124","v":0},{"$f":"Datagrundlag!$D125*100","v":1600}]
[null,null,null,null,null,null,null,null,null,null,null,null,null,null,null,"sandjord uden vanding","afgrøde m gylle",{"$f":"Datagrundlag!$D126*100","v":4700},{"$f":"Datagrundlag!$D127*100","v":5300},{"$f":"Datagrundlag!$D128*100","v":4600},{"$f":"Datagrundlag!$D129*100","v":6300},{"$f":"Datagrundlag!$D130*100","v":3200},{"$f":"Datagrundlag!$D131*100","v":5800},{"$f":"Datagrundlag!$D132","v":10750},{"$f":"Datagrundlag!$D133","v":8300},{"$f":"Datagrundlag!$D134","v":0},{"$f":"Datagrundlag!$D135","v":0},{"$f":"Datagrundlag!$D136","v":0},{"$f":"Datagrundlag!$D137","v":0},{"$f":"Datagrundlag!$D138","v":0},{"$f":"Datagrundlag!$D139*100","v":1100}]
[null,null,null,null,null,null,null,null,null,null,null,null,null,null,null,"sandjord med vanding","afgrøde m gylle",{"$f":"Datagrundlag!$D140*100","v":6000},{"$f":"Datagrundlag!$D141*100","v":6600},{"$f":"Datagrundlag!$D142*100","v":5900},{"$f":"Datagrundlag!$D143*100","v":8400},{"$f":"Datagrundlag!$D144*100","v":4000},{"$f":"Datagrundlag!$D145*100","v":6600},{"$f":"Datagrundlag!$D146","v":11800},{"$f":"Datagrundlag!$D147","v":10100},{"$f":"Datagrundlag!$D148","v":0},{"$f":"Datagrundlag!$D149","v":595},{"$f":"Datagrundlag!$D150","v":325},{"$f":"Datagrundlag!$D151","v":379},{"$f":"Datagrundlag!$D152","v":0},{"$f":"Datagrundlag!$D153*100","v":1500}]
[null,null,null,null,null,null,null,null,null,null,null,null,null,null,null,"lerjord","halm m gylle",{"$f":"Datagrundlag!$E112","v":3500},{"$f":"Datagrundlag!$E113","v":5400},{"$f":"Datagrundlag!$E114","v":3300},{"$f":"Datagrundlag!$E115","v":4800},{"$f":"Datagrundlag!$E116","v":0},{"$f":"Datagrundlag!$E117","v":3900},{"$f":"Datagrundlag!$E118","v":0},{"$f":"Datagrundlag!$E119","v":0},{"$f":"Datagrundlag!$E120","v":0},{"$f":"Datagrundlag!$E121","v":0},{"$f":"Datagrundlag!$E122","v":0},{"$f":"Datagrundlag!$E123","v":0},{"$f":"Datagrundlag!$E124","v":0},{"$f":"Datagrundlag!$E125","v":5300}]
[null,null,null,null,null,null,null,null,null,null,null,null,null,null,null,"sandjord uden vanding","halm m gylle",{"$f":"Datagrundlag!$E126","v":2400},{"$f":"Datagrundlag!$E127","v":3400},{"$f":"Datagrundlag!$E128","v":2500},{"$f":"Datagrundlag!$E129","v":2900},{"$f":"Datagrundlag!$E130","v":0},{"$f":"Datagrundlag!$E131","v":2600},{"$f":"Datagrundlag!$E132","v":0},{"$f":"Datagrundlag!$E133","v":0},{"$f":"Datagrundlag!$E134","v":0},{"$f":"Datagrundlag!$E135","v":0},{"$f":"Datagrundlag!$E136","v":0},{"$f":"Datagrundlag!$E137","v":0},{"$f":"Datagrundlag!$E138","v":0},{"$f":"Datagrundlag!$E139","v":3800}]
[null,null,null,null,null,null,null,null,null,null,null,null,null,null,null,"sandjord med vanding","halm m gylle",{"$f":"Datagrundlag!$E140","v":3100},{"$f":"Datagrundlag!$E141","v":4300},{"$f":"Datagrundlag!$E142","v":3200},{"$f":"Datagrundlag!$E143","v":4000},{"$f":"Datagrundlag!$E144","v":0},{"$f":"Datagrundlag!$E145","v":3000},{"$f":"Datagrundlag!$E146","v":0},{"$f":"Datagrundlag!$E147","v":0},{"$f":"Datagrundlag!$E148","v":0},{"$f":"Datagrundlag!$E149","v":0},{"$f":"Datagrundlag!$E150","v":0},{"$f":"Datagrundlag!$E151","v":0},{"$f":"Datagrundlag!$E152","v":0},{"$f":"Datagrundlag!$E153","v":5300}]

{"sheet":"Datagrundlag","index":5,"n_rows":257,"n_cols":6,"rows_kept":257,"cut":false,"hidden":false,"merged":[]}
[null,null,"DATAGRUNDLAG (budgetkalkuler okt. 2020 for 2021)"]
[null,null,"Opdateret 21.10.2020 ovl"]
[null,null,null,null,"Valgfelt (ja/nej)"]
[null,null,"Jordbund",null,null,"Ja"]
[null,null,null,null,null,"Nej"]
[null,null,"lerjord"]
[null,null,"sandjord uden vanding",null,"Opdateres årligt efter budgetkalkulerne i FarmtalOnline"]
[null,null,"sandjord med vanding",null,"Priser","Kr. pr. hkg."]
[null,null,null,null,"Byg",109]
[null,null,"Faste specifikationer (opdateres ikke)",null,"Hvede",115]
[null,null,"Salgspris arbejde",null,"Havre",98]
[null,null,null,null,"Raps",280]
[null,null,0,null,"Rug",100]
[null,null,50,null,"Slætgræs 4 slæt",""]
[null,null,100,null,"Majs til helsæd",""]
[null,null,150,null,"Fabriksroer",21]
[null,null,200,null,"Stivelseskartofler",64]
[null,null,250,null,"Læggekartofler",185]
[null,null,300,null,"Spisekartofler",118]
[null,null,350,null,"Proceskartofler",64]
[null,null,400,null,"Alm. rajgræs",825]
[null,null,null,null,"Ingen eller andet",""]
[null,null,"Faste specifikationer (opdateres ikke)"]
[null,null,"Afgrøder",null,"Salgsafgrøder","Pct."]
[null,null,null,null,"Drift ekskl. maskinstation",0.315]
[null,null,"Vårbyg",null,"Renter og afskrivninger",0.34699999999999998]
[null,null,"Vinterrug",null,"Løn",0.33800000000000002]
[null,null,"Havre",null,"Grovfoder","Pct."]
[null,null,"Vinterhvede",null,"Drift ekskl. maskinstation",0.33100000000000002]
[null,null,"Vinterraps",null,"Renter og afskrivninger",0.28799999999999998]
[null,null,"Vinterbyg",null,"Løn",0.38100000000000001]
[null,null,"Majs til helsæd",null,"Afrundet gennemsnit","Pct."]
[null,null,"Slætgræs 4 slæt",null,"Drift ekskl. maskinstation",{"$f":"ROUND((F25+F29)/2,2)","v":0.32}]
[null,null,"Fabriksroer",null,"Renter og afskrivninger",{"$f":"ROUND((F26+F30)/2,2)","v":0.32}]
[null,null,"Stivelseskartofler",null,"Løn",0.36]
[null,null,"Læggekartofler",null,null,{"$f":"SUM(F33:F35)","v":1}]
[null,null,"Spisekartofler"]
[null,null,"Proceskartofler"]
[null,null,"Alm. rajgræs"]
[null,null,"Ingen eller andet"]
[]
[null,null,"Faste specifikationer (opdateres ikke)"]
[null,null,"Driftsform",null,"Dummy1"]
[]
[null,null,"Husdyrproduktion"]
[null,null,"Planteavl"]
[null,null,"Alle"]
[]
[null,null,"Faste specifikationer (opdateres ikke)"]
[null,null,"Jordbonitet",null,"Dummy2"]
[]
[null,null,"JB1&3",1]
[null,null,"JB2&4",2]
[null,null,"JB5&6",3]
[null,null,"JB7&8",4]
[null,null,"Alle","Alle"]
[]
[null,null,"Faste specifikationer (opdateres ikke)"]
[null,null,"Landsdel"]
[]
[null,null,"Lolland-Falster","Lolland-Falster"]
[null,null,"Nordjylland","Nordjylland"]
[null,null,"Sjælland Bornholm","Sjælland Bornholm"]
[null,null,"Vestjylland","Vestjylland"]
[null,null,"Østjylland-Fyn","Østjylland-Fyn"]
[null,null,"Alle","Alle"]
[]
[null,null,"Opdateres årligt efter budgetkalkulerne i FarmtalOnline"]
[null,null,"Afgrøde-og halmudbytter","Afgrøder (hkg./FEN)","Halm (kg.)"]
[null,null,{"$f":"C26&\" på\"&\" \"&C$6&\" med gylle\"","v":"Vårbyg på lerjord med gylle"},67,3500]
[null,null,"Vinterrug på lerjord med gylle",79,5400]
[null,null,"Havre på lerjord med gylle",60,3300]
[null,null,"Vinterhvede på lerjord med gylle",100,4800]
[null,null,"Vinterraps på lerjord med gylle",45,0]
[null,null,"Vinterbyg på lerjord med gylle",82,3900]
[null,null,"Majs til helsæd på lerjord med gylle",11700,0]
[null,null,"Slætgræs 4 slæt på lerjord med gylle",8850,0]
[null,null,"Fabriksroer på lerjord med gylle",null,0]
[null,null,"Stivelseskartofler på lerjord med gylle",null,0]
[null,null,"Læggekartofler på lerjord med gylle",null,0]
[null,null,"Spisekartofler på lerjord med gylle",null,0]
[null,null,"Proceskartofler på lerjord med gylle",null,0]
[null,null,"Alm. rajgræs på lerjord med gylle"]
[null,null,{"$f":"C26&\" på\"&\" \"&C$7&\" med gylle\"","v":"Vårbyg på sandjord uden vanding med gylle"},47,2400]
[null,null,"Vinterrug på sandjord uden vanding med gylle",53,3400]
[null,null,"Havre på sandjord uden vanding med gylle",46,2500]
[null,null,"Vinterhvede på sandjord uden vanding med gylle",63,2900]
[null,null,"Vinterraps på sandjord uden vanding med gylle",32,0]
[null,null,"Vinterbyg på sandjord uden vanding med gylle",58,2600]
[null,null,"Majs til helsæd på sandjord uden vanding med gylle",10750,0]
[null,null,"Slætgræs 4 slæt på sandjord uden vanding med gylle",8300,0]
[null,null,"Fabriksroer på sandjord uden vanding med gylle",null,0]
[null,null,"Stivelseskartofler på sandjord uden vanding med gylle",null,0]
[null,null,"Læggekartofler på sandjord uden vanding med gylle",null,0]
[null,null,"Spisekartofler på sandjord uden vanding med gylle",null,0]
[null,null,"Proceskartofler på sandjord uden vanding med gylle",null,0]
[null,null,"Alm. rajgræs på sandjord uden vanding med gylle"]
[null,null,{"$f":"C26&\" på\"&\" \"&C$8&\" med gylle\"","v":"Vårbyg på sandjord med vanding med gylle"},60,3100]
[null,null,"Vinterrug på sandjord med vanding med gylle",66,4300]
[null,null,"Havre på sandjord med vanding med gylle",59,3200]
[null,null,"Vinterhvede på sandjord med vanding med gylle",84,4000]
[null,null,"Vinterraps på sandjord med vanding med gylle",40,0]
[null,null,"Vinterbyg på sandjord med vanding med gylle",66,3000]
[null,null,"Majs til helsæd på sandjord med vanding med gylle",11800,0]
[null,null,"Slætgræs 4 slæt på sandjord med vanding med gylle",10100,0]
[null,null,"Fabriksroer på sandjord med vanding med gylle",0,0]
[null,null,"Stivelseskartofler på sandjord med vanding med gylle",0,0]
[null,null,"Læggekartofler på sandjord med vanding med gylle",0,0]
[null,null,"Spisekartofler på sandjord med vanding med gylle",0,0]
[null,null,"Proceskartofler på sandjord med vanding med gylle",0,0]
[null,null,"Alm. rajgræs på sandjord med vanding med gylle",0,0]
[null,null,{"$f":"C26&\" på\"&\" \"&C$6&\" uden gylle\"","v":"Vårbyg på lerjord uden gylle"},67,3500]
[null,null,"Vinterrug på lerjord uden gylle",79,5400]
[null,null,"Havre på lerjord uden gylle",60,3300]
[null,null,"Vinterhvede på lerjord uden gylle",100,4800]
[null,null,"Vinterraps på lerjord uden gylle",45,0]
[null,null,"Vinterbyg på lerjord uden gylle",82,3900]
[null,null,"Majs til helsæd på lerjord uden gylle",11700,0]
[null,null,"Slætgræs 4 slæt på lerjord uden gylle",8850,0]
[null,null,"Fabriksroer på lerjord uden gylle",676,0]
[null,null,"Stivelseskartofler på lerjord uden gylle",595,0]
[null,null,"Læggekartofler på lerjord uden gylle",325,0]
[null,null,"Spisekartofler på lerjord uden gylle",379,0]
[null,null,"Proceskartofler på lerjord uden gylle",null,0]
[null,null,"Alm. rajgræs på lerjord uden gylle",16,5300]
[null,null,{"$f":"C26&\" på\"&\" \"&C$7&\" uden gylle\"","v":"Vårbyg på sandjord uden vanding uden gylle"},47,2400]
[null,null,"Vinterrug på sandjord uden vanding uden gylle",53,3400]
[null,null,"Havre på sandjord uden vanding uden gylle",46,2500]
[null,null,"Vinterhvede på sandjord uden vanding uden gylle",63,2900]
[null,null,"Vinterraps på sandjord uden vanding uden gylle",32,0]
[null,null,"Vinterbyg på sandjord uden vanding uden gylle",58,2600]
[null,null,"Majs til helsæd på sandjord uden vanding uden gylle",10750,0]
[null,null,"Slætgræs 4 slæt på sandjord uden vanding uden gylle",8300,0]
[null,null,"Fabriksroer på sandjord uden vanding uden gylle",null,0]
[null,null,"Stivelseskartofler på sandjord uden vanding uden gylle",null,0]
[null,null,"Læggekartofler på sandjord uden vanding uden gylle",null,0]
[null,null,"Spisekartofler på sandjord uden vanding uden gylle",null,0]
[null,null,"Proceskartofler på sandjord uden vanding uden gylle",null,0]
[null,null,"Alm. rajgræs på sandjord uden vanding uden gylle",11,3800]
[null,null,{"$f":"C26&\" på\"&\" \"&C$8&\" uden gylle\"","v":"Vårbyg på sandjord med vanding uden gylle"},60,3100]
[null,null,"Vinterrug på sandjord med vanding uden gylle",66,4300]
[null,null,"Havre på sandjord med vanding uden gylle",59,3200]
[null,null,"Vinterhvede på sandjord med vanding uden gylle",84,4000]
[null,null,"Vinterraps på sandjord med vanding uden gylle",40,0]
[null,null,"Vinterbyg på sandjord med vanding uden gylle",66,3000]
[null,null,"Majs til helsæd på sandjord med vanding uden gylle",11800,0]
[null,null,"Slætgræs 4 slæt på sandjord med vanding uden gylle",10100,0]
[null,null,"Fabriksroer på sandjord med vanding uden gylle",null,0]
[null,null,"Stivelseskartofler på sandjord med vanding uden gylle",595,0]
[null,null,"Læggekartofler på sandjord med vanding uden gylle",325,0]
[null,null,"Spisekartofler på sandjord med vanding uden gylle",379,0]
[null,null,"Proceskartofler på sandjord med vanding uden gylle",null,0]
[null,null,"Alm. rajgræs på sandjord med vanding uden gylle",15,5300]
[null,null,"Ingen eller andet på lerjord uden gylle",0,0]
[null,null,"Ingen eller andet på sandjord uden vanding uden gylle",0,0]
[null,null,"Ingen eller andet på sandjord med vanding uden gylle",0,0]
[null,null,"Ingen eller andet på lerjord med gylle",0,0]
[null,null,"Ingen eller andet på sandjord uden vanding med gylle",0,0]
[null,null,"Ingen eller andet på sandjord med vanding med gylle",0,0]
[null,null,null,0,0]
[]
[null,null,"Beregning af halmproduktion uden @Risk (opdateres ikke)"]
[null,null,"Omkostninger","Kg. halm pr. ha","Kg. halm i alt"]
[null,null,{"$f":"Beregninger!D5","v":"Vårbyg på sandjord med vanding med gylle"},{"$f":"IFERROR(IF(C164=\"\",0,VLOOKUP(C164,$C$70:$E$160,3,FALSE)),0)","v":3100},{"$f":"IFERROR(D164*Oplysninger!D$9*Oplysninger!D19,0)","v":75175}]
[null,null,{"$f":"Beregninger!D6","v":"Vinterhvede på sandjord med vanding med gylle"},{"$f":"IFERROR(IF(C165=\"\",0,VLOOKUP(C165,$C$70:$E$160,3,FALSE)),0)","v":4000},{"$f":"IFERROR(D165*Oplysninger!D$9*Oplysninger!D20,0)","v":194000}]
[null,null,{"$f":"Beregninger!D7","v":"Vinterraps på sandjord med vanding med gylle"},0,{"$f":"IFERROR(D166*Oplysninger!D$9*Oplysninger!D21,0)","v":0}]
[null,null,{"$f":"Beregninger!D8","v":"Majs til helsæd på sandjord med vanding med gylle"},0,{"$f":"IFERROR(D167*Oplysninger!D$9*Oplysninger!D22,0)","v":0}]
[null,null,{"$f":"Beregninger!D9","v":"Fabriksroer på sandjord med vanding med gylle"},0,{"$f":"IFERROR(D168*Oplysninger!D$9*Oplysninger!D23,0)","v":0}]
[null,null,{"$f":"Beregninger!D10","v":"Slætgræs 4 slæt på sandjord med vanding med gylle"},0,{"$f":"IFERROR(D169*Oplysninger!D$9*Oplysninger!D24,0)","v":0}]
[null,null,"I alt",null,{"$f":"SUM(E164:E169)","v":269175}]
[]
[null,null,"Opdateres årligt efter budgetkalkulerne i FarmtalOnline"]
[null,null,"Omkostninger","Stykomk.","Maskinomk."]
[null,null,{"$f":"C26&\" med gylle\"&\" på lerjord\"","v":"Vårbyg med gylle på lerjord"},757,5765]
[null,null,"Vinterrug med gylle på lerjord",1339,6498]
[null,null,"Havre med gylle på lerjord",753,5198]
[null,null,"Vinterhvede med gylle på lerjord",1860,6961]
["JB 5-6",null,"Vinterraps med gylle på lerjord",2663,5844]
[null,null,"Vinterbyg med gylle på lerjord",1423,6245]
[null,null,"Majs til helsæd med gylle på lerjord",2730,5016]
[null,null,"Slætgræs 4 slæt med gylle på lerjord",1138,7070]
[null,null,"Fabriksroer med gylle på lerjord",0,0]
[null,null,"Stivelseskartofler med gylle på lerjord",0,0]
[null,null,"Læggekartofler med gylle på lerjord",0,0]
[null,null,"Spisekartofler med gylle på lerjord",0,0]
[null,null,"Proceskartofler med gylle på lerjord",0,0]
[null,null,"Alm. rajgræs med gylle på lerjord"]
[null,null,{"$f":"C26&\" med gylle\"&\" på sandjord uden vanding\"","v":"Vårbyg med gylle på sandjord uden vanding"},757,4974]
[null,null,"Vinterrug med gylle på sandjord uden vanding",1257,5437]
[null,null,"Havre med gylle på sandjord uden vanding",753,4647]
[null,null,"Vinterhvede med gylle på sandjord uden vanding",1679,5707]
["JB 1-3",null,"Vinterraps med gylle på sandjord uden vanding",2462,5214]
[null,null,"Vinterbyg med gylle på sandjord uden vanding",1357,5379]
[null,null,"Majs til helsæd med gylle på sandjord uden vanding",2697,4815]
[null,null,"Slætgræs 4 slæt med gylle på sandjord uden vanding",1079,6758]
[null,null,"Fabriksroer med gylle på sandjord uden vanding",0,0]
[null,null,"Stivelseskartofler med gylle på sandjord uden vanding",0,0]
[null,null,"Læggekartofler med gylle på sandjord uden vanding",0,0]
[null,null,"Spisekartofler med gylle på sandjord uden vanding",0,0]
[null,null,"Proceskartofler med gylle på sandjord uden vanding",0,0]
[null,null,"Alm. rajgræs med gylle på sandjord uden vanding"]
[null,null,{"$f":"C26&\" med gylle\"&\" på sandjord med vanding\"","v":"Vårbyg med gylle på sandjord med vanding"},757,7301]
[null,null,"Vinterrug med gylle på sandjord med vanding",1334,8002]
[null,null,"Havre med gylle på sandjord med vanding",753,6994]
[null,null,"Vinterhvede med gylle på sandjord med vanding",1827,8469]
[null,null,"Vinterraps med gylle på sandjord med vanding",2584,7556]
["JB 1-4 m. vanding",null,"Vinterbyg med gylle på sandjord med vanding",1406,7742]
[null,null,"Majs til helsæd med gylle på sandjord med vanding",2732,6823]
[null,null,"Slætgræs 4 slæt med gylle på sandjord med vanding",1252,9496]
[null,null,"Fabriksroer med gylle på sandjord med vanding",0,0]
[null,null,"Stivelseskartofler med gylle på sandjord med vanding",0,0]
[null,null,"Læggekartofler med gylle på sandjord med vanding",0,0]
[null,null,"Spisekartofler med gylle på sandjord med vanding",0,0]
[null,null,"Proceskartofler med gylle på sandjord med vanding",0,0]
[null,null,"Alm. rajgræs med gylle på sandjord med vanding"]
[null,null,{"$f":"C26&\" uden gylle\"&\" på lerjord\"","v":"Vårbyg uden gylle på lerjord"},2125,5101]
[null,null,"Vinterrug uden gylle på lerjord",2695,6048]
[null,null,"Havre uden gylle på lerjord",1976,4732]
[null,null,"Vinterhvede uden gylle på lerjord",3342,6511]
["JB 5-6 (Uden gødning)",null,"Vinterraps uden gylle på lerjord",4027,5294]
[null,null,"Vinterbyg uden gylle på lerjord",2682,5645]
[null,null,"Majs til helsæd uden gylle på lerjord",4508,4396]
[null,null,"Slætgræs 4 slæt uden gylle på lerjord",4210,5870]
[null,null,"Fabriksroer uden gylle på lerjord",5306,5975]
[null,null,"Stivelseskartofler uden gylle på lerjord",14079,12075]
[null,null,"Læggekartofler uden gylle på lerjord",27009,16256]
[null,null,"Spisekartofler uden gylle på lerjord",26167,16263]
[null,null,"Proceskartofler uden gylle på lerjord"]
[null,null,"Alm. rajgræs uden gylle på lerjord",4147,5356]
[null,null,{"$f":"C26&\" uden gylle\"&\" på sandjord uden vanding\"","v":"Vårbyg uden gylle på sandjord uden vanding"},2046,4384]
[null,null,"Vinterrug uden gylle på sandjord uden vanding",2468,5010]
[null,null,"Havre uden gylle på sandjord uden vanding",1985,4195]
[null,null,"Vinterhvede uden gylle på sandjord uden vanding",2947,5280]
["JB 1-3 (Uden gødning)",null,"Vinterraps uden gylle på sandjord uden vanding",3739,4692]
[null,null,"Vinterbyg uden gylle på sandjord uden vanding",2532,4809]
[null,null,"Majs til helsæd uden gylle på sandjord uden vanding",4551,4205]
[null,null,"Slætgræs 4 slæt uden gylle på sandjord uden vanding",4163,5693]
[null,null,"Fabriksroer uden gylle på sandjord uden vanding",0,0]
[null,null,"Stivelseskartofler uden gylle på sandjord uden vanding",0,0]
[null,null,"Læggekartofler uden gylle på sandjord uden vanding",0,0]
[null,null,"Spisekartofler uden gylle på sandjord uden vanding",0,0]
[null,null,"Proceskartofler uden gylle på sandjord uden vanding",0,0]
[null,null,"Alm. rajgræs uden gylle på sandjord uden vanding",3738,4304]
[null,null,{"$f":"C26&\" uden gylle\"&\" på sandjord med vanding\"","v":"Vårbyg uden gylle på sandjord med vanding"},2268,6632]
[null,null,"Vinterrug uden gylle på sandjord med vanding",2743,7575]
[null,null,"Havre uden gylle på sandjord med vanding",2208,6443]
[null,null,"Vinterhvede uden gylle på sandjord med vanding",3282,8042]
["JB 1-4 m. vanding (uden gødning)",null,"Vinterraps uden gylle på sandjord med vanding",3990,7034]
[null,null,"Vinterbyg uden gylle på sandjord med vanding",2657,7172]
[null,null,"Majs til helsæd uden gylle på sandjord med vanding",4785,6114]
[null,null,"Slætgræs 4 slæt uden gylle på sandjord med vanding",4732,8431]
[null,null,"Fabriksroer uden gylle på sandjord med vanding",0,0]
[null,null,"Stivelseskartofler uden gylle på sandjord med vanding",14337,14276]
[null,null,"Læggekartofler uden gylle på sandjord med vanding",27206,18457]
[null,null,"Spisekartofler uden gylle på sandjord med vanding",26306,18429]
[null,null,"Proceskartofler uden gylle på sandjord med vanding"]
[null,null,"Alm. rajgræs uden gylle på sandjord med vanding",4213,7157]

{"sheet":"Fraktilgrupper","index":6,"n_rows":87,"n_cols":17,"rows_kept":87,"cut":false,"hidden":true,"merged":[]}
["Landsdel","type","FTO_jb","FTO_jbx","x.Antal","x.MQ00_20","x.MQ00_20x","x.MQ20_40","x.MQ20_40x","x.MQ40_60","x.MQ40_60x","x.MQ60_80","x.MQ60_80x","x.MQ80_100","x.MQ80_100x","Dummy 1","Dummy2"]
["Lolland-Falster","Husdyrproduktion","2",{"$f":"_xlfn.IFS(Tabel1[[#This Row],[FTO_jb]]=\"1\",\"JB1&3\",Tabel1[[#This Row],[FTO_jb]]=\"2\",\"JB2&4\",Tabel1[[#This Row],[FTO_jb]]=\"3\",\"JB5&6\",Tabel1[[#This Row],[FTO_jb]]=\"4\",\"JB7&8\",Tabel1[[#This Row],[FTO_jb]]=\"Alle\",Tabel1[[#This Row],[FTO_jb]])","v":"JB2&4"},2,"NaN",{"$f":"IF(Tabel1[[#This Row],[x.MQ00_20]]=\"NaN\",\"\",VALUE(Tabel1[[#This Row],[x.MQ00_20]]))","v":""},"NaN",{"$f":"IF(Tabel1[[#This Row],[x.MQ20_40]]=\"NaN\",\"\",VALUE(Tabel1[[#This Row],[x.MQ20_40]]))","v":""},"NaN",{"$f":"IF(Tabel1[[#This Row],[x.MQ40_60]]=\"NaN\",\"\",VALUE(Tabel1[[#This Row],[x.MQ40_60]]))","v":""},"NaN",{"$f":"IF(Tabel1[[#This Row],[x.MQ60_80]]=\"NaN\",\"\",VALUE(Tabel1[[#This Row],[x.MQ60_80]]))","v":""},"NaN",{"$f":"IF(Tabel1[[#This Row],[x.MQ80_100]]=\"NaN\",\"\",VALUE(Tabel1[[#This Row],[x.MQ80_100]]))","v":""}]
["Lolland-Falster","Husdyrproduktion","3",{"$f":"_xlfn.IFS(Tabel1[[#This Row],[FTO_jb]]=\"1\",\"JB1&3\",Tabel1[[#This Row],[FTO_jb]]=\"2\",\"JB2&4\",Tabel1[[#This Row],[FTO_jb]]=\"3\",\"JB5&6\",Tabel1[[#This Row],[FTO_jb]]=\"4\",\"JB7&8\",Tabel1[[#This Row],[FTO_jb]]=\"Alle\",Tabel1[[#This Row],[FTO_jb]])","v":"JB5&6"},23,"NaN",{"$f":"IF(Tabel1[[#This Row],[x.MQ00_20]]=\"NaN\",\"\",VALUE(Tabel1[[#This Row],[x.MQ00_20]]))","v":""},"NaN",{"$f":"IF(Tabel1[[#This Row],[x.MQ20_40]]=\"NaN\",\"\",VALUE(Tabel1[[#This Row],[x.MQ20_40]]))","v":""},"NaN",{"$f":"IF(Tabel1[[#This Row],[x.MQ40_60]]=\"NaN\",\"\",VALUE(Tabel1[[#This Row],[x.MQ40_60]]))","v":""},"NaN",{"$f":"IF(Tabel1[[#This Row],[x.MQ60_80]]=\"NaN\",\"\",VALUE(Tabel1[[#This Row],[x.MQ60_80]]))","v":""},"NaN",{"$f":"IF(Tabel1[[#This Row],[x.MQ80_100]]=\"NaN\",\"\",VALUE(Tabel1[[#This Row],[x.MQ80_100]]))","v":""}]
["Lolland-Falster","Husdyrproduktion","4",{"$f":"_xlfn.IFS(Tabel1[[#This Row],[FTO_jb]]=\"1\",\"JB1&3\",Tabel1[[#This Row],[FTO_jb]]=\"2\",\"JB2&4\",Tabel1[[#This Row],[FTO_jb]]=\"3\",\"JB5&6\",Tabel1[[#This Row],[FTO_jb]]=\"4\",\"JB7&8\",Tabel1[[#This Row],[FTO_jb]]=\"Alle\",Tabel1[[#This Row],[FTO_jb]])","v":"JB7&8"},12,"NaN",{"$f":"IF(Tabel1[[#This Row],[x.MQ00_20]]=\"NaN\",\"\",VALUE(Tabel1[[#This Row],[x.MQ00_20]]))","v":""},"NaN",{"$f":"IF(Tabel1[[#This Row],[x.MQ20_40]]=\"NaN\",\"\",VALUE(Tabel1[[#This Row],[x.MQ20_40]]))","v":""},"NaN",{"$f":"IF(Tabel1[[#This Row],[x.MQ40_60]]=\"NaN\",\"\",VALUE(Tabel1[[#This Row],[x.MQ40_60]]))","v":""},"NaN",{"$f":"IF(Tabel1[[#This Row],[x.MQ60_80]]=\"NaN\",\"\",VALUE(Tabel1[[#This Row],[x.MQ60_80]]))","v":""},"NaN",{"$f":"IF(Tabel1[[#This Row],[x.MQ80_100]]=\"NaN\",\"\",VALUE(Tabel1[[#This Row],[x.MQ80_100]]))","v":""}]
["Lolland-Falster","Planteavl","1",{"$f":"_xlfn.IFS(Tabel1[[#This Row],[FTO_jb]]=\"1\",\"JB1&3\",Tabel1[[#This Row],[FTO_jb]]=\"2\",\"JB2&4\",Tabel1[[#This Row],[FTO_jb]]=\"3\",\"JB5&6\",Tabel1[[#This Row],[FTO_jb]]=\"4\",\"JB7&8\",Tabel1[[#This Row],[FTO_jb]]=\"Alle\",Tabel1[[#This Row],[FTO_jb]])","v":"JB1&3"},1,"NaN",{"$f":"IF(Tabel1[[#This Row],[x.MQ00_20]]=\"NaN\",\"\",VALUE(Tabel1[[#This Row],[x.MQ00_20]]))","v":""},"NaN",{"$f":"IF(Tabel1[[#This Row],[x.MQ20_40]]=\"NaN\",\"\",VALUE(Tabel1[[#This Row],[x.MQ20_40]]))","v":""},"NaN",{"$f":"IF(Tabel1[[#This Row],[x.MQ40_60]]=\"NaN\",\"\",VALUE(Tabel1[[#This Row],[x.MQ40_60]]))","v":""},"NaN",{"$f":"IF(Tabel1[[#This Row],[x.MQ60_80]]=\"NaN\",\"\",VALUE(Tabel1[[#This Row],[x.MQ60_80]]))","v":""},"NaN",{"$f":"IF(Tabel1[[#This Row],[x.MQ80_100]]=\"NaN\",\"\",VALUE(Tabel1[[#This Row],[x.MQ80_100]]))","v":""}]
["Lolland-Falster","Planteavl","2",{"$f":"_xlfn.IFS(Tabel1[[#This Row],[FTO_jb]]=\"1\",\"JB1&3\",Tabel1[[#This Row],[FTO_jb]]=\"2\",\"JB2&4\",Tabel1[[#This Row],[FTO_jb]]=\"3\",\"JB5&6\",Tabel1[[#This Row],[FTO_jb]]=\"4\",\"JB7&8\",Tabel1[[#This Row],[FTO_jb]]=\"Alle\",Tabel1[[#This Row],[FTO_jb]])","v":"JB2&4"},6,"NaN",{"$f":"IF(Tabel1[[#This Row],[x.MQ00_20]]=\"NaN\",\"\",VALUE(Tabel1[[#This Row],[x.MQ00_20]]))","v":""},"NaN",{"$f":"IF(Tabel1[[#This Row],[x.MQ20_40]]=\"NaN\",\"\",VALUE(Tabel1[[#This Row],[x.MQ20_40]]))","v":""},"NaN",{"$f":"IF(Tabel1[[#This Row],[x.MQ40_60]]=\"NaN\",\"\",VALUE(Tabel1[[#This Row],[x.MQ40_60]]))","v":""},"NaN",{"$f":"IF(Tabel1[[#This Row],[x.MQ60_80]]=\"NaN\",\"\",VALUE(Tabel1[[#This Row],[x.MQ60_80]]))","v":""},"NaN",{"$f":"IF(Tabel1[[#This Row],[x.MQ80_100]]=\"NaN\",\"\",VALUE(Tabel1[[#This Row],[x.MQ80_100]]))","v":""}]
["Lolland-Falster","Planteavl","3",{"$f":"_xlfn.IFS(Tabel1[[#This Row],[FTO_jb]]=\"1\",\"JB1&3\",Tabel1[[#This Row],[FTO_jb]]=\"2\",\"JB2&4\",Tabel1[[#This Row],[FTO_jb]]=\"3\",\"JB5&6\",Tabel1[[#This Row],[FTO_jb]]=\"4\",\"JB7&8\",Tabel1[[#This Row],[FTO_jb]]=\"Alle\",Tabel1[[#This Row],[FTO_jb]])","v":"JB5&6"},39,"NaN",{"$f":"IF(Tabel1[[#This Row],[x.MQ00_20]]=\"NaN\",\"\",VALUE(Tabel1[[#This Row],[x.MQ00_20]]))","v":""},"NaN",{"$f":"IF(Tabel1[[#This Row],[x.MQ20_40]]=\"NaN\",\"\",VALUE(Tabel1[[#This Row],[x.MQ20_40]]))","v":""},"NaN",{"$f":"IF(Tabel1[[#This Row],[x.MQ40_60]]=\"NaN\",\"\",VALUE(Tabel1[[#This Row],[x.MQ40_60]]))","v":""},"NaN",{"$f":"IF(Tabel1[[#This Row],[x.MQ60_80]]=\"NaN\",\"\",VALUE(Tabel1[[#This Row],[x.MQ60_80]]))","v":""},"NaN",{"$f":"IF(Tabel1[[#This Row],[x.MQ80_100]]=\"NaN\",\"\",VALUE(Tabel1[[#This Row],[x.MQ80_100]]))","v":""}]
["Lolland-Falster","Planteavl","4",{"$f":"_xlfn.IFS(Tabel1[[#This Row],[FTO_jb]]=\"1\",\"JB1&3\",Tabel1[[#This Row],[FTO_jb]]=\"2\",\"JB2&4\",Tabel1[[#This Row],[FTO_jb]]=\"3\",\"JB5&6\",Tabel1[[#This Row],[FTO_jb]]=\"4\",\"JB7&8\",Tabel1[[#This Row],[FTO_jb]]=\"Alle\",Tabel1[[#This Row],[FTO_jb]])","v":"JB7&8"},36,"NaN",{"$f":"IF(Tabel1[[#This Row],[x.MQ00_20]]=\"NaN\",\"\",VALUE(Tabel1[[#This Row],[x.MQ00_20]]))","v":""},"NaN",{"$f":"IF(Tabel1[[#This Row],[x.MQ20_40]]=\"NaN\",\"\",VALUE(Tabel1[[#This Row],[x.MQ20_40]]))","v":""},"NaN",{"$f":"IF(Tabel1[[#This Row],[x.MQ40_60]]=\"NaN\",\"\",VALUE(Tabel1[[#This Row],[x.MQ40_60]]))","v":""},"NaN",{"$f":"IF(Tabel1[[#This Row],[x.MQ60_80]]=\"NaN\",\"\",VALUE(Tabel1[[#This Row],[x.MQ60_80]]))","v":""},"NaN",{"$f":"IF(Tabel1[[#This Row],[x.MQ80_100]]=\"NaN\",\"\",VALUE(Tabel1[[#This Row],[x.MQ80_100]]))","v":""}]
["Nordjylland","Husdyrproduktion","1",{"$f":"_xlfn.IFS(Tabel1[[#This Row],[FTO_jb]]=\"1\",\"JB1&3\",Tabel1[[#This Row],[FTO_jb]]=\"2\",\"JB2&4\",Tabel1[[#This Row],[FTO_jb]]=\"3\",\"JB5&6\",Tabel1[[#This Row],[FTO_jb]]=\"4\",\"JB7&8\",Tabel1[[#This Row],[FTO_jb]]=\"Alle\",Tabel1[[#This Row],[FTO_jb]])","v":"JB1&3"},74,"2114",{"$f":"IF(Tabel1[[#This Row],[x.MQ00_20]]=\"NaN\",\"\",VALUE(Tabel1[[#This Row],[x.MQ00_20]]))","v":2114},"3367",{"$f":"IF(Tabel1[[#This Row],[x.MQ20_40]]=\"NaN\",\"\",VALUE(Tabel1[[#This Row],[x.MQ20_40]]))","v":3367},"3877",{"$f":"IF(Tabel1[[#This Row],[x.MQ40_60]]=\"NaN\",\"\",VALUE(Tabel1[[#This Row],[x.MQ40_60]]))","v":3877},"4515",{"$f":"IF(Tabel1[[#This Row],[x.MQ60_80]]=\"NaN\",\"\",VALUE(Tabel1[[#This Row],[x.MQ60_80]]))","v":4515},"5764",{"$f":"IF(Tabel1[[#This Row],[x.MQ80_100]]=\"NaN\",\"\",VALUE(Tabel1[[#This Row],[x.MQ80_100]]))","v":5764}]
["Nordjylland","Husdyrproduktion","2",{"$f":"_xlfn.IFS(Tabel1[[#This Row],[FTO_jb]]=\"1\",\"JB1&3\",Tabel1[[#This Row],[FTO_jb]]=\"2\",\"JB2&4\",Tabel1[[#This Row],[FTO_jb]]=\"3\",\"JB5&6\",Tabel1[[#This Row],[FTO_jb]]=\"4\",\"JB7&8\",Tabel1[[#This Row],[FTO_jb]]=\"Alle\",Tabel1[[#This Row],[FTO_jb]])","v":"JB2&4"},391,"2038",{"$f":"IF(Tabel1[[#This Row],[x.MQ00_20]]=\"NaN\",\"\",VALUE(Tabel1[[#This Row],[x.MQ00_20]]))","v":2038},"3322",{"$f":"IF(Tabel1[[#This Row],[x.MQ20_40]]=\"NaN\",\"\",VALUE(Tabel1[[#This Row],[x.MQ20_40]]))","v":3322},"3902",{"$f":"IF(Tabel1[[#This Row],[x.MQ40_60]]=\"NaN\",\"\",VALUE(Tabel1[[#This Row],[x.MQ40_60]]))","v":3902},"4524",{"$f":"IF(Tabel1[[#This Row],[x.MQ60_80]]=\"NaN\",\"\",VALUE(Tabel1[[#This Row],[x.MQ60_80]]))","v":4524},"5890",{"$f":"IF(Tabel1[[#This Row],[x.MQ80_100]]=\"NaN\",\"\",VALUE(Tabel1[[#This Row],[x.MQ80_100]]))","v":5890}]
["Nordjylland","Husdyrproduktion","3",{"$f":"_xlfn.IFS(Tabel1[[#This Row],[FTO_jb]]=\"1\",\"JB1&3\",Tabel1[[#This Row],[FTO_jb]]=\"2\",\"JB2&4\",Tabel1[[#This Row],[FTO_jb]]=\"3\",\"JB5&6\",Tabel1[[#This Row],[FTO_jb]]=\"4\",\"JB7&8\",Tabel1[[#This Row],[FTO_jb]]=\"Alle\",Tabel1[[#This Row],[FTO_jb]])","v":"JB5&6"},54,"2063",{"$f":"IF(Tabel1[[#This Row],[x.MQ00_20]]=\"NaN\",\"\",VALUE(Tabel1[[#This Row],[x.MQ00_20]]))","v":2063},"3923",{"$f":"IF(Tabel1[[#This Row],[x.MQ20_40]]=\"NaN\",\"\",VALUE(Tabel1[[#This Row],[x.MQ20_40]]))","v":3923},"4436",{"$f":"IF(Tabel1[[#This Row],[x.MQ40_60]]=\"NaN\",\"\",VALUE(Tabel1[[#This Row],[x.MQ40_60]]))","v":4436},"5181",{"$f":"IF(Tabel1[[#This Row],[x.MQ60_80]]=\"NaN\",\"\",VALUE(Tabel1[[#This Row],[x.MQ60_80]]))","v":5181},"6498",{"$f":"IF(Tabel1[[#This Row],[x.MQ80_100]]=\"NaN\",\"\",VALUE(Tabel1[[#This Row],[x.MQ80_100]]))","v":6498}]
["Nordjylland","Husdyrproduktion","4",{"$f":"_xlfn.IFS(Tabel1[[#This Row],[FTO_jb]]=\"1\",\"JB1&3\",Tabel1[[#This Row],[FTO_jb]]=\"2\",\"JB2&4\",Tabel1[[#This Row],[FTO_jb]]=\"3\",\"JB5&6\",Tabel1[[#This Row],[FTO_jb]]=\"4\",\"JB7&8\",Tabel1[[#This Row],[FTO_jb]]=\"Alle\",Tabel1[[#This Row],[FTO_jb]])","v":"JB7&8"},10,"NaN",{"$f":"IF(Tabel1[[#This Row],[x.MQ00_20]]=\"NaN\",\"\",VALUE(Tabel1[[#This Row],[x.MQ00_20]]))","v":""},"NaN",{"$f":"IF(Tabel1[[#This Row],[x.MQ20_40]]=\"NaN\",\"\",VALUE(Tabel1[[#This Row],[x.MQ20_40]]))","v":""},"NaN",{"$f":"IF(Tabel1[[#This Row],[x.MQ40_60]]=\"NaN\",\"\",VALUE(Tabel1[[#This Row],[x.MQ40_60]]))","v":""},"NaN",{"$f":"IF(Tabel1[[#This Row],[x.MQ60_80]]=\"NaN\",\"\",VALUE(Tabel1[[#This Row],[x.MQ60_80]]))","v":""},"NaN",{"$f":"IF(Tabel1[[#This Row],[x.MQ80_100]]=\"NaN\",\"\",VALUE(Tabel1[[#This Row],[x.MQ80_100]]))","v":""}]
["Nordjylland","Planteavl","1",{"$f":"_xlfn.IFS(Tabel1[[#This Row],[FTO_jb]]=\"1\",\"JB1&3\",Tabel1[[#This Row],[FTO_jb]]=\"2\",\"JB2&4\",Tabel1[[#This Row],[FTO_jb]]=\"3\",\"JB5&6\",Tabel1[[#This Row],[FTO_jb]]=\"4\",\"JB7&8\",Tabel1[[#This Row],[FTO_jb]]=\"Alle\",Tabel1[[#This Row],[FTO_jb]])","v":"JB1&3"},22,"NaN",{"$f":"IF(Tabel1[[#This Row],[x.MQ00_20]]=\"NaN\",\"\",VALUE(Tabel1[[#This Row],[x.MQ00_20]]))","v":""},"NaN",{"$f":"IF(Tabel1[[#This Row],[x.MQ20_40]]=\"NaN\",\"\",VALUE(Tabel1[[#This Row],[x.MQ20_40]]))","v":""},"NaN",{"$f":"IF(Tabel1[[#This Row],[x.MQ40_60]]=\"NaN\",\"\",VALUE(Tabel1[[#This Row],[x.MQ40_60]]))","v":""},"NaN",{"$f":"IF(Tabel1[[#This Row],[x.MQ60_80]]=\"NaN\",\"\",VALUE(Tabel1[[#This Row],[x.MQ60_80]]))","v":""},"NaN",{"$f":"IF(Tabel1[[#This Row],[x.MQ80_100]]=\"NaN\",\"\",VALUE(Tabel1[[#This Row],[x.MQ80_100]]))","v":""}]
["Nordjylland","Planteavl","2",{"$f":"_xlfn.IFS(Tabel1[[#This Row],[FTO_jb]]=\"1\",\"JB1&3\",Tabel1[[#This Row],[FTO_jb]]=\"2\",\"JB2&4\",Tabel1[[#This Row],[FTO_jb]]=\"3\",\"JB5&6\",Tabel1[[#This Row],[FTO_jb]]=\"4\",\"JB7&8\",Tabel1[[#This Row],[FTO_jb]]=\"Alle\",Tabel1[[#This Row],[FTO_jb]])","v":"JB2&4"},109,"1249",{"$f":"IF(Tabel1[[#This Row],[x.MQ00_20]]=\"NaN\",\"\",VALUE(Tabel1[[#This Row],[x.MQ00_20]]))","v":1249},"2761",{"$f":"IF(Tabel1[[#This Row],[x.MQ20_40]]=\"NaN\",\"\",VALUE(Tabel1[[#This Row],[x.MQ20_40]]))","v":2761},"3551",{"$f":"IF(Tabel1[[#This Row],[x.MQ40_60]]=\"NaN\",\"\",VALUE(Tabel1[[#This Row],[x.MQ40_60]]))","v":3551},"4108",{"$f":"IF(Tabel1[[#This Row],[x.MQ60_80]]=\"NaN\",\"\",VALUE(Tabel1[[#This Row],[x.MQ60_80]]))","v":4108},"5228",{"$f":"IF(Tabel1[[#This Row],[x.MQ80_100]]=\"NaN\",\"\",VALUE(Tabel1[[#This Row],[x.MQ80_100]]))","v":5228}]
["Nordjylland","Planteavl","3",{"$f":"_xlfn.IFS(Tabel1[[#This Row],[FTO_jb]]=\"1\",\"JB1&3\",Tabel1[[#This Row],[FTO_jb]]=\"2\",\"JB2&4\",Tabel1[[#This Row],[FTO_jb]]=\"3\",\"JB5&6\",Tabel1[[#This Row],[FTO_jb]]=\"4\",\"JB7&8\",Tabel1[[#This Row],[FTO_jb]]=\"Alle\",Tabel1[[#This Row],[FTO_jb]])","v":"JB5&6"},20,"NaN",{"$f":"IF(Tabel1[[#This Row],[x.MQ00_20]]=\"NaN\",\"\",VALUE(Tabel1[[#This Row],[x.MQ00_20]]))","v":""},"NaN",{"$f":"IF(Tabel1[[#This Row],[x.MQ20_40]]=\"NaN\",\"\",VALUE(Tabel1[[#This Row],[x.MQ20_40]]))","v":""},"NaN",{"$f":"IF(Tabel1[[#This Row],[x.MQ40_60]]=\"NaN\",\"\",VALUE(Tabel1[[#This Row],[x.MQ40_60]]))","v":""},"NaN",{"$f":"IF(Tabel1[[#This Row],[x.MQ60_80]]=\"NaN\",\"\",VALUE(Tabel1[[#This Row],[x.MQ60_80]]))","v":""},"NaN",{"$f":"IF(Tabel1[[#This Row],[x.MQ80_100]]=\"NaN\",\"\",VALUE(Tabel1[[#This Row],[x.MQ80_100]]))","v":""}]
["Sjælland Bornholm","Husdyrproduktion","1",{"$f":"_xlfn.IFS(Tabel1[[#This Row],[FTO_jb]]=\"1\",\"JB1&3\",Tabel1[[#This Row],[FTO_jb]]=\"2\",\"JB2&4\",Tabel1[[#This Row],[FTO_jb]]=\"3\",\"JB5&6\",Tabel1[[#This Row],[FTO_jb]]=\"4\",\"JB7&8\",Tabel1[[#This Row],[FTO_jb]]=\"Alle\",Tabel1[[#This Row],[FTO_jb]])","v":"JB1&3"},2,"NaN",{"$f":"IF(Tabel1[[#This Row],[x.MQ00_20]]=\"NaN\",\"\",VALUE(Tabel1[[#This Row],[x.MQ00_20]]))","v":""},"NaN",{"$f":"IF(Tabel1[[#This Row],[x.MQ20_40]]=\"NaN\",\"\",VALUE(Tabel1[[#This Row],[x.MQ20_40]]))","v":""},"NaN",{"$f":"IF(Tabel1[[#This Row],[x.MQ40_60]]=\"NaN\",\"\",VALUE(Tabel1[[#This Row],[x.MQ40_60]]))","v":""},"NaN",{"$f":"IF(Tabel1[[#This Row],[x.MQ60_80]]=\"NaN\",\"\",VALUE(Tabel1[[#This Row],[x.MQ60_80]]))","v":""},"NaN",{"$f":"IF(Tabel1[[#This Row],[x.MQ80_100]]=\"NaN\",\"\",VALUE(Tabel1[[#This Row],[x.MQ80_100]]))","v":""}]
["Sjælland Bornholm","Husdyrproduktion","2",{"$f":"_xlfn.IFS(Tabel1[[#This Row],[FTO_jb]]=\"1\",\"JB1&3\",Tabel1[[#This Row],[FTO_jb]]=\"2\",\"JB2&4\",Tabel1[[#This Row],[FTO_jb]]=\"3\",\"JB5&6\",Tabel1[[#This Row],[FTO_jb]]=\"4\",\"JB7&8\",Tabel1[[#This Row],[FTO_jb]]=\"Alle\",Tabel1[[#This Row],[FTO_jb]])","v":"JB2&4"},15,"NaN",{"$f":"IF(Tabel1[[#This Row],[x.MQ00_20]]=\"NaN\",\"\",VALUE(Tabel1[[#This Row],[x.MQ00_20]]))","v":""},"NaN",{"$f":"IF(Tabel1[[#This Row],[x.MQ20_40]]=\"NaN\",\"\",VALUE(Tabel1[[#This Row],[x.MQ20_40]]))","v":""},"NaN",{"$f":"IF(Tabel1[[#This Row],[x.MQ40_60]]=\"NaN\",\"\",VALUE(Tabel1[[#This Row],[x.MQ40_60]]))","v":""},"NaN",{"$f":"IF(Tabel1[[#This Row],[x.MQ60_80]]=\"NaN\",\"\",VALUE(Tabel1[[#This Row],[x.MQ60_80]]))","v":""},"NaN",{"$f":"IF(Tabel1[[#This Row],[x.MQ80_100]]=\"NaN\",\"\",VALUE(Tabel1[[#This Row],[x.MQ80_100]]))","v":""}]
["Sjælland Bornholm","Husdyrproduktion","3",{"$f":"_xlfn.IFS(Tabel1[[#This Row],[FTO_jb]]=\"1\",\"JB1&3\",Tabel1[[#This Row],[FTO_jb]]=\"2\",\"JB2&4\",Tabel1[[#This Row],[FTO_jb]]=\"3\",\"JB5&6\",Tabel1[[#This Row],[FTO_jb]]=\"4\",\"JB7&8\",Tabel1[[#This Row],[FTO_jb]]=\"Alle\",Tabel1[[#This Row],[FTO_jb]])","v":"JB5&6"},112,"2456",{"$f":"IF(Tabel1[[#This Row],[x.MQ00_20]]=\"NaN\",\"\",VALUE(Tabel1[[#This Row],[x.MQ00_20]]))","v":2456},"3500",{"$f":"IF(Tabel1[[#This Row],[x.MQ20_40]]=\"NaN\",\"\",VALUE(Tabel1[[#This Row],[x.MQ20_40]]))","v":3500},"4016",{"$f":"IF(Tabel1[[#This Row],[x.MQ40_60]]=\"NaN\",\"\",VALUE(Tabel1[[#This Row],[x.MQ40_60]]))","v":4016},"4631",{"$f":"IF(Tabel1[[#This Row],[x.MQ60_80]]=\"NaN\",\"\",VALUE(Tabel1[[#This Row],[x.MQ60_80]]))","v":4631},"5621",{"$f":"IF(Tabel1[[#This Row],[x.MQ80_100]]=\"NaN\",\"\",VALUE(Tabel1[[#This Row],[x.MQ80_100]]))","v":5621}]
["Sjælland Bornholm","Husdyrproduktion","4",{"$f":"_xlfn.IFS(Tabel1[[#This Row],[FTO_jb]]=\"1\",\"JB1&3\",Tabel1[[#This Row],[FTO_jb]]=\"2\",\"JB2&4\",Tabel1[[#This Row],[FTO_jb]]=\"3\",\"JB5&6\",Tabel1[[#This Row],[FTO_jb]]=\"4\",\"JB7&8\",Tabel1[[#This Row],[FTO_jb]]=\"Alle\",Tabel1[[#This Row],[FTO_jb]])","v":"JB7&8"},18,"NaN",{"$f":"IF(Tabel1[[#This Row],[x.MQ00_20]]=\"NaN\",\"\",VALUE(Tabel1[[#This Row],[x.MQ00_20]]))","v":""},"NaN",{"$f":"IF(Tabel1[[#This Row],[x.MQ20_40]]=\"NaN\",\"\",VALUE(Tabel1[[#This Row],[x.MQ20_40]]))","v":""},"NaN",{"$f":"IF(Tabel1[[#This Row],[x.MQ40_60]]=\"NaN\",\"\",VALUE(Tabel1[[#This Row],[x.MQ40_60]]))","v":""},"NaN",{"$f":"IF(Tabel1[[#This Row],[x.MQ60_80]]=\"NaN\",\"\",VALUE(Tabel1[[#This Row],[x.MQ60_80]]))","v":""},"NaN",{"$f":"IF(Tabel1[[#This Row],[x.MQ80_100]]=\"NaN\",\"\",VALUE(Tabel1[[#This Row],[x.MQ80_100]]))","v":""}]
["Sjælland Bornholm","Planteavl","2",{"$f":"_xlfn.IFS(Tabel1[[#This Row],[FTO_jb]]=\"1\",\"JB1&3\",Tabel1[[#This Row],[FTO_jb]]=\"2\",\"JB2&4\",Tabel1[[#This Row],[FTO_jb]]=\"3\",\"JB5&6\",Tabel1[[#This Row],[FTO_jb]]=\"4\",\"JB7&8\",Tabel1[[#This Row],[FTO_jb]]=\"Alle\",Tabel1[[#This Row],[FTO_jb]])","v":"JB2&4"},20,"NaN",{"$f":"IF(Tabel1[[#This Row],[x.MQ00_20]]=\"NaN\",\"\",VALUE(Tabel1[[#This Row],[x.MQ00_20]]))","v":""},"NaN",{"$f":"IF(Tabel1[[#This Row],[x.MQ20_40]]=\"NaN\",\"\",VALUE(Tabel1[[#This Row],[x.MQ20_40]]))","v":""},"NaN",{"$f":"IF(Tabel1[[#This Row],[x.MQ40_60]]=\"NaN\",\"\",VALUE(Tabel1[[#This Row],[x.MQ40_60]]))","v":""},"NaN",{"$f":"IF(Tabel1[[#This Row],[x.MQ60_80]]=\"NaN\",\"\",VALUE(Tabel1[[#This Row],[x.MQ60_80]]))","v":""},"NaN",{"$f":"IF(Tabel1[[#This Row],[x.MQ80_100]]=\"NaN\",\"\",VALUE(Tabel1[[#This Row],[x.MQ80_100]]))","v":""}]
["Sjælland Bornholm","Planteavl","3",{"$f":"_xlfn.IFS(Tabel1[[#This Row],[FTO_jb]]=\"1\",\"JB1&3\",Tabel1[[#This Row],[FTO_jb]]=\"2\",\"JB2&4\",Tabel1[[#This Row],[FTO_jb]]=\"3\",\"JB5&6\",Tabel1[[#This Row],[FTO_jb]]=\"4\",\"JB7&8\",Tabel1[[#This Row],[FTO_jb]]=\"Alle\",Tabel1[[#This Row],[FTO_jb]])","v":"JB5&6"},168,"1951",{"$f":"IF(Tabel1[[#This Row],[x.MQ00_20]]=\"NaN\",\"\",VALUE(Tabel1[[#This Row],[x.MQ00_20]]))","v":1951},"3094",{"$f":"IF(Tabel1[[#This Row],[x.MQ20_40]]=\"NaN\",\"\",VALUE(Tabel1[[#This Row],[x.MQ20_40]]))","v":3094},"3801",{"$f":"IF(Tabel1[[#This Row],[x.MQ40_60]]=\"NaN\",\"\",VALUE(Tabel1[[#This Row],[x.MQ40_60]]))","v":3801},"4327",{"$f":"IF(Tabel1[[#This Row],[x.MQ60_80]]=\"NaN\",\"\",VALUE(Tabel1[[#This Row],[x.MQ60_80]]))","v":4327},"5470",{"$f":"IF(Tabel1[[#This Row],[x.MQ80_100]]=\"NaN\",\"\",VALUE(Tabel1[[#This Row],[x.MQ80_100]]))","v":5470}]
["Sjælland Bornholm","Planteavl","4",{"$f":"_xlfn.IFS(Tabel1[[#This Row],[FTO_jb]]=\"1\",\"JB1&3\",Tabel1[[#This Row],[FTO_jb]]=\"2\",\"JB2&4\",Tabel1[[#This Row],[FTO_jb]]=\"3\",\"JB5&6\",Tabel1[[#This Row],[FTO_jb]]=\"4\",\"JB7&8\",Tabel1[[#This Row],[FTO_jb]]=\"Alle\",Tabel1[[#This Row],[FTO_jb]])","v":"JB7&8"},44,"NaN",{"$f":"IF(Tabel1[[#This Row],[x.MQ00_20]]=\"NaN\",\"\",VALUE(Tabel1[[#This Row],[x.MQ00_20]]))","v":""},"NaN",{"$f":"IF(Tabel1[[#This Row],[x.MQ20_40]]=\"NaN\",\"\",VALUE(Tabel1[[#This Row],[x.MQ20_40]]))","v":""},"NaN",{"$f":"IF(Tabel1[[#This Row],[x.MQ40_60]]=\"NaN\",\"\",VALUE(Tabel1[[#This Row],[x.MQ40_60]]))","v":""},"NaN",{"$f":"IF(Tabel1[[#This Row],[x.MQ60_80]]=\"NaN\",\"\",VALUE(Tabel1[[#This Row],[x.MQ60_80]]))","v":""},"NaN",{"$f":"IF(Tabel1[[#This Row],[x.MQ80_100]]=\"NaN\",\"\",VALUE(Tabel1[[#This Row],[x.MQ80_100]]))","v":""}]
["Vestjylland","Husdyrproduktion","1",{"$f":"_xlfn.IFS(Tabel1[[#This Row],[FTO_jb]]=\"1\",\"JB1&3\",Tabel1[[#This Row],[FTO_jb]]=\"2\",\"JB2&4\",Tabel1[[#This Row],[FTO_jb]]=\"3\",\"JB5&6\",Tabel1[[#This Row],[FTO_jb]]=\"4\",\"JB7&8\",Tabel1[[#This Row],[FTO_jb]]=\"Alle\",Tabel1[[#This Row],[FTO_jb]])","v":"JB1&3"},570,"1885",{"$f":"IF(Tabel1[[#This Row],[x.MQ00_20]]=\"NaN\",\"\",VALUE(Tabel1[[#This Row],[x.MQ00_20]]))","v":1885},"3141",{"$f":"IF(Tabel1[[#This Row],[x.MQ20_40]]=\"NaN\",\"\",VALUE(Tabel1[[#This Row],[x.MQ20_40]]))","v":3141},"3685",{"$f":"IF(Tabel1[[#This Row],[x.MQ40_60]]=\"NaN\",\"\",VALUE(Tabel1[[#This Row],[x.MQ40_60]]))","v":3685},"4267",{"$f":"IF(Tabel1[[#This Row],[x.MQ60_80]]=\"NaN\",\"\",VALUE(Tabel1[[#This Row],[x.MQ60_80]]))","v":4267},"5573",{"$f":"IF(Tabel1[[#This Row],[x.MQ80_100]]=\"NaN\",\"\",VALUE(Tabel1[[#This Row],[x.MQ80_100]]))","v":5573}]
["Vestjylland","Husdyrproduktion","2",{"$f":"_xlfn.IFS(Tabel1[[#This Row],[FTO_jb]]=\"1\",\"JB1&3\",Tabel1[[#This Row],[FTO_jb]]=\"2\",\"JB2&4\",Tabel1[[#This Row],[FTO_jb]]=\"3\",\"JB5&6\",Tabel1[[#This Row],[FTO_jb]]=\"4\",\"JB7&8\",Tabel1[[#This Row],[FTO_jb]]=\"Alle\",Tabel1[[#This Row],[FTO_jb]])","v":"JB2&4"},141,"2167",{"$f":"IF(Tabel1[[#This Row],[x.MQ00_20]]=\"NaN\",\"\",VALUE(Tabel1[[#This Row],[x.MQ00_20]]))","v":2167},"3252",{"$f":"IF(Tabel1[[#This Row],[x.MQ20_40]]=\"NaN\",\"\",VALUE(Tabel1[[#This Row],[x.MQ20_40]]))","v":3252},"3827",{"$f":"IF(Tabel1[[#This Row],[x.MQ40_60]]=\"NaN\",\"\",VALUE(Tabel1[[#This Row],[x.MQ40_60]]))","v":3827},"4369",{"$f":"IF(Tabel1[[#This Row],[x.MQ60_80]]=\"NaN\",\"\",VALUE(Tabel1[[#This Row],[x.MQ60_80]]))","v":4369},"5647",{"$f":"IF(Tabel1[[#This Row],[x.MQ80_100]]=\"NaN\",\"\",VALUE(Tabel1[[#This Row],[x.MQ80_100]]))","v":5647}]
["Vestjylland","Husdyrproduktion","3",{"$f":"_xlfn.IFS(Tabel1[[#This Row],[FTO_jb]]=\"1\",\"JB1&3\",Tabel1[[#This Row],[FTO_jb]]=\"2\",\"JB2&4\",Tabel1[[#This Row],[FTO_jb]]=\"3\",\"JB5&6\",Tabel1[[#This Row],[FTO_jb]]=\"4\",\"JB7&8\",Tabel1[[#This Row],[FTO_jb]]=\"Alle\",Tabel1[[#This Row],[FTO_jb]])","v":"JB5&6"},62,"2744",{"$f":"IF(Tabel1[[#This Row],[x.MQ00_20]]=\"NaN\",\"\",VALUE(Tabel1[[#This Row],[x.MQ00_20]]))","v":2744},"3932",{"$f":"IF(Tabel1[[#This Row],[x.MQ20_40]]=\"NaN\",\"\",VALUE(Tabel1[[#This Row],[x.MQ20_40]]))","v":3932},"4461",{"$f":"IF(Tabel1[[#This Row],[x.MQ40_60]]=\"NaN\",\"\",VALUE(Tabel1[[#This Row],[x.MQ40_60]]))","v":4461},"4851",{"$f":"IF(Tabel1[[#This Row],[x.MQ60_80]]=\"NaN\",\"\",VALUE(Tabel1[[#This Row],[x.MQ60_80]]))","v":4851},"5802",{"$f":"IF(Tabel1[[#This Row],[x.MQ80_100]]=\"NaN\",\"\",VALUE(Tabel1[[#This Row],[x.MQ80_100]]))","v":5802}]
["Vestjylland","Husdyrproduktion","4",{"$f":"_xlfn.IFS(Tabel1[[#This Row],[FTO_jb]]=\"1\",\"JB1&3\",Tabel1[[#This Row],[FTO_jb]]=\"2\",\"JB2&4\",Tabel1[[#This Row],[FTO_jb]]=\"3\",\"JB5&6\",Tabel1[[#This Row],[FTO_jb]]=\"4\",\"JB7&8\",Tabel1[[#This Row],[FTO_jb]]=\"Alle\",Tabel1[[#This Row],[FTO_jb]])","v":"JB7&8"},31,"NaN",{"$f":"IF(Tabel1[[#This Row],[x.MQ00_20]]=\"NaN\",\"\",VALUE(Tabel1[[#This Row],[x.MQ00_20]]))","v":""},"NaN",{"$f":"IF(Tabel1[[#This Row],[x.MQ20_40]]=\"NaN\",\"\",VALUE(Tabel1[[#This Row],[x.MQ20_40]]))","v":""},"NaN",{"$f":"IF(Tabel1[[#This Row],[x.MQ40_60]]=\"NaN\",\"\",VALUE(Tabel1[[#This Row],[x.MQ40_60]]))","v":""},"NaN",{"$f":"IF(Tabel1[[#This Row],[x.MQ60_80]]=\"NaN\",\"\",VALUE(Tabel1[[#This Row],[x.MQ60_80]]))","v":""},"NaN",{"$f":"IF(Tabel1[[#This Row],[x.MQ80_100]]=\"NaN\",\"\",VALUE(Tabel1[[#This Row],[x.MQ80_100]]))","v":""}]
["Vestjylland","Planteavl","1",{"$f":"_xlfn.IFS(Tabel1[[#This Row],[FTO_jb]]=\"1\",\"JB1&3\",Tabel1[[#This Row],[FTO_jb]]=\"2\",\"JB2&4\",Tabel1[[#This Row],[FTO_jb]]=\"3\",\"JB5&6\",Tabel1[[#This Row],[FTO_jb]]=\"4\",\"JB7&8\",Tabel1[[#This Row],[FTO_jb]]=\"Alle\",Tabel1[[#This Row],[FTO_jb]])","v":"JB1&3"},155,"1857",{"$f":"IF(Tabel1[[#This Row],[x.MQ00_20]]=\"NaN\",\"\",VALUE(Tabel1[[#This Row],[x.MQ00_20]]))","v":1857},"3037",{"$f":"IF(Tabel1[[#This Row],[x.MQ20_40]]=\"NaN\",\"\",VALUE(Tabel1[[#This Row],[x.MQ20_40]]))","v":3037},"3544",{"$f":"IF(Tabel1[[#This Row],[x.MQ40_60]]=\"NaN\",\"\",VALUE(Tabel1[[#This Row],[x.MQ40_60]]))","v":3544},"4335",{"$f":"IF(Tabel1[[#This Row],[x.MQ60_80]]=\"NaN\",\"\",VALUE(Tabel1[[#This Row],[x.MQ60_80]]))","v":4335},"5751",{"$f":"IF(Tabel1[[#This Row],[x.MQ80_100]]=\"NaN\",\"\",VALUE(Tabel1[[#This Row],[x.MQ80_100]]))","v":5751}]
["Vestjylland","Planteavl","2",{"$f":"_xlfn.IFS(Tabel1[[#This Row],[FTO_jb]]=\"1\",\"JB1&3\",Tabel1[[#This Row],[FTO_jb]]=\"2\",\"JB2&4\",Tabel1[[#This Row],[FTO_jb]]=\"3\",\"JB5&6\",Tabel1[[#This Row],[FTO_jb]]=\"4\",\"JB7&8\",Tabel1[[#This Row],[FTO_jb]]=\"Alle\",Tabel1[[#This Row],[FTO_jb]])","v":"JB2&4"},39,"NaN",{"$f":"IF(Tabel1[[#This Row],[x.MQ00_20]]=\"NaN\",\"\",VALUE(Tabel1[[#This Row],[x.MQ00_20]]))","v":""},"NaN",{"$f":"IF(Tabel1[[#This Row],[x.MQ20_40]]=\"NaN\",\"\",VALUE(Tabel1[[#This Row],[x.MQ20_40]]))","v":""},"NaN",{"$f":"IF(Tabel1[[#This Row],[x.MQ40_60]]=\"NaN\",\"\",VALUE(Tabel1[[#This Row],[x.MQ40_60]]))","v":""},"NaN",{"$f":"IF(Tabel1[[#This Row],[x.MQ60_80]]=\"NaN\",\"\",VALUE(Tabel1[[#This Row],[x.MQ60_80]]))","v":""},"NaN",{"$f":"IF(Tabel1[[#This Row],[x.MQ80_100]]=\"NaN\",\"\",VALUE(Tabel1[[#This Row],[x.MQ80_100]]))","v":""}]
["Vestjylland","Planteavl","3",{"$f":"_xlfn.IFS(Tabel1[[#This Row],[FTO_jb]]=\"1\",\"JB1&3\",Tabel1[[#This Row],[FTO_jb]]=\"2\",\"JB2&4\",Tabel1[[#This Row],[FTO_jb]]=\"3\",\"JB5&6\",Tabel1[[#This Row],[FTO_jb]]=\"4\",\"JB7&8\",Tabel1[[#This Row],[FTO_jb]]=\"Alle\",Tabel1[[#This Row],[FTO_jb]])","v":"JB5&6"},9,"NaN",{"$f":"IF(Tabel1[[#This Row],[x.MQ00_20]]=\"NaN\",\"\",VALUE(Tabel1[[#This Row],[x.MQ00_20]]))","v":""},"NaN",{"$f":"IF(Tabel1[[#This Row],[x.MQ20_40]]=\"NaN\",\"\",VALUE(Tabel1[[#This Row],[x.MQ20_40]]))","v":""},"NaN",{"$f":"IF(Tabel1[[#This Row],[x.MQ40_60]]=\"NaN\",\"\",VALUE(Tabel1[[#This Row],[x.MQ40_60]]))","v":""},"NaN",{"$f":"IF(Tabel1[[#This Row],[x.MQ60_80]]=\"NaN\",\"\",VALUE(Tabel1[[#This Row],[x.MQ60_80]]))","v":""},"NaN",{"$f":"IF(Tabel1[[#This Row],[x.MQ80_100]]=\"NaN\",\"\",VALUE(Tabel1[[#This Row],[x.MQ80_100]]))","v":""}]
["Vestjylland","Planteavl","4",{"$f":"_xlfn.IFS(Tabel1[[#This Row],[FTO_jb]]=\"1\",\"JB1&3\",Tabel1[[#This Row],[FTO_jb]]=\"2\",\"JB2&4\",Tabel1[[#This Row],[FTO_jb]]=\"3\",\"JB5&6\",Tabel1[[#This Row],[FTO_jb]]=\"4\",\"JB7&8\",Tabel1[[#This Row],[FTO_jb]]=\"Alle\",Tabel1[[#This Row],[FTO_jb]])","v":"JB7&8"},7,"NaN",{"$f":"IF(Tabel1[[#This Row],[x.MQ00_20]]=\"NaN\",\"\",VALUE(Tabel1[[#This Row],[x.MQ00_20]]))","v":""},"NaN",{"$f":"IF(Tabel1[[#This Row],[x.MQ20_40]]=\"NaN\",\"\",VALUE(Tabel1[[#This Row],[x.MQ20_40]]))","v":""},"NaN",{"$f":"IF(Tabel1[[#This Row],[x.MQ40_60]]=\"NaN\",\"\",VALUE(Tabel1[[#This Row],[x.MQ40_60]]))","v":""},"NaN",{"$f":"IF(Tabel1[[#This Row],[x.MQ60_80]]=\"NaN\",\"\",VALUE(Tabel1[[#This Row],[x.MQ60_80]]))","v":""},"NaN",{"$f":"IF(Tabel1[[#This Row],[x.MQ80_100]]=\"NaN\",\"\",VALUE(Tabel1[[#This Row],[x.MQ80_100]]))","v":""}]
["Østjylland-Fyn","Husdyrproduktion","1",{"$f":"_xlfn.IFS(Tabel1[[#This Row],[FTO_jb]]=\"1\",\"JB1&3\",Tabel1[[#This Row],[FTO_jb]]=\"2\",\"JB2&4\",Tabel1[[#This Row],[FTO_jb]]=\"3\",\"JB5&6\",Tabel1[[#This Row],[FTO_jb]]=\"4\",\"JB7&8\",Tabel1[[#This Row],[FTO_jb]]=\"Alle\",Tabel1[[#This Row],[FTO_jb]])","v":"JB1&3"},241,"2464",{"$f":"IF(Tabel1[[#This Row],[x.MQ00_20]]=\"NaN\",\"\",VALUE(Tabel1[[#This Row],[x.MQ00_20]]))","v":2464},"3272",{"$f":"IF(Tabel1[[#This Row],[x.MQ20_40]]=\"NaN\",\"\",VALUE(Tabel1[[#This Row],[x.MQ20_40]]))","v":3272},"3685",{"$f":"IF(Tabel1[[#This Row],[x.MQ40_60]]=\"NaN\",\"\",VALUE(Tabel1[[#This Row],[x.MQ40_60]]))","v":3685},"4194",{"$f":"IF(Tabel1[[#This Row],[x.MQ60_80]]=\"NaN\",\"\",VALUE(Tabel1[[#This Row],[x.MQ60_80]]))","v":4194},"5546",{"$f":"IF(Tabel1[[#This Row],[x.MQ80_100]]=\"NaN\",\"\",VALUE(Tabel1[[#This Row],[x.MQ80_100]]))","v":5546}]
["Østjylland-Fyn","Husdyrproduktion","2",{"$f":"_xlfn.IFS(Tabel1[[#This Row],[FTO_jb]]=\"1\",\"JB1&3\",Tabel1[[#This Row],[FTO_jb]]=\"2\",\"JB2&4\",Tabel1[[#This Row],[FTO_jb]]=\"3\",\"JB5&6\",Tabel1[[#This Row],[FTO_jb]]=\"4\",\"JB7&8\",Tabel1[[#This Row],[FTO_jb]]=\"Alle\",Tabel1[[#This Row],[FTO_jb]])","v":"JB2&4"},152,"2427",{"$f":"IF(Tabel1[[#This Row],[x.MQ00_20]]=\"NaN\",\"\",VALUE(Tabel1[[#This Row],[x.MQ00_20]]))","v":2427},"3520",{"$f":"IF(Tabel1[[#This Row],[x.MQ20_40]]=\"NaN\",\"\",VALUE(Tabel1[[#This Row],[x.MQ20_40]]))","v":3520},"4010",{"$f":"IF(Tabel1[[#This Row],[x.MQ40_60]]=\"NaN\",\"\",VALUE(Tabel1[[#This Row],[x.MQ40_60]]))","v":4010},"4470",{"$f":"IF(Tabel1[[#This Row],[x.MQ60_80]]=\"NaN\",\"\",VALUE(Tabel1[[#This Row],[x.MQ60_80]]))","v":4470},"5743",{"$f":"IF(Tabel1[[#This Row],[x.MQ80_100]]=\"NaN\",\"\",VALUE(Tabel1[[#This Row],[x.MQ80_100]]))","v":5743}]
["Østjylland-Fyn","Husdyrproduktion","3",{"$f":"_xlfn.IFS(Tabel1[[#This Row],[FTO_jb]]=\"1\",\"JB1&3\",Tabel1[[#This Row],[FTO_jb]]=\"2\",\"JB2&4\",Tabel1[[#This Row],[FTO_jb]]=\"3\",\"JB5&6\",Tabel1[[#This Row],[FTO_jb]]=\"4\",\"JB7&8\",Tabel1[[#This Row],[FTO_jb]]=\"Alle\",Tabel1[[#This Row],[FTO_jb]])","v":"JB5&6"},306,"2808",{"$f":"IF(Tabel1[[#This Row],[x.MQ00_20]]=\"NaN\",\"\",VALUE(Tabel1[[#This Row],[x.MQ00_20]]))","v":2808},"3833",{"$f":"IF(Tabel1[[#This Row],[x.MQ20_40]]=\"NaN\",\"\",VALUE(Tabel1[[#This Row],[x.MQ20_40]]))","v":3833},"4365",{"$f":"IF(Tabel1[[#This Row],[x.MQ40_60]]=\"NaN\",\"\",VALUE(Tabel1[[#This Row],[x.MQ40_60]]))","v":4365},"4894",{"$f":"IF(Tabel1[[#This Row],[x.MQ60_80]]=\"NaN\",\"\",VALUE(Tabel1[[#This Row],[x.MQ60_80]]))","v":4894},"6115",{"$f":"IF(Tabel1[[#This Row],[x.MQ80_100]]=\"NaN\",\"\",VALUE(Tabel1[[#This Row],[x.MQ80_100]]))","v":6115}]
["Østjylland-Fyn","Husdyrproduktion","4",{"$f":"_xlfn.IFS(Tabel1[[#This Row],[FTO_jb]]=\"1\",\"JB1&3\",Tabel1[[#This Row],[FTO_jb]]=\"2\",\"JB2&4\",Tabel1[[#This Row],[FTO_jb]]=\"3\",\"JB5&6\",Tabel1[[#This Row],[FTO_jb]]=\"4\",\"JB7&8\",Tabel1[[#This Row],[FTO_jb]]=\"Alle\",Tabel1[[#This Row],[FTO_jb]])","v":"JB7&8"},32,"NaN",{"$f":"IF(Tabel1[[#This Row],[x.MQ00_20]]=\"NaN\",\"\",VALUE(Tabel1[[#This Row],[x.MQ00_20]]))","v":""},"NaN",{"$f":"IF(Tabel1[[#This Row],[x.MQ20_40]]=\"NaN\",\"\",VALUE(Tabel1[[#This Row],[x.MQ20_40]]))","v":""},"NaN",{"$f":"IF(Tabel1[[#This Row],[x.MQ40_60]]=\"NaN\",\"\",VALUE(Tabel1[[#This Row],[x.MQ40_60]]))","v":""},"NaN",{"$f":"IF(Tabel1[[#This Row],[x.MQ60_80]]=\"NaN\",\"\",VALUE(Tabel1[[#This Row],[x.MQ60_80]]))","v":""},"NaN",{"$f":"IF(Tabel1[[#This Row],[x.MQ80_100]]=\"NaN\",\"\",VALUE(Tabel1[[#This Row],[x.MQ80_100]]))","v":""}]
["Østjylland-Fyn","Planteavl","1",{"$f":"_xlfn.IFS(Tabel1[[#This Row],[FTO_jb]]=\"1\",\"JB1&3\",Tabel1[[#This Row],[FTO_jb]]=\"2\",\"JB2&4\",Tabel1[[#This Row],[FTO_jb]]=\"3\",\"JB5&6\",Tabel1[[#This Row],[FTO_jb]]=\"4\",\"JB7&8\",Tabel1[[#This Row],[FTO_jb]]=\"Alle\",Tabel1[[#This Row],[FTO_jb]])","v":"JB1&3"},73,"965",{"$f":"IF(Tabel1[[#This Row],[x.MQ00_20]]=\"NaN\",\"\",VALUE(Tabel1[[#This Row],[x.MQ00_20]]))","v":965},"2353",{"$f":"IF(Tabel1[[#This Row],[x.MQ20_40]]=\"NaN\",\"\",VALUE(Tabel1[[#This Row],[x.MQ20_40]]))","v":2353},"3237",{"$f":"IF(Tabel1[[#This Row],[x.MQ40_60]]=\"NaN\",\"\",VALUE(Tabel1[[#This Row],[x.MQ40_60]]))","v":3237},"3883",{"$f":"IF(Tabel1[[#This Row],[x.MQ60_80]]=\"NaN\",\"\",VALUE(Tabel1[[#This Row],[x.MQ60_80]]))","v":3883},"5021",{"$f":"IF(Tabel1[[#This Row],[x.MQ80_100]]=\"NaN\",\"\",VALUE(Tabel1[[#This Row],[x.MQ80_100]]))","v":5021}]
["Østjylland-Fyn","Planteavl","2",{"$f":"_xlfn.IFS(Tabel1[[#This Row],[FTO_jb]]=\"1\",\"JB1&3\",Tabel1[[#This Row],[FTO_jb]]=\"2\",\"JB2&4\",Tabel1[[#This Row],[FTO_jb]]=\"3\",\"JB5&6\",Tabel1[[#This Row],[FTO_jb]]=\"4\",\"JB7&8\",Tabel1[[#This Row],[FTO_jb]]=\"Alle\",Tabel1[[#This Row],[FTO_jb]])","v":"JB2&4"},57,"1887",{"$f":"IF(Tabel1[[#This Row],[x.MQ00_20]]=\"NaN\",\"\",VALUE(Tabel1[[#This Row],[x.MQ00_20]]))","v":1887},"3192",{"$f":"IF(Tabel1[[#This Row],[x.MQ20_40]]=\"NaN\",\"\",VALUE(Tabel1[[#This Row],[x.MQ20_40]]))","v":3192},"3738",{"$f":"IF(Tabel1[[#This Row],[x.MQ40_60]]=\"NaN\",\"\",VALUE(Tabel1[[#This Row],[x.MQ40_60]]))","v":3738},"4262",{"$f":"IF(Tabel1[[#This Row],[x.MQ60_80]]=\"NaN\",\"\",VALUE(Tabel1[[#This Row],[x.MQ60_80]]))","v":4262},"6123",{"$f":"IF(Tabel1[[#This Row],[x.MQ80_100]]=\"NaN\",\"\",VALUE(Tabel1[[#This Row],[x.MQ80_100]]))","v":6123}]
["Østjylland-Fyn","Planteavl","3",{"$f":"_xlfn.IFS(Tabel1[[#This Row],[FTO_jb]]=\"1\",\"JB1&3\",Tabel1[[#This Row],[FTO_jb]]=\"2\",\"JB2&4\",Tabel1[[#This Row],[FTO_jb]]=\"3\",\"JB5&6\",Tabel1[[#This Row],[FTO_jb]]=\"4\",\"JB7&8\",Tabel1[[#This Row],[FTO_jb]]=\"Alle\",Tabel1[[#This Row],[FTO_jb]])","v":"JB5&6"},210,"2039",{"$f":"IF(Tabel1[[#This Row],[x.MQ00_20]]=\"NaN\",\"\",VALUE(Tabel1[[#This Row],[x.MQ00_20]]))","v":2039},"3395",{"$f":"IF(Tabel1[[#This Row],[x.MQ20_40]]=\"NaN\",\"\",VALUE(Tabel1[[#This Row],[x.MQ20_40]]))","v":3395},"3967",{"$f":"IF(Tabel1[[#This Row],[x.MQ40_60]]=\"NaN\",\"\",VALUE(Tabel1[[#This Row],[x.MQ40_60]]))","v":3967},"4482",{"$f":"IF(Tabel1[[#This Row],[x.MQ60_80]]=\"NaN\",\"\",VALUE(Tabel1[[#This Row],[x.MQ60_80]]))","v":4482},"5835",{"$f":"IF(Tabel1[[#This Row],[x.MQ80_100]]=\"NaN\",\"\",VALUE(Tabel1[[#This Row],[x.MQ80_100]]))","v":5835}]
["Østjylland-Fyn","Planteavl","4",{"$f":"_xlfn.IFS(Tabel1[[#This Row],[FTO_jb]]=\"1\",\"JB1&3\",Tabel1[[#This Row],[FTO_jb]]=\"2\",\"JB2&4\",Tabel1[[#This Row],[FTO_jb]]=\"3\",\"JB5&6\",Tabel1[[#This Row],[FTO_jb]]=\"4\",\"JB7&8\",Tabel1[[#This Row],[FTO_jb]]=\"Alle\",Tabel1[[#This Row],[FTO_jb]])","v":"JB7&8"},15,"NaN",{"$f":"IF(Tabel1[[#This Row],[x.MQ00_20]]=\"NaN\",\"\",VALUE(Tabel1[[#This Row],[x.MQ00_20]]))","v":""},"NaN",{"$f":"IF(Tabel1[[#This Row],[x.MQ20_40]]=\"NaN\",\"\",VALUE(Tabel1[[#This Row],[x.MQ20_40]]))","v":""},"NaN",{"$f":"IF(Tabel1[[#This Row],[x.MQ40_60]]=\"NaN\",\"\",VALUE(Tabel1[[#This Row],[x.MQ40_60]]))","v":""},"NaN",{"$f":"IF(Tabel1[[#This Row],[x.MQ60_80]]=\"NaN\",\"\",VALUE(Tabel1[[#This Row],[x.MQ60_80]]))","v":""},"NaN",{"$f":"IF(Tabel1[[#This Row],[x.MQ80_100]]=\"NaN\",\"\",VALUE(Tabel1[[#This Row],[x.MQ80_100]]))","v":""}]
["Lolland-Falster","Husdyrproduktion","Alle",{"$f":"_xlfn.IFS(Tabel1[[#This Row],[FTO_jb]]=\"1\",\"JB1&3\",Tabel1[[#This Row],[FTO_jb]]=\"2\",\"JB2&4\",Tabel1[[#This Row],[FTO_jb]]=\"3\",\"JB5&6\",Tabel1[[#This Row],[FTO_jb]]=\"4\",\"JB7&8\",Tabel1[[#This Row],[FTO_jb]]=\"Alle\",Tabel1[[#This Row],[FTO_jb]])","v":"Alle"},37,"NaN",{"$f":"IF(Tabel1[[#This Row],[x.MQ00_20]]=\"NaN\",\"\",VALUE(Tabel1[[#This Row],[x.MQ00_20]]))","v":""},"NaN",{"$f":"IF(Tabel1[[#This Row],[x.MQ20_40]]=\"NaN\",\"\",VALUE(Tabel1[[#This Row],[x.MQ20_40]]))","v":""},"NaN",{"$f":"IF(Tabel1[[#This Row],[x.MQ40_60]]=\"NaN\",\"\",VALUE(Tabel1[[#This Row],[x.MQ40_60]]))","v":""},"NaN",{"$f":"IF(Tabel1[[#This Row],[x.MQ60_80]]=\"NaN\",\"\",VALUE(Tabel1[[#This Row],[x.MQ60_80]]))","v":""},"NaN",{"$f":"IF(Tabel1[[#This Row],[x.MQ80_100]]=\"NaN\",\"\",VALUE(Tabel1[[#This Row],[x.MQ80_100]]))","v":""}]
["Lolland-Falster","Planteavl","Alle",{"$f":"_xlfn.IFS(Tabel1[[#This Row],[FTO_jb]]=\"1\",\"JB1&3\",Tabel1[[#This Row],[FTO_jb]]=\"2\",\"JB2&4\",Tabel1[[#This Row],[FTO_jb]]=\"3\",\"JB5&6\",Tabel1[[#This Row],[FTO_jb]]=\"4\",\"JB7&8\",Tabel1[[#This Row],[FTO_jb]]=\"Alle\",Tabel1[[#This Row],[FTO_jb]])","v":"Alle"},82,"3194",{"$f":"IF(Tabel1[[#This Row],[x.MQ00_20]]=\"NaN\",\"\",VALUE(Tabel1[[#This Row],[x.MQ00_20]]))","v":3194},"5108",{"$f":"IF(Tabel1[[#This Row],[x.MQ20_40]]=\"NaN\",\"\",VALUE(Tabel1[[#This Row],[x.MQ20_40]]))","v":5108},"5901",{"$f":"IF(Tabel1[[#This Row],[x.MQ40_60]]=\"NaN\",\"\",VALUE(Tabel1[[#This Row],[x.MQ40_60]]))","v":5901},"6491",{"$f":"IF(Tabel1[[#This Row],[x.MQ60_80]]=\"NaN\",\"\",VALUE(Tabel1[[#This Row],[x.MQ60_80]]))","v":6491},"7655",{"$f":"IF(Tabel1[[#This Row],[x.MQ80_100]]=\"NaN\",\"\",VALUE(Tabel1[[#This Row],[x.MQ80_100]]))","v":7655}]
["Nordjylland","Husdyrproduktion","Alle",{"$f":"_xlfn.IFS(Tabel1[[#This Row],[FTO_jb]]=\"1\",\"JB1&3\",Tabel1[[#This Row],[FTO_jb]]=\"2\",\"JB2&4\",Tabel1[[#This Row],[FTO_jb]]=\"3\",\"JB5&6\",Tabel1[[#This Row],[FTO_jb]]=\"4\",\"JB7&8\",Tabel1[[#This Row],[FTO_jb]]=\"Alle\",Tabel1[[#This Row],[FTO_jb]])","v":"Alle"},529,"2018",{"$f":"IF(Tabel1[[#This Row],[x.MQ00_20]]=\"NaN\",\"\",VALUE(Tabel1[[#This Row],[x.MQ00_20]]))","v":2018},"3369",{"$f":"IF(Tabel1[[#This Row],[x.MQ20_40]]=\"NaN\",\"\",VALUE(Tabel1[[#This Row],[x.MQ20_40]]))","v":3369},"3958",{"$f":"IF(Tabel1[[#This Row],[x.MQ40_60]]=\"NaN\",\"\",VALUE(Tabel1[[#This Row],[x.MQ40_60]]))","v":3958},"4604",{"$f":"IF(Tabel1[[#This Row],[x.MQ60_80]]=\"NaN\",\"\",VALUE(Tabel1[[#This Row],[x.MQ60_80]]))","v":4604},"5963",{"$f":"IF(Tabel1[[#This Row],[x.MQ80_100]]=\"NaN\",\"\",VALUE(Tabel1[[#This Row],[x.MQ80_100]]))","v":5963}]
["Nordjylland","Planteavl","Alle",{"$f":"_xlfn.IFS(Tabel1[[#This Row],[FTO_jb]]=\"1\",\"JB1&3\",Tabel1[[#This Row],[FTO_jb]]=\"2\",\"JB2&4\",Tabel1[[#This Row],[FTO_jb]]=\"3\",\"JB5&6\",Tabel1[[#This Row],[FTO_jb]]=\"4\",\"JB7&8\",Tabel1[[#This Row],[FTO_jb]]=\"Alle\",Tabel1[[#This Row],[FTO_jb]])","v":"Alle"},151,"1255",{"$f":"IF(Tabel1[[#This Row],[x.MQ00_20]]=\"NaN\",\"\",VALUE(Tabel1[[#This Row],[x.MQ00_20]]))","v":1255},"2930",{"$f":"IF(Tabel1[[#This Row],[x.MQ20_40]]=\"NaN\",\"\",VALUE(Tabel1[[#This Row],[x.MQ20_40]]))","v":2930},"3706",{"$f":"IF(Tabel1[[#This Row],[x.MQ40_60]]=\"NaN\",\"\",VALUE(Tabel1[[#This Row],[x.MQ40_60]]))","v":3706},"4246",{"$f":"IF(Tabel1[[#This Row],[x.MQ60_80]]=\"NaN\",\"\",VALUE(Tabel1[[#This Row],[x.MQ60_80]]))","v":4246},"5121",{"$f":"IF(Tabel1[[#This Row],[x.MQ80_100]]=\"NaN\",\"\",VALUE(Tabel1[[#This Row],[x.MQ80_100]]))","v":5121}]
["Sjælland Bornholm","Husdyrproduktion","Alle",{"$f":"_xlfn.IFS(Tabel1[[#This Row],[FTO_jb]]=\"1\",\"JB1&3\",Tabel1[[#This Row],[FTO_jb]]=\"2\",\"JB2&4\",Tabel1[[#This Row],[FTO_jb]]=\"3\",\"JB5&6\",Tabel1[[#This Row],[FTO_jb]]=\"4\",\"JB7&8\",Tabel1[[#This Row],[FTO_jb]]=\"Alle\",Tabel1[[#This Row],[FTO_jb]])","v":"Alle"},147,"2432",{"$f":"IF(Tabel1[[#This Row],[x.MQ00_20]]=\"NaN\",\"\",VALUE(Tabel1[[#This Row],[x.MQ00_20]]))","v":2432},"3502",{"$f":"IF(Tabel1[[#This Row],[x.MQ20_40]]=\"NaN\",\"\",VALUE(Tabel1[[#This Row],[x.MQ20_40]]))","v":3502},"4010",{"$f":"IF(Tabel1[[#This Row],[x.MQ40_60]]=\"NaN\",\"\",VALUE(Tabel1[[#This Row],[x.MQ40_60]]))","v":4010},"4555",{"$f":"IF(Tabel1[[#This Row],[x.MQ60_80]]=\"NaN\",\"\",VALUE(Tabel1[[#This Row],[x.MQ60_80]]))","v":4555},"5519",{"$f":"IF(Tabel1[[#This Row],[x.MQ80_100]]=\"NaN\",\"\",VALUE(Tabel1[[#This Row],[x.MQ80_100]]))","v":5519}]
["Sjælland Bornholm","Planteavl","Alle",{"$f":"_xlfn.IFS(Tabel1[[#This Row],[FTO_jb]]=\"1\",\"JB1&3\",Tabel1[[#This Row],[FTO_jb]]=\"2\",\"JB2&4\",Tabel1[[#This Row],[FTO_jb]]=\"3\",\"JB5&6\",Tabel1[[#This Row],[FTO_jb]]=\"4\",\"JB7&8\",Tabel1[[#This Row],[FTO_jb]]=\"Alle\",Tabel1[[#This Row],[FTO_jb]])","v":"Alle"},232,"1798",{"$f":"IF(Tabel1[[#This Row],[x.MQ00_20]]=\"NaN\",\"\",VALUE(Tabel1[[#This Row],[x.MQ00_20]]))","v":1798},"3030",{"$f":"IF(Tabel1[[#This Row],[x.MQ20_40]]=\"NaN\",\"\",VALUE(Tabel1[[#This Row],[x.MQ20_40]]))","v":3030},"3736",{"$f":"IF(Tabel1[[#This Row],[x.MQ40_60]]=\"NaN\",\"\",VALUE(Tabel1[[#This Row],[x.MQ40_60]]))","v":3736},"4270",{"$f":"IF(Tabel1[[#This Row],[x.MQ60_80]]=\"NaN\",\"\",VALUE(Tabel1[[#This Row],[x.MQ60_80]]))","v":4270},"5430",{"$f":"IF(Tabel1[[#This Row],[x.MQ80_100]]=\"NaN\",\"\",VALUE(Tabel1[[#This Row],[x.MQ80_100]]))","v":5430}]
["Vestjylland","Husdyrproduktion","Alle",{"$f":"_xlfn.IFS(Tabel1[[#This Row],[FTO_jb]]=\"1\",\"JB1&3\",Tabel1[[#This Row],[FTO_jb]]=\"2\",\"JB2&4\",Tabel1[[#This Row],[FTO_jb]]=\"3\",\"JB5&6\",Tabel1[[#This Row],[FTO_jb]]=\"4\",\"JB7&8\",Tabel1[[#This Row],[FTO_jb]]=\"Alle\",Tabel1[[#This Row],[FTO_jb]])","v":"Alle"},804,"1983",{"$f":"IF(Tabel1[[#This Row],[x.MQ00_20]]=\"NaN\",\"\",VALUE(Tabel1[[#This Row],[x.MQ00_20]]))","v":1983},"3205",{"$f":"IF(Tabel1[[#This Row],[x.MQ20_40]]=\"NaN\",\"\",VALUE(Tabel1[[#This Row],[x.MQ20_40]]))","v":3205},"3756",{"$f":"IF(Tabel1[[#This Row],[x.MQ40_60]]=\"NaN\",\"\",VALUE(Tabel1[[#This Row],[x.MQ40_60]]))","v":3756},"4333",{"$f":"IF(Tabel1[[#This Row],[x.MQ60_80]]=\"NaN\",\"\",VALUE(Tabel1[[#This Row],[x.MQ60_80]]))","v":4333},"5596",{"$f":"IF(Tabel1[[#This Row],[x.MQ80_100]]=\"NaN\",\"\",VALUE(Tabel1[[#This Row],[x.MQ80_100]]))","v":5596}]
["Vestjylland","Planteavl","Alle",{"$f":"_xlfn.IFS(Tabel1[[#This Row],[FTO_jb]]=\"1\",\"JB1&3\",Tabel1[[#This Row],[FTO_jb]]=\"2\",\"JB2&4\",Tabel1[[#This Row],[FTO_jb]]=\"3\",\"JB5&6\",Tabel1[[#This Row],[FTO_jb]]=\"4\",\"JB7&8\",Tabel1[[#This Row],[FTO_jb]]=\"Alle\",Tabel1[[#This Row],[FTO_jb]])","v":"Alle"},210,"1905",{"$f":"IF(Tabel1[[#This Row],[x.MQ00_20]]=\"NaN\",\"\",VALUE(Tabel1[[#This Row],[x.MQ00_20]]))","v":1905},"3049",{"$f":"IF(Tabel1[[#This Row],[x.MQ20_40]]=\"NaN\",\"\",VALUE(Tabel1[[#This Row],[x.MQ20_40]]))","v":3049},"3546",{"$f":"IF(Tabel1[[#This Row],[x.MQ40_60]]=\"NaN\",\"\",VALUE(Tabel1[[#This Row],[x.MQ40_60]]))","v":3546},"4242",{"$f":"IF(Tabel1[[#This Row],[x.MQ60_80]]=\"NaN\",\"\",VALUE(Tabel1[[#This Row],[x.MQ60_80]]))","v":4242},"5602",{"$f":"IF(Tabel1[[#This Row],[x.MQ80_100]]=\"NaN\",\"\",VALUE(Tabel1[[#This Row],[x.MQ80_100]]))","v":5602}]
["Østjylland-Fyn","Husdyrproduktion","Alle",{"$f":"_xlfn.IFS(Tabel1[[#This Row],[FTO_jb]]=\"1\",\"JB1&3\",Tabel1[[#This Row],[FTO_jb]]=\"2\",\"JB2&4\",Tabel1[[#This Row],[FTO_jb]]=\"3\",\"JB5&6\",Tabel1[[#This Row],[FTO_jb]]=\"4\",\"JB7&8\",Tabel1[[#This Row],[FTO_jb]]=\"Alle\",Tabel1[[#This Row],[FTO_jb]])","v":"Alle"},731,"2556",{"$f":"IF(Tabel1[[#This Row],[x.MQ00_20]]=\"NaN\",\"\",VALUE(Tabel1[[#This Row],[x.MQ00_20]]))","v":2556},"3513",{"$f":"IF(Tabel1[[#This Row],[x.MQ20_40]]=\"NaN\",\"\",VALUE(Tabel1[[#This Row],[x.MQ20_40]]))","v":3513},"4051",{"$f":"IF(Tabel1[[#This Row],[x.MQ40_60]]=\"NaN\",\"\",VALUE(Tabel1[[#This Row],[x.MQ40_60]]))","v":4051},"4599",{"$f":"IF(Tabel1[[#This Row],[x.MQ60_80]]=\"NaN\",\"\",VALUE(Tabel1[[#This Row],[x.MQ60_80]]))","v":4599},"5893",{"$f":"IF(Tabel1[[#This Row],[x.MQ80_100]]=\"NaN\",\"\",VALUE(Tabel1[[#This Row],[x.MQ80_100]]))","v":5893}]
["Østjylland-Fyn","Planteavl","Alle",{"$f":"_xlfn.IFS(Tabel1[[#This Row],[FTO_jb]]=\"1\",\"JB1&3\",Tabel1[[#This Row],[FTO_jb]]=\"2\",\"JB2&4\",Tabel1[[#This Row],[FTO_jb]]=\"3\",\"JB5&6\",Tabel1[[#This Row],[FTO_jb]]=\"4\",\"JB7&8\",Tabel1[[#This Row],[FTO_jb]]=\"Alle\",Tabel1[[#This Row],[FTO_jb]])","v":"Alle"},355,"1701",{"$f":"IF(Tabel1[[#This Row],[x.MQ00_20]]=\"NaN\",\"\",VALUE(Tabel1[[#This Row],[x.MQ00_20]]))","v":1701},"3146",{"$f":"IF(Tabel1[[#This Row],[x.MQ20_40]]=\"NaN\",\"\",VALUE(Tabel1[[#This Row],[x.MQ20_40]]))","v":3146},"3804",{"$f":"IF(Tabel1[[#This Row],[x.MQ40_60]]=\"NaN\",\"\",VALUE(Tabel1[[#This Row],[x.MQ40_60]]))","v":3804},"4362",{"$f":"IF(Tabel1[[#This Row],[x.MQ60_80]]=\"NaN\",\"\",VALUE(Tabel1[[#This Row],[x.MQ60_80]]))","v":4362},"5756",{"$f":"IF(Tabel1[[#This Row],[x.MQ80_100]]=\"NaN\",\"\",VALUE(Tabel1[[#This Row],[x.MQ80_100]]))","v":5756}]
["Lolland-Falster","Alle","1",{"$f":"_xlfn.IFS(Tabel1[[#This Row],[FTO_jb]]=\"1\",\"JB1&3\",Tabel1[[#This Row],[FTO_jb]]=\"2\",\"JB2&4\",Tabel1[[#This Row],[FTO_jb]]=\"3\",\"JB5&6\",Tabel1[[#This Row],[FTO_jb]]=\"4\",\"JB7&8\",Tabel1[[#This Row],[FTO_jb]]=\"Alle\",Tabel1[[#This Row],[FTO_jb]])","v":"JB1&3"},1,"NaN",{"$f":"IF(Tabel1[[#This Row],[x.MQ00_20]]=\"NaN\",\"\",VALUE(Tabel1[[#This Row],[x.MQ00_20]]))","v":""},"NaN",{"$f":"IF(Tabel1[[#This Row],[x.MQ20_40]]=\"NaN\",\"\",VALUE(Tabel1[[#This Row],[x.MQ20_40]]))","v":""},"NaN",{"$f":"IF(Tabel1[[#This Row],[x.MQ40_60]]=\"NaN\",\"\",VALUE(Tabel1[[#This Row],[x.MQ40_60]]))","v":""},"NaN",{"$f":"IF(Tabel1[[#This Row],[x.MQ60_80]]=\"NaN\",\"\",VALUE(Tabel1[[#This Row],[x.MQ60_80]]))","v":""},"NaN",{"$f":"IF(Tabel1[[#This Row],[x.MQ80_100]]=\"NaN\",\"\",VALUE(Tabel1[[#This Row],[x.MQ80_100]]))","v":""}]
["Lolland-Falster","Alle","2",{"$f":"_xlfn.IFS(Tabel1[[#This Row],[FTO_jb]]=\"1\",\"JB1&3\",Tabel1[[#This Row],[FTO_jb]]=\"2\",\"JB2&4\",Tabel1[[#This Row],[FTO_jb]]=\"3\",\"JB5&6\",Tabel1[[#This Row],[FTO_jb]]=\"4\",\"JB7&8\",Tabel1[[#This Row],[FTO_jb]]=\"Alle\",Tabel1[[#This Row],[FTO_jb]])","v":"JB2&4"},8,"NaN",{"$f":"IF(Tabel1[[#This Row],[x.MQ00_20]]=\"NaN\",\"\",VALUE(Tabel1[[#This Row],[x.MQ00_20]]))","v":""},"NaN",{"$f":"IF(Tabel1[[#This Row],[x.MQ20_40]]=\"NaN\",\"\",VALUE(Tabel1[[#This Row],[x.MQ20_40]]))","v":""},"NaN",{"$f":"IF(Tabel1[[#This Row],[x.MQ40_60]]=\"NaN\",\"\",VALUE(Tabel1[[#This Row],[x.MQ40_60]]))","v":""},"NaN",{"$f":"IF(Tabel1[[#This Row],[x.MQ60_80]]=\"NaN\",\"\",VALUE(Tabel1[[#This Row],[x.MQ60_80]]))","v":""},"NaN",{"$f":"IF(Tabel1[[#This Row],[x.MQ80_100]]=\"NaN\",\"\",VALUE(Tabel1[[#This Row],[x.MQ80_100]]))","v":""}]
["Lolland-Falster","Alle","3",{"$f":"_xlfn.IFS(Tabel1[[#This Row],[FTO_jb]]=\"1\",\"JB1&3\",Tabel1[[#This Row],[FTO_jb]]=\"2\",\"JB2&4\",Tabel1[[#This Row],[FTO_jb]]=\"3\",\"JB5&6\",Tabel1[[#This Row],[FTO_jb]]=\"4\",\"JB7&8\",Tabel1[[#This Row],[FTO_jb]]=\"Alle\",Tabel1[[#This Row],[FTO_jb]])","v":"JB5&6"},62,"3123",{"$f":"IF(Tabel1[[#This Row],[x.MQ00_20]]=\"NaN\",\"\",VALUE(Tabel1[[#This Row],[x.MQ00_20]]))","v":3123},"5192",{"$f":"IF(Tabel1[[#This Row],[x.MQ20_40]]=\"NaN\",\"\",VALUE(Tabel1[[#This Row],[x.MQ20_40]]))","v":5192},"5738",{"$f":"IF(Tabel1[[#This Row],[x.MQ40_60]]=\"NaN\",\"\",VALUE(Tabel1[[#This Row],[x.MQ40_60]]))","v":5738},"6396",{"$f":"IF(Tabel1[[#This Row],[x.MQ60_80]]=\"NaN\",\"\",VALUE(Tabel1[[#This Row],[x.MQ60_80]]))","v":6396},"7322",{"$f":"IF(Tabel1[[#This Row],[x.MQ80_100]]=\"NaN\",\"\",VALUE(Tabel1[[#This Row],[x.MQ80_100]]))","v":7322}]
["Lolland-Falster","Alle","4",{"$f":"_xlfn.IFS(Tabel1[[#This Row],[FTO_jb]]=\"1\",\"JB1&3\",Tabel1[[#This Row],[FTO_jb]]=\"2\",\"JB2&4\",Tabel1[[#This Row],[FTO_jb]]=\"3\",\"JB5&6\",Tabel1[[#This Row],[FTO_jb]]=\"4\",\"JB7&8\",Tabel1[[#This Row],[FTO_jb]]=\"Alle\",Tabel1[[#This Row],[FTO_jb]])","v":"JB7&8"},48,"NaN",{"$f":"IF(Tabel1[[#This Row],[x.MQ00_20]]=\"NaN\",\"\",VALUE(Tabel1[[#This Row],[x.MQ00_20]]))","v":""},"NaN",{"$f":"IF(Tabel1[[#This Row],[x.MQ20_40]]=\"NaN\",\"\",VALUE(Tabel1[[#This Row],[x.MQ20_40]]))","v":""},"NaN",{"$f":"IF(Tabel1[[#This Row],[x.MQ40_60]]=\"NaN\",\"\",VALUE(Tabel1[[#This Row],[x.MQ40_60]]))","v":""},"NaN",{"$f":"IF(Tabel1[[#This Row],[x.MQ60_80]]=\"NaN\",\"\",VALUE(Tabel1[[#This Row],[x.MQ60_80]]))","v":""},"NaN",{"$f":"IF(Tabel1[[#This Row],[x.MQ80_100]]=\"NaN\",\"\",VALUE(Tabel1[[#This Row],[x.MQ80_100]]))","v":""}]
["Nordjylland","Alle","1",{"$f":"_xlfn.IFS(Tabel1[[#This Row],[FTO_jb]]=\"1\",\"JB1&3\",Tabel1[[#This Row],[FTO_jb]]=\"2\",\"JB2&4\",Tabel1[[#This Row],[FTO_jb]]=\"3\",\"JB5&6\",Tabel1[[#This Row],[FTO_jb]]=\"4\",\"JB7&8\",Tabel1[[#This Row],[FTO_jb]]=\"Alle\",Tabel1[[#This Row],[FTO_jb]])","v":"JB1&3"},96,"1978",{"$f":"IF(Tabel1[[#This Row],[x.MQ00_20]]=\"NaN\",\"\",VALUE(Tabel1[[#This Row],[x.MQ00_20]]))","v":1978},"3383",{"$f":"IF(Tabel1[[#This Row],[x.MQ20_40]]=\"NaN\",\"\",VALUE(Tabel1[[#This Row],[x.MQ20_40]]))","v":3383},"3841",{"$f":"IF(Tabel1[[#This Row],[x.MQ40_60]]=\"NaN\",\"\",VALUE(Tabel1[[#This Row],[x.MQ40_60]]))","v":3841},"4442",{"$f":"IF(Tabel1[[#This Row],[x.MQ60_80]]=\"NaN\",\"\",VALUE(Tabel1[[#This Row],[x.MQ60_80]]))","v":4442},"5530",{"$f":"IF(Tabel1[[#This Row],[x.MQ80_100]]=\"NaN\",\"\",VALUE(Tabel1[[#This Row],[x.MQ80_100]]))","v":5530}]
["Nordjylland","Alle","2",{"$f":"_xlfn.IFS(Tabel1[[#This Row],[FTO_jb]]=\"1\",\"JB1&3\",Tabel1[[#This Row],[FTO_jb]]=\"2\",\"JB2&4\",Tabel1[[#This Row],[FTO_jb]]=\"3\",\"JB5&6\",Tabel1[[#This Row],[FTO_jb]]=\"4\",\"JB7&8\",Tabel1[[#This Row],[FTO_jb]]=\"Alle\",Tabel1[[#This Row],[FTO_jb]])","v":"JB2&4"},500,"1831",{"$f":"IF(Tabel1[[#This Row],[x.MQ00_20]]=\"NaN\",\"\",VALUE(Tabel1[[#This Row],[x.MQ00_20]]))","v":1831},"3193",{"$f":"IF(Tabel1[[#This Row],[x.MQ20_40]]=\"NaN\",\"\",VALUE(Tabel1[[#This Row],[x.MQ20_40]]))","v":3193},"3828",{"$f":"IF(Tabel1[[#This Row],[x.MQ40_60]]=\"NaN\",\"\",VALUE(Tabel1[[#This Row],[x.MQ40_60]]))","v":3828},"4435",{"$f":"IF(Tabel1[[#This Row],[x.MQ60_80]]=\"NaN\",\"\",VALUE(Tabel1[[#This Row],[x.MQ60_80]]))","v":4435},"5776",{"$f":"IF(Tabel1[[#This Row],[x.MQ80_100]]=\"NaN\",\"\",VALUE(Tabel1[[#This Row],[x.MQ80_100]]))","v":5776}]
["Nordjylland","Alle","3",{"$f":"_xlfn.IFS(Tabel1[[#This Row],[FTO_jb]]=\"1\",\"JB1&3\",Tabel1[[#This Row],[FTO_jb]]=\"2\",\"JB2&4\",Tabel1[[#This Row],[FTO_jb]]=\"3\",\"JB5&6\",Tabel1[[#This Row],[FTO_jb]]=\"4\",\"JB7&8\",Tabel1[[#This Row],[FTO_jb]]=\"Alle\",Tabel1[[#This Row],[FTO_jb]])","v":"JB5&6"},74,"1797",{"$f":"IF(Tabel1[[#This Row],[x.MQ00_20]]=\"NaN\",\"\",VALUE(Tabel1[[#This Row],[x.MQ00_20]]))","v":1797},"3872",{"$f":"IF(Tabel1[[#This Row],[x.MQ20_40]]=\"NaN\",\"\",VALUE(Tabel1[[#This Row],[x.MQ20_40]]))","v":3872},"4394",{"$f":"IF(Tabel1[[#This Row],[x.MQ40_60]]=\"NaN\",\"\",VALUE(Tabel1[[#This Row],[x.MQ40_60]]))","v":4394},"4933",{"$f":"IF(Tabel1[[#This Row],[x.MQ60_80]]=\"NaN\",\"\",VALUE(Tabel1[[#This Row],[x.MQ60_80]]))","v":4933},"6209",{"$f":"IF(Tabel1[[#This Row],[x.MQ80_100]]=\"NaN\",\"\",VALUE(Tabel1[[#This Row],[x.MQ80_100]]))","v":6209}]
["Nordjylland","Alle","4",{"$f":"_xlfn.IFS(Tabel1[[#This Row],[FTO_jb]]=\"1\",\"JB1&3\",Tabel1[[#This Row],[FTO_jb]]=\"2\",\"JB2&4\",Tabel1[[#This Row],[FTO_jb]]=\"3\",\"JB5&6\",Tabel1[[#This Row],[FTO_jb]]=\"4\",\"JB7&8\",Tabel1[[#This Row],[FTO_jb]]=\"Alle\",Tabel1[[#This Row],[FTO_jb]])","v":"JB7&8"},10,"NaN",{"$f":"IF(Tabel1[[#This Row],[x.MQ00_20]]=\"NaN\",\"\",VALUE(Tabel1[[#This Row],[x.MQ00_20]]))","v":""},"NaN",{"$f":"IF(Tabel1[[#This Row],[x.MQ20_40]]=\"NaN\",\"\",VALUE(Tabel1[[#This Row],[x.MQ20_40]]))","v":""},"NaN",{"$f":"IF(Tabel1[[#This Row],[x.MQ40_60]]=\"NaN\",\"\",VALUE(Tabel1[[#This Row],[x.MQ40_60]]))","v":""},"NaN",{"$f":"IF(Tabel1[[#This Row],[x.MQ60_80]]=\"NaN\",\"\",VALUE(Tabel1[[#This Row],[x.MQ60_80]]))","v":""},"NaN",{"$f":"IF(Tabel1[[#This Row],[x.MQ80_100]]=\"NaN\",\"\",VALUE(Tabel1[[#This Row],[x.MQ80_100]]))","v":""}]
["Sjælland Bornholm","Alle","1",{"$f":"_xlfn.IFS(Tabel1[[#This Row],[FTO_jb]]=\"1\",\"JB1&3\",Tabel1[[#This Row],[FTO_jb]]=\"2\",\"JB2&4\",Tabel1[[#This Row],[FTO_jb]]=\"3\",\"JB5&6\",Tabel1[[#This Row],[FTO_jb]]=\"4\",\"JB7&8\",Tabel1[[#This Row],[FTO_jb]]=\"Alle\",Tabel1[[#This Row],[FTO_jb]])","v":"JB1&3"},2,"NaN",{"$f":"IF(Tabel1[[#This Row],[x.MQ00_20]]=\"NaN\",\"\",VALUE(Tabel1[[#This Row],[x.MQ00_20]]))","v":""},"NaN",{"$f":"IF(Tabel1[[#This Row],[x.MQ20_40]]=\"NaN\",\"\",VALUE(Tabel1[[#This Row],[x.MQ20_40]]))","v":""},"NaN",{"$f":"IF(Tabel1[[#This Row],[x.MQ40_60]]=\"NaN\",\"\",VALUE(Tabel1[[#This Row],[x.MQ40_60]]))","v":""},"NaN",{"$f":"IF(Tabel1[[#This Row],[x.MQ60_80]]=\"NaN\",\"\",VALUE(Tabel1[[#This Row],[x.MQ60_80]]))","v":""},"NaN",{"$f":"IF(Tabel1[[#This Row],[x.MQ80_100]]=\"NaN\",\"\",VALUE(Tabel1[[#This Row],[x.MQ80_100]]))","v":""}]
["Sjælland Bornholm","Alle","2",{"$f":"_xlfn.IFS(Tabel1[[#This Row],[FTO_jb]]=\"1\",\"JB1&3\",Tabel1[[#This Row],[FTO_jb]]=\"2\",\"JB2&4\",Tabel1[[#This Row],[FTO_jb]]=\"3\",\"JB5&6\",Tabel1[[#This Row],[FTO_jb]]=\"4\",\"JB7&8\",Tabel1[[#This Row],[FTO_jb]]=\"Alle\",Tabel1[[#This Row],[FTO_jb]])","v":"JB2&4"},35,"NaN",{"$f":"IF(Tabel1[[#This Row],[x.MQ00_20]]=\"NaN\",\"\",VALUE(Tabel1[[#This Row],[x.MQ00_20]]))","v":""},"NaN",{"$f":"IF(Tabel1[[#This Row],[x.MQ20_40]]=\"NaN\",\"\",VALUE(Tabel1[[#This Row],[x.MQ20_40]]))","v":""},"NaN",{"$f":"IF(Tabel1[[#This Row],[x.MQ40_60]]=\"NaN\",\"\",VALUE(Tabel1[[#This Row],[x.MQ40_60]]))","v":""},"NaN",{"$f":"IF(Tabel1[[#This Row],[x.MQ60_80]]=\"NaN\",\"\",VALUE(Tabel1[[#This Row],[x.MQ60_80]]))","v":""},"NaN",{"$f":"IF(Tabel1[[#This Row],[x.MQ80_100]]=\"NaN\",\"\",VALUE(Tabel1[[#This Row],[x.MQ80_100]]))","v":""}]
["Sjælland Bornholm","Alle","3",{"$f":"_xlfn.IFS(Tabel1[[#This Row],[FTO_jb]]=\"1\",\"JB1&3\",Tabel1[[#This Row],[FTO_jb]]=\"2\",\"JB2&4\",Tabel1[[#This Row],[FTO_jb]]=\"3\",\"JB5&6\",Tabel1[[#This Row],[FTO_jb]]=\"4\",\"JB7&8\",Tabel1[[#This Row],[FTO_jb]]=\"Alle\",Tabel1[[#This Row],[FTO_jb]])","v":"JB5&6"},280,"2074",{"$f":"IF(Tabel1[[#This Row],[x.MQ00_20]]=\"NaN\",\"\",VALUE(Tabel1[[#This Row],[x.MQ00_20]]))","v":2074},"3302",{"$f":"IF(Tabel1[[#This Row],[x.MQ20_40]]=\"NaN\",\"\",VALUE(Tabel1[[#This Row],[x.MQ20_40]]))","v":3302},"3890",{"$f":"IF(Tabel1[[#This Row],[x.MQ40_60]]=\"NaN\",\"\",VALUE(Tabel1[[#This Row],[x.MQ40_60]]))","v":3890},"4446",{"$f":"IF(Tabel1[[#This Row],[x.MQ60_80]]=\"NaN\",\"\",VALUE(Tabel1[[#This Row],[x.MQ60_80]]))","v":4446},"5563",{"$f":"IF(Tabel1[[#This Row],[x.MQ80_100]]=\"NaN\",\"\",VALUE(Tabel1[[#This Row],[x.MQ80_100]]))","v":5563}]
["Sjælland Bornholm","Alle","4",{"$f":"_xlfn.IFS(Tabel1[[#This Row],[FTO_jb]]=\"1\",\"JB1&3\",Tabel1[[#This Row],[FTO_jb]]=\"2\",\"JB2&4\",Tabel1[[#This Row],[FTO_jb]]=\"3\",\"JB5&6\",Tabel1[[#This Row],[FTO_jb]]=\"4\",\"JB7&8\",Tabel1[[#This Row],[FTO_jb]]=\"Alle\",Tabel1[[#This Row],[FTO_jb]])","v":"JB7&8"},62,"2286",{"$f":"IF(Tabel1[[#This Row],[x.MQ00_20]]=\"NaN\",\"\",VALUE(Tabel1[[#This Row],[x.MQ00_20]]))","v":2286},"3424",{"$f":"IF(Tabel1[[#This Row],[x.MQ20_40]]=\"NaN\",\"\",VALUE(Tabel1[[#This Row],[x.MQ20_40]]))","v":3424},"3970",{"$f":"IF(Tabel1[[#This Row],[x.MQ40_60]]=\"NaN\",\"\",VALUE(Tabel1[[#This Row],[x.MQ40_60]]))","v":3970},"4372",{"$f":"IF(Tabel1[[#This Row],[x.MQ60_80]]=\"NaN\",\"\",VALUE(Tabel1[[#This Row],[x.MQ60_80]]))","v":4372},"5448",{"$f":"IF(Tabel1[[#This Row],[x.MQ80_100]]=\"NaN\",\"\",VALUE(Tabel1[[#This Row],[x.MQ80_100]]))","v":5448}]
["Vestjylland","Alle","1",{"$f":"_xlfn.IFS(Tabel1[[#This Row],[FTO_jb]]=\"1\",\"JB1&3\",Tabel1[[#This Row],[FTO_jb]]=\"2\",\"JB2&4\",Tabel1[[#This Row],[FTO_jb]]=\"3\",\"JB5&6\",Tabel1[[#This Row],[FTO_jb]]=\"4\",\"JB7&8\",Tabel1[[#This Row],[FTO_jb]]=\"Alle\",Tabel1[[#This Row],[FTO_jb]])","v":"JB1&3"},725,"1878",{"$f":"IF(Tabel1[[#This Row],[x.MQ00_20]]=\"NaN\",\"\",VALUE(Tabel1[[#This Row],[x.MQ00_20]]))","v":1878},"3116",{"$f":"IF(Tabel1[[#This Row],[x.MQ20_40]]=\"NaN\",\"\",VALUE(Tabel1[[#This Row],[x.MQ20_40]]))","v":3116},"3657",{"$f":"IF(Tabel1[[#This Row],[x.MQ40_60]]=\"NaN\",\"\",VALUE(Tabel1[[#This Row],[x.MQ40_60]]))","v":3657},"4281",{"$f":"IF(Tabel1[[#This Row],[x.MQ60_80]]=\"NaN\",\"\",VALUE(Tabel1[[#This Row],[x.MQ60_80]]))","v":4281},"5612",{"$f":"IF(Tabel1[[#This Row],[x.MQ80_100]]=\"NaN\",\"\",VALUE(Tabel1[[#This Row],[x.MQ80_100]]))","v":5612}]
["Vestjylland","Alle","2",{"$f":"_xlfn.IFS(Tabel1[[#This Row],[FTO_jb]]=\"1\",\"JB1&3\",Tabel1[[#This Row],[FTO_jb]]=\"2\",\"JB2&4\",Tabel1[[#This Row],[FTO_jb]]=\"3\",\"JB5&6\",Tabel1[[#This Row],[FTO_jb]]=\"4\",\"JB7&8\",Tabel1[[#This Row],[FTO_jb]]=\"Alle\",Tabel1[[#This Row],[FTO_jb]])","v":"JB2&4"},180,"2096",{"$f":"IF(Tabel1[[#This Row],[x.MQ00_20]]=\"NaN\",\"\",VALUE(Tabel1[[#This Row],[x.MQ00_20]]))","v":2096},"3217",{"$f":"IF(Tabel1[[#This Row],[x.MQ20_40]]=\"NaN\",\"\",VALUE(Tabel1[[#This Row],[x.MQ20_40]]))","v":3217},"3785",{"$f":"IF(Tabel1[[#This Row],[x.MQ40_60]]=\"NaN\",\"\",VALUE(Tabel1[[#This Row],[x.MQ40_60]]))","v":3785},"4280",{"$f":"IF(Tabel1[[#This Row],[x.MQ60_80]]=\"NaN\",\"\",VALUE(Tabel1[[#This Row],[x.MQ60_80]]))","v":4280},"5574",{"$f":"IF(Tabel1[[#This Row],[x.MQ80_100]]=\"NaN\",\"\",VALUE(Tabel1[[#This Row],[x.MQ80_100]]))","v":5574}]
["Vestjylland","Alle","3",{"$f":"_xlfn.IFS(Tabel1[[#This Row],[FTO_jb]]=\"1\",\"JB1&3\",Tabel1[[#This Row],[FTO_jb]]=\"2\",\"JB2&4\",Tabel1[[#This Row],[FTO_jb]]=\"3\",\"JB5&6\",Tabel1[[#This Row],[FTO_jb]]=\"4\",\"JB7&8\",Tabel1[[#This Row],[FTO_jb]]=\"Alle\",Tabel1[[#This Row],[FTO_jb]])","v":"JB5&6"},71,"2649",{"$f":"IF(Tabel1[[#This Row],[x.MQ00_20]]=\"NaN\",\"\",VALUE(Tabel1[[#This Row],[x.MQ00_20]]))","v":2649},"3778",{"$f":"IF(Tabel1[[#This Row],[x.MQ20_40]]=\"NaN\",\"\",VALUE(Tabel1[[#This Row],[x.MQ20_40]]))","v":3778},"4377",{"$f":"IF(Tabel1[[#This Row],[x.MQ40_60]]=\"NaN\",\"\",VALUE(Tabel1[[#This Row],[x.MQ40_60]]))","v":4377},"4825",{"$f":"IF(Tabel1[[#This Row],[x.MQ60_80]]=\"NaN\",\"\",VALUE(Tabel1[[#This Row],[x.MQ60_80]]))","v":4825},"5706",{"$f":"IF(Tabel1[[#This Row],[x.MQ80_100]]=\"NaN\",\"\",VALUE(Tabel1[[#This Row],[x.MQ80_100]]))","v":5706}]
["Vestjylland","Alle","4",{"$f":"_xlfn.IFS(Tabel1[[#This Row],[FTO_jb]]=\"1\",\"JB1&3\",Tabel1[[#This Row],[FTO_jb]]=\"2\",\"JB2&4\",Tabel1[[#This Row],[FTO_jb]]=\"3\",\"JB5&6\",Tabel1[[#This Row],[FTO_jb]]=\"4\",\"JB7&8\",Tabel1[[#This Row],[FTO_jb]]=\"Alle\",Tabel1[[#This Row],[FTO_jb]])","v":"JB7&8"},38,"NaN",{"$f":"IF(Tabel1[[#This Row],[x.MQ00_20]]=\"NaN\",\"\",VALUE(Tabel1[[#This Row],[x.MQ00_20]]))","v":""},"NaN",{"$f":"IF(Tabel1[[#This Row],[x.MQ20_40]]=\"NaN\",\"\",VALUE(Tabel1[[#This Row],[x.MQ20_40]]))","v":""},"NaN",{"$f":"IF(Tabel1[[#This Row],[x.MQ40_60]]=\"NaN\",\"\",VALUE(Tabel1[[#This Row],[x.MQ40_60]]))","v":""},"NaN",{"$f":"IF(Tabel1[[#This Row],[x.MQ60_80]]=\"NaN\",\"\",VALUE(Tabel1[[#This Row],[x.MQ60_80]]))","v":""},"NaN",{"$f":"IF(Tabel1[[#This Row],[x.MQ80_100]]=\"NaN\",\"\",VALUE(Tabel1[[#This Row],[x.MQ80_100]]))","v":""}]
["Østjylland-Fyn","Alle","1",{"$f":"_xlfn.IFS(Tabel1[[#This Row],[FTO_jb]]=\"1\",\"JB1&3\",Tabel1[[#This Row],[FTO_jb]]=\"2\",\"JB2&4\",Tabel1[[#This Row],[FTO_jb]]=\"3\",\"JB5&6\",Tabel1[[#This Row],[FTO_jb]]=\"4\",\"JB7&8\",Tabel1[[#This Row],[FTO_jb]]=\"Alle\",Tabel1[[#This Row],[FTO_jb]])","v":"JB1&3"},314,"1966",{"$f":"IF(Tabel1[[#This Row],[x.MQ00_20]]=\"NaN\",\"\",VALUE(Tabel1[[#This Row],[x.MQ00_20]]))","v":1966},"3138",{"$f":"IF(Tabel1[[#This Row],[x.MQ20_40]]=\"NaN\",\"\",VALUE(Tabel1[[#This Row],[x.MQ20_40]]))","v":3138},"3618",{"$f":"IF(Tabel1[[#This Row],[x.MQ40_60]]=\"NaN\",\"\",VALUE(Tabel1[[#This Row],[x.MQ40_60]]))","v":3618},"4133",{"$f":"IF(Tabel1[[#This Row],[x.MQ60_80]]=\"NaN\",\"\",VALUE(Tabel1[[#This Row],[x.MQ60_80]]))","v":4133},"5443",{"$f":"IF(Tabel1[[#This Row],[x.MQ80_100]]=\"NaN\",\"\",VALUE(Tabel1[[#This Row],[x.MQ80_100]]))","v":5443}]
["Østjylland-Fyn","Alle","2",{"$f":"_xlfn.IFS(Tabel1[[#This Row],[FTO_jb]]=\"1\",\"JB1&3\",Tabel1[[#This Row],[FTO_jb]]=\"2\",\"JB2&4\",Tabel1[[#This Row],[FTO_jb]]=\"3\",\"JB5&6\",Tabel1[[#This Row],[FTO_jb]]=\"4\",\"JB7&8\",Tabel1[[#This Row],[FTO_jb]]=\"Alle\",Tabel1[[#This Row],[FTO_jb]])","v":"JB2&4"},209,"2230",{"$f":"IF(Tabel1[[#This Row],[x.MQ00_20]]=\"NaN\",\"\",VALUE(Tabel1[[#This Row],[x.MQ00_20]]))","v":2230},"3436",{"$f":"IF(Tabel1[[#This Row],[x.MQ20_40]]=\"NaN\",\"\",VALUE(Tabel1[[#This Row],[x.MQ20_40]]))","v":3436},"3937",{"$f":"IF(Tabel1[[#This Row],[x.MQ40_60]]=\"NaN\",\"\",VALUE(Tabel1[[#This Row],[x.MQ40_60]]))","v":3937},"4435",{"$f":"IF(Tabel1[[#This Row],[x.MQ60_80]]=\"NaN\",\"\",VALUE(Tabel1[[#This Row],[x.MQ60_80]]))","v":4435},"5877",{"$f":"IF(Tabel1[[#This Row],[x.MQ80_100]]=\"NaN\",\"\",VALUE(Tabel1[[#This Row],[x.MQ80_100]]))","v":5877}]
["Østjylland-Fyn","Alle","3",{"$f":"_xlfn.IFS(Tabel1[[#This Row],[FTO_jb]]=\"1\",\"JB1&3\",Tabel1[[#This Row],[FTO_jb]]=\"2\",\"JB2&4\",Tabel1[[#This Row],[FTO_jb]]=\"3\",\"JB5&6\",Tabel1[[#This Row],[FTO_jb]]=\"4\",\"JB7&8\",Tabel1[[#This Row],[FTO_jb]]=\"Alle\",Tabel1[[#This Row],[FTO_jb]])","v":"JB5&6"},516,"2460",{"$f":"IF(Tabel1[[#This Row],[x.MQ00_20]]=\"NaN\",\"\",VALUE(Tabel1[[#This Row],[x.MQ00_20]]))","v":2460},"3654",{"$f":"IF(Tabel1[[#This Row],[x.MQ20_40]]=\"NaN\",\"\",VALUE(Tabel1[[#This Row],[x.MQ20_40]]))","v":3654},"4200",{"$f":"IF(Tabel1[[#This Row],[x.MQ40_60]]=\"NaN\",\"\",VALUE(Tabel1[[#This Row],[x.MQ40_60]]))","v":4200},"4740",{"$f":"IF(Tabel1[[#This Row],[x.MQ60_80]]=\"NaN\",\"\",VALUE(Tabel1[[#This Row],[x.MQ60_80]]))","v":4740},"6027",{"$f":"IF(Tabel1[[#This Row],[x.MQ80_100]]=\"NaN\",\"\",VALUE(Tabel1[[#This Row],[x.MQ80_100]]))","v":6027}]
["Østjylland-Fyn","Alle","4",{"$f":"_xlfn.IFS(Tabel1[[#This Row],[FTO_jb]]=\"1\",\"JB1&3\",Tabel1[[#This Row],[FTO_jb]]=\"2\",\"JB2&4\",Tabel1[[#This Row],[FTO_jb]]=\"3\",\"JB5&6\",Tabel1[[#This Row],[FTO_jb]]=\"4\",\"JB7&8\",Tabel1[[#This Row],[FTO_jb]]=\"Alle\",Tabel1[[#This Row],[FTO_jb]])","v":"JB7&8"},47,"NaN",{"$f":"IF(Tabel1[[#This Row],[x.MQ00_20]]=\"NaN\",\"\",VALUE(Tabel1[[#This Row],[x.MQ00_20]]))","v":""},"NaN",{"$f":"IF(Tabel1[[#This Row],[x.MQ20_40]]=\"NaN\",\"\",VALUE(Tabel1[[#This Row],[x.MQ20_40]]))","v":""},"NaN",{"$f":"IF(Tabel1[[#This Row],[x.MQ40_60]]=\"NaN\",\"\",VALUE(Tabel1[[#This Row],[x.MQ40_60]]))","v":""},"NaN",{"$f":"IF(Tabel1[[#This Row],[x.MQ60_80]]=\"NaN\",\"\",VALUE(Tabel1[[#This Row],[x.MQ60_80]]))","v":""},"NaN",{"$f":"IF(Tabel1[[#This Row],[x.MQ80_100]]=\"NaN\",\"\",VALUE(Tabel1[[#This Row],[x.MQ80_100]]))","v":""}]
["Lolland-Falster","Alle","Alle",{"$f":"_xlfn.IFS(Tabel1[[#This Row],[FTO_jb]]=\"1\",\"JB1&3\",Tabel1[[#This Row],[FTO_jb]]=\"2\",\"JB2&4\",Tabel1[[#This Row],[FTO_jb]]=\"3\",\"JB5&6\",Tabel1[[#This Row],[FTO_jb]]=\"4\",\"JB7&8\",Tabel1[[#This Row],[FTO_jb]]=\"Alle\",Tabel1[[#This Row],[FTO_jb]])","v":"Alle"},119,"3204",{"$f":"IF(Tabel1[[#This Row],[x.MQ00_20]]=\"NaN\",\"\",VALUE(Tabel1[[#This Row],[x.MQ00_20]]))","v":3204},"5257",{"$f":"IF(Tabel1[[#This Row],[x.MQ20_40]]=\"NaN\",\"\",VALUE(Tabel1[[#This Row],[x.MQ20_40]]))","v":5257},"5965",{"$f":"IF(Tabel1[[#This Row],[x.MQ40_60]]=\"NaN\",\"\",VALUE(Tabel1[[#This Row],[x.MQ40_60]]))","v":5965},"6570",{"$f":"IF(Tabel1[[#This Row],[x.MQ60_80]]=\"NaN\",\"\",VALUE(Tabel1[[#This Row],[x.MQ60_80]]))","v":6570},"7754",{"$f":"IF(Tabel1[[#This Row],[x.MQ80_100]]=\"NaN\",\"\",VALUE(Tabel1[[#This Row],[x.MQ80_100]]))","v":7754}]
["Nordjylland","Alle","Alle",{"$f":"_xlfn.IFS(Tabel1[[#This Row],[FTO_jb]]=\"1\",\"JB1&3\",Tabel1[[#This Row],[FTO_jb]]=\"2\",\"JB2&4\",Tabel1[[#This Row],[FTO_jb]]=\"3\",\"JB5&6\",Tabel1[[#This Row],[FTO_jb]]=\"4\",\"JB7&8\",Tabel1[[#This Row],[FTO_jb]]=\"Alle\",Tabel1[[#This Row],[FTO_jb]])","v":"Alle"},680,"1818",{"$f":"IF(Tabel1[[#This Row],[x.MQ00_20]]=\"NaN\",\"\",VALUE(Tabel1[[#This Row],[x.MQ00_20]]))","v":1818},"3277",{"$f":"IF(Tabel1[[#This Row],[x.MQ20_40]]=\"NaN\",\"\",VALUE(Tabel1[[#This Row],[x.MQ20_40]]))","v":3277},"3894",{"$f":"IF(Tabel1[[#This Row],[x.MQ40_60]]=\"NaN\",\"\",VALUE(Tabel1[[#This Row],[x.MQ40_60]]))","v":3894},"4516",{"$f":"IF(Tabel1[[#This Row],[x.MQ60_80]]=\"NaN\",\"\",VALUE(Tabel1[[#This Row],[x.MQ60_80]]))","v":4516},"5807",{"$f":"IF(Tabel1[[#This Row],[x.MQ80_100]]=\"NaN\",\"\",VALUE(Tabel1[[#This Row],[x.MQ80_100]]))","v":5807}]
["Sjælland Bornholm","Alle","Alle",{"$f":"_xlfn.IFS(Tabel1[[#This Row],[FTO_jb]]=\"1\",\"JB1&3\",Tabel1[[#This Row],[FTO_jb]]=\"2\",\"JB2&4\",Tabel1[[#This Row],[FTO_jb]]=\"3\",\"JB5&6\",Tabel1[[#This Row],[FTO_jb]]=\"4\",\"JB7&8\",Tabel1[[#This Row],[FTO_jb]]=\"Alle\",Tabel1[[#This Row],[FTO_jb]])","v":"Alle"},379,"1973",{"$f":"IF(Tabel1[[#This Row],[x.MQ00_20]]=\"NaN\",\"\",VALUE(Tabel1[[#This Row],[x.MQ00_20]]))","v":1973},"3250",{"$f":"IF(Tabel1[[#This Row],[x.MQ20_40]]=\"NaN\",\"\",VALUE(Tabel1[[#This Row],[x.MQ20_40]]))","v":3250},"3849",{"$f":"IF(Tabel1[[#This Row],[x.MQ40_60]]=\"NaN\",\"\",VALUE(Tabel1[[#This Row],[x.MQ40_60]]))","v":3849},"4380",{"$f":"IF(Tabel1[[#This Row],[x.MQ60_80]]=\"NaN\",\"\",VALUE(Tabel1[[#This Row],[x.MQ60_80]]))","v":4380},"5492",{"$f":"IF(Tabel1[[#This Row],[x.MQ80_100]]=\"NaN\",\"\",VALUE(Tabel1[[#This Row],[x.MQ80_100]]))","v":5492}]
["Vestjylland","Alle","Alle",{"$f":"_xlfn.IFS(Tabel1[[#This Row],[FTO_jb]]=\"1\",\"JB1&3\",Tabel1[[#This Row],[FTO_jb]]=\"2\",\"JB2&4\",Tabel1[[#This Row],[FTO_jb]]=\"3\",\"JB5&6\",Tabel1[[#This Row],[FTO_jb]]=\"4\",\"JB7&8\",Tabel1[[#This Row],[FTO_jb]]=\"Alle\",Tabel1[[#This Row],[FTO_jb]])","v":"Alle"},1014,"1965",{"$f":"IF(Tabel1[[#This Row],[x.MQ00_20]]=\"NaN\",\"\",VALUE(Tabel1[[#This Row],[x.MQ00_20]]))","v":1965},"3167",{"$f":"IF(Tabel1[[#This Row],[x.MQ20_40]]=\"NaN\",\"\",VALUE(Tabel1[[#This Row],[x.MQ20_40]]))","v":3167},"3718",{"$f":"IF(Tabel1[[#This Row],[x.MQ40_60]]=\"NaN\",\"\",VALUE(Tabel1[[#This Row],[x.MQ40_60]]))","v":3718},"4317",{"$f":"IF(Tabel1[[#This Row],[x.MQ60_80]]=\"NaN\",\"\",VALUE(Tabel1[[#This Row],[x.MQ60_80]]))","v":4317},"5597",{"$f":"IF(Tabel1[[#This Row],[x.MQ80_100]]=\"NaN\",\"\",VALUE(Tabel1[[#This Row],[x.MQ80_100]]))","v":5597}]
["Østjylland-Fyn","Alle","Alle",{"$f":"_xlfn.IFS(Tabel1[[#This Row],[FTO_jb]]=\"1\",\"JB1&3\",Tabel1[[#This Row],[FTO_jb]]=\"2\",\"JB2&4\",Tabel1[[#This Row],[FTO_jb]]=\"3\",\"JB5&6\",Tabel1[[#This Row],[FTO_jb]]=\"4\",\"JB7&8\",Tabel1[[#This Row],[FTO_jb]]=\"Alle\",Tabel1[[#This Row],[FTO_jb]])","v":"Alle"},1086,"2239",{"$f":"IF(Tabel1[[#This Row],[x.MQ00_20]]=\"NaN\",\"\",VALUE(Tabel1[[#This Row],[x.MQ00_20]]))","v":2239},"3419",{"$f":"IF(Tabel1[[#This Row],[x.MQ20_40]]=\"NaN\",\"\",VALUE(Tabel1[[#This Row],[x.MQ20_40]]))","v":3419},"3970",{"$f":"IF(Tabel1[[#This Row],[x.MQ40_60]]=\"NaN\",\"\",VALUE(Tabel1[[#This Row],[x.MQ40_60]]))","v":3970},"4530",{"$f":"IF(Tabel1[[#This Row],[x.MQ60_80]]=\"NaN\",\"\",VALUE(Tabel1[[#This Row],[x.MQ60_80]]))","v":4530},"5852",{"$f":"IF(Tabel1[[#This Row],[x.MQ80_100]]=\"NaN\",\"\",VALUE(Tabel1[[#This Row],[x.MQ80_100]]))","v":5852}]
["Alle","Husdyrproduktion","1",{"$f":"_xlfn.IFS(Tabel1[[#This Row],[FTO_jb]]=\"1\",\"JB1&3\",Tabel1[[#This Row],[FTO_jb]]=\"2\",\"JB2&4\",Tabel1[[#This Row],[FTO_jb]]=\"3\",\"JB5&6\",Tabel1[[#This Row],[FTO_jb]]=\"4\",\"JB7&8\",Tabel1[[#This Row],[FTO_jb]]=\"Alle\",Tabel1[[#This Row],[FTO_jb]])","v":"JB1&3"},887,"2050",{"$f":"IF(Tabel1[[#This Row],[x.MQ00_20]]=\"NaN\",\"\",VALUE(Tabel1[[#This Row],[x.MQ00_20]]))","v":2050},"3197",{"$f":"IF(Tabel1[[#This Row],[x.MQ20_40]]=\"NaN\",\"\",VALUE(Tabel1[[#This Row],[x.MQ20_40]]))","v":3197},"3699",{"$f":"IF(Tabel1[[#This Row],[x.MQ40_60]]=\"NaN\",\"\",VALUE(Tabel1[[#This Row],[x.MQ40_60]]))","v":3699},"4264",{"$f":"IF(Tabel1[[#This Row],[x.MQ60_80]]=\"NaN\",\"\",VALUE(Tabel1[[#This Row],[x.MQ60_80]]))","v":4264},"5587",{"$f":"IF(Tabel1[[#This Row],[x.MQ80_100]]=\"NaN\",\"\",VALUE(Tabel1[[#This Row],[x.MQ80_100]]))","v":5587}]
["Alle","Husdyrproduktion","2",{"$f":"_xlfn.IFS(Tabel1[[#This Row],[FTO_jb]]=\"1\",\"JB1&3\",Tabel1[[#This Row],[FTO_jb]]=\"2\",\"JB2&4\",Tabel1[[#This Row],[FTO_jb]]=\"3\",\"JB5&6\",Tabel1[[#This Row],[FTO_jb]]=\"4\",\"JB7&8\",Tabel1[[#This Row],[FTO_jb]]=\"Alle\",Tabel1[[#This Row],[FTO_jb]])","v":"JB2&4"},701,"2125",{"$f":"IF(Tabel1[[#This Row],[x.MQ00_20]]=\"NaN\",\"\",VALUE(Tabel1[[#This Row],[x.MQ00_20]]))","v":2125},"3347",{"$f":"IF(Tabel1[[#This Row],[x.MQ20_40]]=\"NaN\",\"\",VALUE(Tabel1[[#This Row],[x.MQ20_40]]))","v":3347},"3912",{"$f":"IF(Tabel1[[#This Row],[x.MQ40_60]]=\"NaN\",\"\",VALUE(Tabel1[[#This Row],[x.MQ40_60]]))","v":3912},"4475",{"$f":"IF(Tabel1[[#This Row],[x.MQ60_80]]=\"NaN\",\"\",VALUE(Tabel1[[#This Row],[x.MQ60_80]]))","v":4475},"5822",{"$f":"IF(Tabel1[[#This Row],[x.MQ80_100]]=\"NaN\",\"\",VALUE(Tabel1[[#This Row],[x.MQ80_100]]))","v":5822}]
["Alle","Husdyrproduktion","3",{"$f":"_xlfn.IFS(Tabel1[[#This Row],[FTO_jb]]=\"1\",\"JB1&3\",Tabel1[[#This Row],[FTO_jb]]=\"2\",\"JB2&4\",Tabel1[[#This Row],[FTO_jb]]=\"3\",\"JB5&6\",Tabel1[[#This Row],[FTO_jb]]=\"4\",\"JB7&8\",Tabel1[[#This Row],[FTO_jb]]=\"Alle\",Tabel1[[#This Row],[FTO_jb]])","v":"JB5&6"},557,"2627",{"$f":"IF(Tabel1[[#This Row],[x.MQ00_20]]=\"NaN\",\"\",VALUE(Tabel1[[#This Row],[x.MQ00_20]]))","v":2627},"3782",{"$f":"IF(Tabel1[[#This Row],[x.MQ20_40]]=\"NaN\",\"\",VALUE(Tabel1[[#This Row],[x.MQ20_40]]))","v":3782},"4347",{"$f":"IF(Tabel1[[#This Row],[x.MQ40_60]]=\"NaN\",\"\",VALUE(Tabel1[[#This Row],[x.MQ40_60]]))","v":4347},"4928",{"$f":"IF(Tabel1[[#This Row],[x.MQ60_80]]=\"NaN\",\"\",VALUE(Tabel1[[#This Row],[x.MQ60_80]]))","v":4928},"6201",{"$f":"IF(Tabel1[[#This Row],[x.MQ80_100]]=\"NaN\",\"\",VALUE(Tabel1[[#This Row],[x.MQ80_100]]))","v":6201}]
["Alle","Husdyrproduktion","4",{"$f":"_xlfn.IFS(Tabel1[[#This Row],[FTO_jb]]=\"1\",\"JB1&3\",Tabel1[[#This Row],[FTO_jb]]=\"2\",\"JB2&4\",Tabel1[[#This Row],[FTO_jb]]=\"3\",\"JB5&6\",Tabel1[[#This Row],[FTO_jb]]=\"4\",\"JB7&8\",Tabel1[[#This Row],[FTO_jb]]=\"Alle\",Tabel1[[#This Row],[FTO_jb]])","v":"JB7&8"},103,"2447",{"$f":"IF(Tabel1[[#This Row],[x.MQ00_20]]=\"NaN\",\"\",VALUE(Tabel1[[#This Row],[x.MQ00_20]]))","v":2447},"3506",{"$f":"IF(Tabel1[[#This Row],[x.MQ20_40]]=\"NaN\",\"\",VALUE(Tabel1[[#This Row],[x.MQ20_40]]))","v":3506},"4061",{"$f":"IF(Tabel1[[#This Row],[x.MQ40_60]]=\"NaN\",\"\",VALUE(Tabel1[[#This Row],[x.MQ40_60]]))","v":4061},"4663",{"$f":"IF(Tabel1[[#This Row],[x.MQ60_80]]=\"NaN\",\"\",VALUE(Tabel1[[#This Row],[x.MQ60_80]]))","v":4663},"6241",{"$f":"IF(Tabel1[[#This Row],[x.MQ80_100]]=\"NaN\",\"\",VALUE(Tabel1[[#This Row],[x.MQ80_100]]))","v":6241}]
["Alle","Planteavl","1",{"$f":"_xlfn.IFS(Tabel1[[#This Row],[FTO_jb]]=\"1\",\"JB1&3\",Tabel1[[#This Row],[FTO_jb]]=\"2\",\"JB2&4\",Tabel1[[#This Row],[FTO_jb]]=\"3\",\"JB5&6\",Tabel1[[#This Row],[FTO_jb]]=\"4\",\"JB7&8\",Tabel1[[#This Row],[FTO_jb]]=\"Alle\",Tabel1[[#This Row],[FTO_jb]])","v":"JB1&3"},251,"1505",{"$f":"IF(Tabel1[[#This Row],[x.MQ00_20]]=\"NaN\",\"\",VALUE(Tabel1[[#This Row],[x.MQ00_20]]))","v":1505},"2887",{"$f":"IF(Tabel1[[#This Row],[x.MQ20_40]]=\"NaN\",\"\",VALUE(Tabel1[[#This Row],[x.MQ20_40]]))","v":2887},"3524",{"$f":"IF(Tabel1[[#This Row],[x.MQ40_60]]=\"NaN\",\"\",VALUE(Tabel1[[#This Row],[x.MQ40_60]]))","v":3524},"4200",{"$f":"IF(Tabel1[[#This Row],[x.MQ60_80]]=\"NaN\",\"\",VALUE(Tabel1[[#This Row],[x.MQ60_80]]))","v":4200},"5479",{"$f":"IF(Tabel1[[#This Row],[x.MQ80_100]]=\"NaN\",\"\",VALUE(Tabel1[[#This Row],[x.MQ80_100]]))","v":5479}]
["Alle","Planteavl","2",{"$f":"_xlfn.IFS(Tabel1[[#This Row],[FTO_jb]]=\"1\",\"JB1&3\",Tabel1[[#This Row],[FTO_jb]]=\"2\",\"JB2&4\",Tabel1[[#This Row],[FTO_jb]]=\"3\",\"JB5&6\",Tabel1[[#This Row],[FTO_jb]]=\"4\",\"JB7&8\",Tabel1[[#This Row],[FTO_jb]]=\"Alle\",Tabel1[[#This Row],[FTO_jb]])","v":"JB2&4"},231,"1439",{"$f":"IF(Tabel1[[#This Row],[x.MQ00_20]]=\"NaN\",\"\",VALUE(Tabel1[[#This Row],[x.MQ00_20]]))","v":1439},"2880",{"$f":"IF(Tabel1[[#This Row],[x.MQ20_40]]=\"NaN\",\"\",VALUE(Tabel1[[#This Row],[x.MQ20_40]]))","v":2880},"3629",{"$f":"IF(Tabel1[[#This Row],[x.MQ40_60]]=\"NaN\",\"\",VALUE(Tabel1[[#This Row],[x.MQ40_60]]))","v":3629},"4113",{"$f":"IF(Tabel1[[#This Row],[x.MQ60_80]]=\"NaN\",\"\",VALUE(Tabel1[[#This Row],[x.MQ60_80]]))","v":4113},"5466",{"$f":"IF(Tabel1[[#This Row],[x.MQ80_100]]=\"NaN\",\"\",VALUE(Tabel1[[#This Row],[x.MQ80_100]]))","v":5466}]
["Alle","Planteavl","3",{"$f":"_xlfn.IFS(Tabel1[[#This Row],[FTO_jb]]=\"1\",\"JB1&3\",Tabel1[[#This Row],[FTO_jb]]=\"2\",\"JB2&4\",Tabel1[[#This Row],[FTO_jb]]=\"3\",\"JB5&6\",Tabel1[[#This Row],[FTO_jb]]=\"4\",\"JB7&8\",Tabel1[[#This Row],[FTO_jb]]=\"Alle\",Tabel1[[#This Row],[FTO_jb]])","v":"JB5&6"},446,"2003",{"$f":"IF(Tabel1[[#This Row],[x.MQ00_20]]=\"NaN\",\"\",VALUE(Tabel1[[#This Row],[x.MQ00_20]]))","v":2003},"3352",{"$f":"IF(Tabel1[[#This Row],[x.MQ20_40]]=\"NaN\",\"\",VALUE(Tabel1[[#This Row],[x.MQ20_40]]))","v":3352},"4001",{"$f":"IF(Tabel1[[#This Row],[x.MQ40_60]]=\"NaN\",\"\",VALUE(Tabel1[[#This Row],[x.MQ40_60]]))","v":4001},"4581",{"$f":"IF(Tabel1[[#This Row],[x.MQ60_80]]=\"NaN\",\"\",VALUE(Tabel1[[#This Row],[x.MQ60_80]]))","v":4581},"5981",{"$f":"IF(Tabel1[[#This Row],[x.MQ80_100]]=\"NaN\",\"\",VALUE(Tabel1[[#This Row],[x.MQ80_100]]))","v":5981}]
["Alle","Planteavl","4",{"$f":"_xlfn.IFS(Tabel1[[#This Row],[FTO_jb]]=\"1\",\"JB1&3\",Tabel1[[#This Row],[FTO_jb]]=\"2\",\"JB2&4\",Tabel1[[#This Row],[FTO_jb]]=\"3\",\"JB5&6\",Tabel1[[#This Row],[FTO_jb]]=\"4\",\"JB7&8\",Tabel1[[#This Row],[FTO_jb]]=\"Alle\",Tabel1[[#This Row],[FTO_jb]])","v":"JB7&8"},102,"2269",{"$f":"IF(Tabel1[[#This Row],[x.MQ00_20]]=\"NaN\",\"\",VALUE(Tabel1[[#This Row],[x.MQ00_20]]))","v":2269},"3504",{"$f":"IF(Tabel1[[#This Row],[x.MQ20_40]]=\"NaN\",\"\",VALUE(Tabel1[[#This Row],[x.MQ20_40]]))","v":3504},"4305",{"$f":"IF(Tabel1[[#This Row],[x.MQ40_60]]=\"NaN\",\"\",VALUE(Tabel1[[#This Row],[x.MQ40_60]]))","v":4305},"5459",{"$f":"IF(Tabel1[[#This Row],[x.MQ60_80]]=\"NaN\",\"\",VALUE(Tabel1[[#This Row],[x.MQ60_80]]))","v":5459},"7336",{"$f":"IF(Tabel1[[#This Row],[x.MQ80_100]]=\"NaN\",\"\",VALUE(Tabel1[[#This Row],[x.MQ80_100]]))","v":7336}]
["Alle","Husdyrproduktion","Alle",{"$f":"_xlfn.IFS(Tabel1[[#This Row],[FTO_jb]]=\"1\",\"JB1&3\",Tabel1[[#This Row],[FTO_jb]]=\"2\",\"JB2&4\",Tabel1[[#This Row],[FTO_jb]]=\"3\",\"JB5&6\",Tabel1[[#This Row],[FTO_jb]]=\"4\",\"JB7&8\",Tabel1[[#This Row],[FTO_jb]]=\"Alle\",Tabel1[[#This Row],[FTO_jb]])","v":"Alle"},2248,"2199",{"$f":"IF(Tabel1[[#This Row],[x.MQ00_20]]=\"NaN\",\"\",VALUE(Tabel1[[#This Row],[x.MQ00_20]]))","v":2199},"3377",{"$f":"IF(Tabel1[[#This Row],[x.MQ20_40]]=\"NaN\",\"\",VALUE(Tabel1[[#This Row],[x.MQ20_40]]))","v":3377},"3935",{"$f":"IF(Tabel1[[#This Row],[x.MQ40_60]]=\"NaN\",\"\",VALUE(Tabel1[[#This Row],[x.MQ40_60]]))","v":3935},"4535",{"$f":"IF(Tabel1[[#This Row],[x.MQ60_80]]=\"NaN\",\"\",VALUE(Tabel1[[#This Row],[x.MQ60_80]]))","v":4535},"5889",{"$f":"IF(Tabel1[[#This Row],[x.MQ80_100]]=\"NaN\",\"\",VALUE(Tabel1[[#This Row],[x.MQ80_100]]))","v":5889}]
["Alle","Planteavl","Alle",{"$f":"_xlfn.IFS(Tabel1[[#This Row],[FTO_jb]]=\"1\",\"JB1&3\",Tabel1[[#This Row],[FTO_jb]]=\"2\",\"JB2&4\",Tabel1[[#This Row],[FTO_jb]]=\"3\",\"JB5&6\",Tabel1[[#This Row],[FTO_jb]]=\"4\",\"JB7&8\",Tabel1[[#This Row],[FTO_jb]]=\"Alle\",Tabel1[[#This Row],[FTO_jb]])","v":"Alle"},1030,"1732",{"$f":"IF(Tabel1[[#This Row],[x.MQ00_20]]=\"NaN\",\"\",VALUE(Tabel1[[#This Row],[x.MQ00_20]]))","v":1732},"3126",{"$f":"IF(Tabel1[[#This Row],[x.MQ20_40]]=\"NaN\",\"\",VALUE(Tabel1[[#This Row],[x.MQ20_40]]))","v":3126},"3812",{"$f":"IF(Tabel1[[#This Row],[x.MQ40_60]]=\"NaN\",\"\",VALUE(Tabel1[[#This Row],[x.MQ40_60]]))","v":3812},"4452",{"$f":"IF(Tabel1[[#This Row],[x.MQ60_80]]=\"NaN\",\"\",VALUE(Tabel1[[#This Row],[x.MQ60_80]]))","v":4452},"5978",{"$f":"IF(Tabel1[[#This Row],[x.MQ80_100]]=\"NaN\",\"\",VALUE(Tabel1[[#This Row],[x.MQ80_100]]))","v":5978}]
["Alle","Alle","1",{"$f":"_xlfn.IFS(Tabel1[[#This Row],[FTO_jb]]=\"1\",\"JB1&3\",Tabel1[[#This Row],[FTO_jb]]=\"2\",\"JB2&4\",Tabel1[[#This Row],[FTO_jb]]=\"3\",\"JB5&6\",Tabel1[[#This Row],[FTO_jb]]=\"4\",\"JB7&8\",Tabel1[[#This Row],[FTO_jb]]=\"Alle\",Tabel1[[#This Row],[FTO_jb]])","v":"JB1&3"},1138,"1906",{"$f":"IF(Tabel1[[#This Row],[x.MQ00_20]]=\"NaN\",\"\",VALUE(Tabel1[[#This Row],[x.MQ00_20]]))","v":1906},"3138",{"$f":"IF(Tabel1[[#This Row],[x.MQ20_40]]=\"NaN\",\"\",VALUE(Tabel1[[#This Row],[x.MQ20_40]]))","v":3138},"3664",{"$f":"IF(Tabel1[[#This Row],[x.MQ40_60]]=\"NaN\",\"\",VALUE(Tabel1[[#This Row],[x.MQ40_60]]))","v":3664},"4253",{"$f":"IF(Tabel1[[#This Row],[x.MQ60_80]]=\"NaN\",\"\",VALUE(Tabel1[[#This Row],[x.MQ60_80]]))","v":4253},"5568",{"$f":"IF(Tabel1[[#This Row],[x.MQ80_100]]=\"NaN\",\"\",VALUE(Tabel1[[#This Row],[x.MQ80_100]]))","v":5568}]
["Alle","Alle","2",{"$f":"_xlfn.IFS(Tabel1[[#This Row],[FTO_jb]]=\"1\",\"JB1&3\",Tabel1[[#This Row],[FTO_jb]]=\"2\",\"JB2&4\",Tabel1[[#This Row],[FTO_jb]]=\"3\",\"JB5&6\",Tabel1[[#This Row],[FTO_jb]]=\"4\",\"JB7&8\",Tabel1[[#This Row],[FTO_jb]]=\"Alle\",Tabel1[[#This Row],[FTO_jb]])","v":"JB2&4"},932,"1920",{"$f":"IF(Tabel1[[#This Row],[x.MQ00_20]]=\"NaN\",\"\",VALUE(Tabel1[[#This Row],[x.MQ00_20]]))","v":1920},"3240",{"$f":"IF(Tabel1[[#This Row],[x.MQ20_40]]=\"NaN\",\"\",VALUE(Tabel1[[#This Row],[x.MQ20_40]]))","v":3240},"3840",{"$f":"IF(Tabel1[[#This Row],[x.MQ40_60]]=\"NaN\",\"\",VALUE(Tabel1[[#This Row],[x.MQ40_60]]))","v":3840},"4392",{"$f":"IF(Tabel1[[#This Row],[x.MQ60_80]]=\"NaN\",\"\",VALUE(Tabel1[[#This Row],[x.MQ60_80]]))","v":4392},"5750",{"$f":"IF(Tabel1[[#This Row],[x.MQ80_100]]=\"NaN\",\"\",VALUE(Tabel1[[#This Row],[x.MQ80_100]]))","v":5750}]
["Alle","Alle","3",{"$f":"_xlfn.IFS(Tabel1[[#This Row],[FTO_jb]]=\"1\",\"JB1&3\",Tabel1[[#This Row],[FTO_jb]]=\"2\",\"JB2&4\",Tabel1[[#This Row],[FTO_jb]]=\"3\",\"JB5&6\",Tabel1[[#This Row],[FTO_jb]]=\"4\",\"JB7&8\",Tabel1[[#This Row],[FTO_jb]]=\"Alle\",Tabel1[[#This Row],[FTO_jb]])","v":"JB5&6"},1003,"2301",{"$f":"IF(Tabel1[[#This Row],[x.MQ00_20]]=\"NaN\",\"\",VALUE(Tabel1[[#This Row],[x.MQ00_20]]))","v":2301},"3600",{"$f":"IF(Tabel1[[#This Row],[x.MQ20_40]]=\"NaN\",\"\",VALUE(Tabel1[[#This Row],[x.MQ20_40]]))","v":3600},"4196",{"$f":"IF(Tabel1[[#This Row],[x.MQ40_60]]=\"NaN\",\"\",VALUE(Tabel1[[#This Row],[x.MQ40_60]]))","v":4196},"4788",{"$f":"IF(Tabel1[[#This Row],[x.MQ60_80]]=\"NaN\",\"\",VALUE(Tabel1[[#This Row],[x.MQ60_80]]))","v":4788},"6123",{"$f":"IF(Tabel1[[#This Row],[x.MQ80_100]]=\"NaN\",\"\",VALUE(Tabel1[[#This Row],[x.MQ80_100]]))","v":6123}]
["Alle","Alle","4",{"$f":"_xlfn.IFS(Tabel1[[#This Row],[FTO_jb]]=\"1\",\"JB1&3\",Tabel1[[#This Row],[FTO_jb]]=\"2\",\"JB2&4\",Tabel1[[#This Row],[FTO_jb]]=\"3\",\"JB5&6\",Tabel1[[#This Row],[FTO_jb]]=\"4\",\"JB7&8\",Tabel1[[#This Row],[FTO_jb]]=\"Alle\",Tabel1[[#This Row],[FTO_jb]])","v":"JB7&8"},205,"2338",{"$f":"IF(Tabel1[[#This Row],[x.MQ00_20]]=\"NaN\",\"\",VALUE(Tabel1[[#This Row],[x.MQ00_20]]))","v":2338},"3484",{"$f":"IF(Tabel1[[#This Row],[x.MQ20_40]]=\"NaN\",\"\",VALUE(Tabel1[[#This Row],[x.MQ20_40]]))","v":3484},"4190",{"$f":"IF(Tabel1[[#This Row],[x.MQ40_60]]=\"NaN\",\"\",VALUE(Tabel1[[#This Row],[x.MQ40_60]]))","v":4190},"5016",{"$f":"IF(Tabel1[[#This Row],[x.MQ60_80]]=\"NaN\",\"\",VALUE(Tabel1[[#This Row],[x.MQ60_80]]))","v":5016},"6918",{"$f":"IF(Tabel1[[#This Row],[x.MQ80_100]]=\"NaN\",\"\",VALUE(Tabel1[[#This Row],[x.MQ80_100]]))","v":6918}]